{"text_format":"1","workbook":"xlsx","n_sheets":11,"sheets":["Accueil - Forêt publique","Accueil - Forêt privée","Calcul - PEEOL - BGAD ","Calcul - PEEOL - Usine ","Calcul - PEEOL - FPrivée","Carte admi. - PEEOL - FPublique","Cartes admis. - PEEOL - FPrivée","Versions du fichier - FPublique","Versions du fichier - FPrivée","Menus","Log"],"not_rendered":{"charts":0,"images":10,"macros":1,"external_links":0,"defined_names":36,"comments":3,"pivot_tables":0},"unopened":[],"bounds":{"document_bytes":16777216,"sheet_cells":100000,"rows_first":2000,"rows_last":500,"rows_between":2000,"halvings":0,"cell_chars":16384,"cell_head_chars":4096},"cells_cut":0,"cells_raw":0,"read":"whole","date_system":"1900"}

{"sheet":"Accueil - Forêt publique","index":0,"n_rows":20,"n_cols":4,"rows_kept":20,"cut":false,"hidden":false,"merged":[[14,3,14,13],[19,3,19,13],[16,3,17,13]]}
[]
[]
[]
[]
[]
[]
[]
[]
[]
[]
[]
[]
[]
[]
[null,null,null,"Programme exceptionnel d’écoulement des bois feuillus de faible qualité des régions de l’Outaouais et des Laurentides\nForêt publique\nAnnexe au rapport et au calcul de l'aide pour le transport des bois\n2020-2021                     \n\n"]
[]
[null,null,null,"L'activation du contenu de ce fichier est requise afin d'assurer l'exécution des macro-commandes qui sont nécessaires\nà son bon fonctionnement."]
[]
[]
[null,null,null,"https://support.office.com/fr-fr/article/activer-ou-d%C3%A9sactiver-les-macros-dans-les-fichiers-office-12b036fd-d140-4e74-b45e-16fed1a7e5c6"]

{"sheet":"Accueil - Forêt privée","index":1,"n_rows":20,"n_cols":4,"rows_kept":20,"cut":false,"hidden":true,"merged":[[14,3,14,13],[16,3,17,13],[19,3,19,13]]}
[]
[]
[]
[]
[]
[]
[]
[]
[]
[]
[]
[]
[]
[]
[null,null,null,"Programme exceptionnel d’écoulement des bois feuillus de faible qualité des régions de l’Outaouais et des Laurentides\nForêt privée\nAnnexe au rapport et au calcul de l'aide pour le transport des bois\n2020-2021                     \n\n"]
[]
[null,null,null,"L'activation du contenu de ce fichier est requise afin d'assurer l'exécution des macro-commandes qui sont nécessaires\nà son bon fonctionnement."]
[]
[]
[null,null,null,"https://support.office.com/fr-fr/article/activer-ou-d%C3%A9sactiver-les-macros-dans-les-fichiers-office-12b036fd-d140-4e74-b45e-16fed1a7e5c6"]

{"sheet":"Calcul - PEEOL - BGAD ","index":2,"n_rows":175,"n_cols":102,"rows_kept":175,"cut":false,"hidden":true,"merged":[[60,0,60,5],[60,6,60,8],[49,6,49,8],[41,0,41,8],[43,0,43,8],[44,0,44,8],[45,0,45,8],[56,0,56,8],[61,0,62,5],[61,6,62,8],[40,0,40,5],[57,6,59,8],[52,0,52,5],[52,6,52,8],[42,0,42,8],[50,0,51,5],[50,6,51,8],[53,0,53,8],[54,0,54,8],[55,0,55,8],[57,0,59,5],[46,0,48,5],[46,6,48,8],[49,0,49,5],[63,0,63,5],[63,6,63,8],[74,0,74,5],[74,6,74,8],[64,0,64,8],[65,0,65,8],[66,0,66,8],[67,0,67,8],[68,0,70,5],[68,6,70,8],[71,0,71,5],[71,6,71,8],[72,0,73,5],[72,6,73,8],[31,0,31,5],[0,0,0,8],[5,0,5,5],[6,0,6,5],[3,0,3,5],[5,6,5,8],[6,6,6,8],[1,0,1,8],[2,0,2,6],[2,7,2,8],[30,0,30,5],[26,0,26,5],[27,0,27,5],[9,0,9,4],[21,0,21,5],[22,0,22,5],[23,0,23,5],[28,0,28,5],[17,0,17,5],[25,0,25,5],[8,6,8,8],[8,0,8,5],[19,0,19,5],[29,0,29,8],[7,6,7,8],[3,6,3,8],[4,0,4,8],[39,0,39,8],[24,0,24,2],[20,0,20,8],[10,0,10,5],[11,0,11,8],[16,0,16,5],[12,0,12,5],[13,0,13,5],[14,0,14,5],[15,0,15,5],[7,0,7,5],[18,0,18,5],[32,0,32,5],[34,0,34,5],[35,0,35,5],[36,0,36,5],[38,0,38,5],[33,0,33,5],[37,0,37,5]]}
[]
["Programme exceptionnel d’écoulement des bois feuillus de faible qualité des régions\nde l’Outaouais et des Laurentides\nForêt publique\nAnnexe au rapport et au calcul de l'aide pour le transport des bois\n2020-2021     \n"]
[" *** Veuillez saisir les informations dans les cellules blanches (Planification et BGAD) et jaunes (Ministère) ***",null,null,null,null,null,null,"Version 5 - FPu : 2021-02-03"]
["Contexte d'utilisation",null,null,null,null,null,"Inscrire une valeur"]
["Identification"]
["Unité d'aménagement (UA)"]
["Secteur d'intervention"]
["Unité de compilation"]
["Numéro de la prescription"]
["Zone de tarification\nValeur requise pour le calcul",null,null,null,null,{"$f":"IF(ISNA(VLOOKUP($I$10,Zone_de_tarification_Admissibilite,1,FALSE)),\"Non_admissible\",\"Question\")","v":"Non_admissible"},null,null,"Inscrire une valeur"]
["Inscrire les renseignements dans la colonne associée au contexte d'utilisation",null,null,null,null,null,"Planification","BGAD","Ministère"]
["Admissibilité et calcul de l'aide au transport — À partir de la forêt vers une usine de sciage ou cour de triage\n →  Aide pour le transport des bois issus de coupes partielles\n       Inscrire une valeur à I10"]
["Secteur d'intervention dont la composition est feuillue ou mixte à dominance feuillue ?"]
["Admissible à l'aide financière pour les coupes partielles ?"]
["Bois transportés vers l'usine de sciage ou vers la cour de triage ?"]
["Pourcentage de récupération des bois de trituration"]
["Superficie admissible"]
["Bénéficiaire de garantie d'approvisionnement désigné (BGAD)"]
["Taux d'aide au transport ($/ha)",null,null,null,null,null,{"$f":"IFERROR(IF($G$16>1,0,IF(AND(EXACT(UPPER($G$13),UPPER(Menus!$A$2)),EXACT(UPPER($G$14),UPPER(Menus!$A$2)),EXACT(UPPER($G$15),UPPER(Menus!$A$2))),ROUND(VLOOKUP(CONCATENATE($I$10,\" - \",$G$18),Tableau_Zone_de_tarification_BGAD_A,6,FALSE)*$G$16,2),0)),0)","v":0},{"$f":"IFERROR(IF($H$16>1,0,IF(OR(EXACT(UPPER($G$4),UPPER(Menus!$A$41)),EXACT(UPPER($G$4),UPPER(Menus!$A$42))),IF(AND(EXACT(UPPER($H$13),UPPER(Menus!$A$2)),EXACT(UPPER($H$14),UPPER(Menus!$A$2)),EXACT(UPPER($H$15),UPPER(Menus!$A$2))),ROUND(VLOOKUP(CONCATENATE($I$10,\" - \",$H$18),Tableau_Zone_de_tarification_BGAD_A,6,FALSE)*$H$16,2),0),0)),0)","v":0},{"$f":"IFERROR(IF($I$16>1,0,IF(EXACT(UPPER($G$4),UPPER(Menus!$A$42)),IF(AND(EXACT(UPPER($I$13),UPPER(Menus!$A$2)),EXACT(UPPER($I$14),UPPER(Menus!$A$2)),EXACT(UPPER($I$15),UPPER(Menus!$A$2))),ROUND(VLOOKUP(CONCATENATE($I$10,\" - \",$I$18),Tableau_Zone_de_tarification_BGAD_A,6,FALSE)*$I$16,2),0),0)),0)","v":0}]
["Total admissible ($)",null,null,null,null,null,{"$f":"IFERROR(ROUND($G$19*$G$17,2),0)","v":0},{"$f":"IFERROR(ROUND($H$19*$H$17,2),0)","v":0},{"$f":"IFERROR(ROUND($I$19*$I$17,2),0)","v":0}]
["Transport et mesurage optimisés des bois feuillus en longueur (en vertu du PIAF - Volet II - ATOBFCP)\n →  Aide pour le transport en longueur et l'optimisation du mesurage des bois issus de coupes partielles\n       Inscrire une valeur à I10"]
["Transport des bois feuillus en longueur ?"]
["Proportion des bois feuillus transportés en longueur (%)"]
["Sous-total pour l'aide au transport en longueur ($/ha) - taux à inscrire à l'état d'avancement et au RATF",null,null,null,null,null,{"$f":"IFERROR(IF(AND(EXACT(UPPER($G$13),UPPER(Menus!$A$2)),EXACT(UPPER($G$14),UPPER(Menus!$A$2)),EXACT(UPPER($G$15),UPPER(Menus!$A$2)),EXACT(UPPER($G$22),UPPER(Menus!$A$2)),$G$23>0,$G$23<=1),ROUND(Menus!$B$853*$G$23,2),0),0)","v":0},{"$f":"IFERROR(IF(OR(EXACT(UPPER($G$4),UPPER(Menus!$A$41)),EXACT(UPPER($G$4),UPPER(Menus!$A$42))),IF(AND(EXACT(UPPER($H$13),UPPER(Menus!$A$2)),EXACT(UPPER($H$14),UPPER(Menus!$A$2)),EXACT(UPPER($H$15),UPPER(Menus!$A$2)),EXACT(UPPER($H$22),UPPER(Menus!$A$2)),$H$23>0,$H$23<=1),ROUND(Menus!$B$853*$H$23,2),0),0),0)","v":0},{"$f":"IFERROR(IF(EXACT(UPPER($G$4),UPPER(Menus!$A$42)),IF(AND(EXACT(UPPER($I$13),UPPER(Menus!$A$2)),EXACT(UPPER($I$14),UPPER(Menus!$A$2)),EXACT(UPPER($I$15),UPPER(Menus!$A$2)),EXACT(UPPER($I$22),UPPER(Menus!$A$2)),$I$23>0,$I$23<=1),ROUND(Menus!$B$853*$I$23,2),0),0),0)","v":0}]
["Mesurage optimisé des bois feuillus ?",null,null,{"$f":"IF(EXACT(UPPER($G$22),UPPER(Menus!$A$2)),\"Question\",\"Sans_objet\")","v":"Sans_objet"},{"$f":"IF(EXACT(UPPER($H$22),UPPER(Menus!$A$2)),\"Question\",\"Sans_objet\")","v":"Sans_objet"},{"$f":"IF(EXACT(UPPER($I$22),UPPER(Menus!$A$2)),\"Question\",\"Sans_objet\")","v":"Sans_objet"}]
["Proportion des bois feuillus mesurés (%)"]
["Sous-total pour l'aide au transport en longueur et au mesurage optimisé ($/ha) - taux à inscrire à l'état d'avancement et au RATF",null,null,null,null,null,{"$f":"IFERROR(IF($G$26<=$G$23,IF(AND(EXACT(UPPER($G$13),UPPER(Menus!$A$2)),EXACT(UPPER($G$14),UPPER(Menus!$A$2)),EXACT(UPPER($G$15),UPPER(Menus!$A$2)),EXACT(UPPER($G$22),UPPER(Menus!$A$2)),EXACT(UPPER($G$25),UPPER(Menus!$A$2)),$G$26>0,$G$26<=1),ROUND(Menus!$B$854*$G$26,2),0),0),0)","v":0},{"$f":"IFERROR(IF(OR(EXACT(UPPER($G$4),UPPER(Menus!$A$41)),EXACT(UPPER($G$4),UPPER(Menus!$A$42))),IF($H$26<=$H$23,IF(AND(EXACT(UPPER($H$13),UPPER(Menus!$A$2)),EXACT(UPPER($H$14),UPPER(Menus!$A$2)),EXACT(UPPER($H$15),UPPER(Menus!$A$2)),EXACT(UPPER($H$22),UPPER(Menus!$A$2)),EXACT(UPPER($H$25),UPPER(Menus!$A$2)),$H$26>0,$H$26<=1),ROUND(Menus!$B$854*$H$26,2),0),0),0),0)","v":0},{"$f":"IFERROR(IF(EXACT(UPPER($G$4),UPPER(Menus!$A$42)),IF($I$26<=$I$23,IF(AND(EXACT(UPPER($I$13),UPPER(Menus!$A$2)),EXACT(UPPER($I$14),UPPER(Menus!$A$2)),EXACT(UPPER($I$15),UPPER(Menus!$A$2)),EXACT(UPPER($I$22),UPPER(Menus!$A$2)),EXACT(UPPER($I$25),UPPER(Menus!$A$2)),$I$26>0,$I$26<=1),ROUND(Menus!$B$854*$I$26,2),0),0),0),0)","v":0}]
["Taux global pour le transport et le mesurage optimisé ($/ha)",null,null,null,null,null,{"$f":"IFERROR(ROUND(SUM($G$24,$G$27),2),0)","v":0},{"$f":"IFERROR(ROUND(SUM($H$24,$H$27),2),0)","v":0},{"$f":"IFERROR(ROUND(SUM($I$24,$I$27),2),0)","v":0}]
["Total admissible ($)",null,null,null,null,null,{"$f":"IFERROR(ROUND($G$28*$G$17,2),0)","v":0},{"$f":"IFERROR(ROUND($H$28*$H$17,2),0)","v":0},{"$f":"IFERROR(ROUND($I$28*$I$17,2),0)","v":0}]
["Admissibilité et calcul de l'aide au transport — À partir de la forêt vers une usine de sciage ou cour de triage\n →  Aide pour le transport des bois issus de coupes totales\n       Inscrire une valeur à I10"]
["Est-ce que les strates récoltées sont feuillues ou mixtes à dominance feuillue ?"]
["Est-ce que les bois de trituration ont été récoltés et transportés ?"]
["Pourcentage de récupération des bois de trituration"]
["Superficie admissible"]
["Volume récolté (m3/ha)"]
["Bénéficiaire de garantie d'approvisionnement désigné (BGAD)"]
["Taux d'aide brut au transport ($/m3)",null,null,null,null,null,{"$f":"IFERROR(IF($G$33>1,0,IF(AND(EXACT(UPPER($G$31),UPPER(Menus!$A$2)),EXACT(UPPER($G$32),UPPER(Menus!$A$2))),ROUND(VLOOKUP(CONCATENATE($I$10,\" - \",$G$36),Tableau_Zone_de_tarification_BGAD_B,6,FALSE),2),0)),0)","v":0},{"$f":"IFERROR(IF($H$33>1,0,IF(OR(EXACT(UPPER($G$4),UPPER(Menus!$A$41)),EXACT(UPPER($G$4),UPPER(Menus!$A$42))),IF(AND(EXACT(UPPER($H$31),UPPER(Menus!$A$2)),EXACT(UPPER($H$32),UPPER(Menus!$A$2))),ROUND(VLOOKUP(CONCATENATE($I$10,\" - \",$H$36),Tableau_Zone_de_tarification_BGAD_B,6,FALSE),2),0),0)),0)","v":0},{"$f":"IFERROR(IF($I$33>1,0,IF(EXACT(UPPER($G$4),UPPER(Menus!$A$42)),IF(AND(EXACT(UPPER($I$31),UPPER(Menus!$A$2)),EXACT(UPPER($I$32),UPPER(Menus!$A$2))),ROUND(VLOOKUP(CONCATENATE($I$10,\" - \",$I$36),Tableau_Zone_de_tarification_BGAD_B,6,FALSE),2),0),0)),0)","v":0}]
["Taux d'aide net au transport ($/ha)\nLe taux d'aide net au transport ($/ha) est limitée à un plafond variable en fonction de la zone de tarification et du BGAD. Cette valeur tient compte du pourcentage de récupération et du volume transporté.",null,null,null,null,null,{"$f":"IFERROR(IF(ROUND($G$33*$G$35*$G$37,2)>ROUND(VLOOKUP(CONCATENATE($I$10,\" - \",$G$36),Tableau_Zone_de_tarification_BGAD_B,5,FALSE)*$G$33,2),ROUND(VLOOKUP(CONCATENATE($I$10,\" - \",$G$36),Tableau_Zone_de_tarification_BGAD_B,5,FALSE)*$G$33,2),ROUND($G$33*$G$35*$G$37,2)),0)","v":0},{"$f":"IFERROR(IF(ROUND($H$33*$H$35*$H$37,2)>ROUND(VLOOKUP(CONCATENATE($I$10,\" - \",$H$36),Tableau_Zone_de_tarification_BGAD_B,5,FALSE)*$H$33,2),ROUND(VLOOKUP(CONCATENATE($I$10,\" - \",$H$36),Tableau_Zone_de_tarification_BGAD_B,5,FALSE)*$H$33,2),ROUND($H$33*$H$35*$H$37,2)),0)","v":0},{"$f":"IFERROR(IF(ROUND($I$33*$I$35*$I$37,2)>ROUND(VLOOKUP(CONCATENATE($I$10,\" - \",$I$36),Tableau_Zone_de_tarification_BGAD_B,5,FALSE)*$I$33,2),ROUND(VLOOKUP(CONCATENATE($I$10,\" - \",$I$36),Tableau_Zone_de_tarification_BGAD_B,5,FALSE)*$I$33,2),ROUND($I$33*$I$35*$I$37,2)),0)","v":0}]
["Total admissible ($)",null,null,null,null,null,{"$f":"IFERROR(ROUND($G$34*$G$38,2),0)","v":0},{"$f":"IFERROR(ROUND($H$34*$H$38,2),0)","v":0},{"$f":"IFERROR(ROUND($I$34*$I$38,2),0)","v":0}]
["Résumé de l'aide pour le Programme exceptionnel d’écoulement des bois feuillus de faible qualité des régions de l’Outaouais et des Laurentides et, le cas échéant, pour le Programme d’investissement en aménagement forestier (Volet II - ATOBFCP)"]
["Grand total admissible ($)",null,null,null,null,null,{"$f":"IFERROR(ROUND(SUM($G$20,$G$29,$G$39),2),0)","v":0},{"$f":"IFERROR(ROUND(SUM($H$20,$H$29,$H$39),2),0)","v":0},{"$f":"IFERROR(ROUND(SUM($I$20,$I$29,$I$39),2),0)","v":0}]
[]
["Section réservée à l'usage de la Planification"]
["Remarques"]
[]
["J'atteste que les renseignements fournis dans ce document afin de calculer l'aide supplémentaire sont complets et conformes à la vérité, au meilleur de mes connaissances."]
[]
[]
[]
["Nom et prénom de l'ingénieur forestier",null,null,null,null,null,"No de permis"]
[null,null,null,null,null,null,{"$f":"TODAY()","v":"2021-02-03"}]
[]
["Signature de l'ingénieur forestier",null,null,null,null,null,"Date (AAAA-MM-JJ)"]
["Section réservée à l'usage du BGAD"]
["Remarques"]
[]
["J'atteste que les renseignements fournis dans ce document afin de calculer l'aide supplémentaire sont complets et conformes à la vérité, au meilleur de mes connaissances."]
[]
[]
[]
["Nom et prénom de l'ingénieur forestier",null,null,null,null,null,"No de permis"]
[null,null,null,null,null,null,{"$f":"TODAY()","v":"2021-02-03"}]
[]
["Signature de l'ingénieur forestier",null,null,null,null,null,"Date (AAAA-MM-JJ)"]
["Section réservée à l'usage du Ministère"]
["Remarques"]
[]
["J'atteste que les renseignements fournis dans ce document afin de calculer l'aide supplémentaire sont complets et conformes à la vérité, au meilleur de mes connaissances."]
[]
[]
[]
["Nom et prénom de l'ingénieur forestier",null,null,null,null,null,"No de permis"]
[null,null,null,null,null,null,{"$f":"TODAY()","v":"2021-02-03"}]
[]
["Signature de l'ingénieur forestier",null,null,null,null,null,"Date (AAAA-MM-JJ)"]
[null,null,null,null,null,null,null,null,null,null,null,null,null,null,null,null,null,null,null,null,null,null,null,null,null,null,null,null,null,null,null,null,null,null,null,null,null,null,null,null,null,null,null,null,null,null,null,null,null,null,null,null,null,null,null,null,null,null,null,null,null,null,null,null,null,null,null,null,null,null,null,null,null,null,null,null,null,null,null,null,null,null,null,null,null,null,null,null,null,null,null,null,null,null,null,null,null,null,null,null,455,0]
[null,null,null,null,null,null,null,null,null,null,null,null,null,null,null,null,null,null,null,null,null,null,null,null,null,null,null,null,null,null,null,null,null,null,null,null,null,null,null,null,null,null,null,null,null,null,null,null,null,null,null,null,null,null,null,null,null,null,null,null,null,null,null,null,null,null,null,null,null,null,null,null,null,null,null,null,null,null,null,null,null,null,null,null,null,null,null,null,null,null,null,null,null,null,null,null,null,null,null,null,456,0]
[null,null,null,null,null,null,null,null,null,null,null,null,null,null,null,null,null,null,null,null,null,null,null,null,null,null,null,null,null,null,null,null,null,null,null,null,null,null,null,null,null,null,null,null,null,null,null,null,null,null,null,null,null,null,null,null,null,null,null,null,null,null,null,null,null,null,null,null,null,null,null,null,null,null,null,null,null,null,null,null,null,null,null,null,null,null,null,null,null,null,null,null,null,null,null,null,null,null,null,null,457,0]
[null,null,null,null,null,null,null,null,null,null,null,null,null,null,null,null,null,null,null,null,null,null,null,null,null,null,null,null,null,null,null,null,null,null,null,null,null,null,null,null,null,null,null,null,null,null,null,null,null,null,null,null,null,null,null,null,null,null,null,null,null,null,null,null,null,null,null,null,null,null,null,null,null,null,null,null,null,null,null,null,null,null,null,null,null,null,null,null,null,null,null,null,null,null,null,null,null,null,null,null,458,60]
[null,null,null,null,null,null,null,null,null,null,null,null,null,null,null,null,null,null,null,null,null,null,null,null,null,null,null,null,null,null,null,null,null,null,null,null,null,null,null,null,null,null,null,null,null,null,null,null,null,null,null,null,null,null,null,null,null,null,null,null,null,null,null,null,null,null,null,null,null,null,null,null,null,null,null,null,null,null,null,null,null,null,null,null,null,null,null,null,null,null,null,null,null,null,null,null,null,null,null,null,459,60]
[null,null,null,null,null,null,null,null,null,null,null,null,null,null,null,null,null,null,null,null,null,null,null,null,null,null,null,null,null,null,null,null,null,null,null,null,null,null,null,null,null,null,null,null,null,null,null,null,null,null,null,null,null,null,null,null,null,null,null,null,null,null,null,null,null,null,null,null,null,null,null,null,null,null,null,null,null,null,null,null,null,null,null,null,null,null,null,null,null,null,null,null,null,null,null,null,null,null,null,null,460,200]
[null,null,null,null,null,null,null,null,null,null,null,null,null,null,null,null,null,null,null,null,null,null,null,null,null,null,null,null,null,null,null,null,null,null,null,null,null,null,null,null,null,null,null,null,null,null,null,null,null,null,null,null,null,null,null,null,null,null,null,null,null,null,null,null,null,null,null,null,null,null,null,null,null,null,null,null,null,null,null,null,null,null,null,null,null,null,null,null,null,null,null,null,null,null,null,null,null,null,null,null,461,240]
[null,null,null,null,null,null,null,null,null,null,null,null,null,null,null,null,null,null,null,null,null,null,null,null,null,null,null,null,null,null,null,null,null,null,null,null,null,null,null,null,null,null,null,null,null,null,null,null,null,null,null,null,null,null,null,null,null,null,null,null,null,null,null,null,null,null,null,null,null,null,null,null,null,null,null,null,null,null,null,null,null,null,null,null,null,null,null,null,null,null,null,null,null,null,null,null,null,null,null,null,551,0]
[null,null,null,null,null,null,null,null,null,null,null,null,null,null,null,null,null,null,null,null,null,null,null,null,null,null,null,null,null,null,null,null,null,null,null,null,null,null,null,null,null,null,null,null,null,null,null,null,null,null,null,null,null,null,null,null,null,null,null,null,null,null,null,null,null,null,null,null,null,null,null,null,null,null,null,null,null,null,null,null,null,null,null,null,null,null,null,null,null,null,null,null,null,null,null,null,null,null,null,null,650,0]
[null,null,null,null,null,null,null,null,null,null,null,null,null,null,null,null,null,null,null,null,null,null,null,null,null,null,null,null,null,null,null,null,null,null,null,null,null,null,null,null,null,null,null,null,null,null,null,null,null,null,null,null,null,null,null,null,null,null,null,null,null,null,null,null,null,null,null,null,null,null,null,null,null,null,null,null,null,null,null,null,null,null,null,null,null,null,null,null,null,null,null,null,null,null,null,null,null,null,null,null,651,40]
[null,null,null,null,null,null,null,null,null,null,null,null,null,null,null,null,null,null,null,null,null,null,null,null,null,null,null,null,null,null,null,null,null,null,null,null,null,null,null,null,null,null,null,null,null,null,null,null,null,null,null,null,null,null,null,null,null,null,null,null,null,null,null,null,null,null,null,null,null,null,null,null,null,null,null,null,null,null,null,null,null,null,null,null,null,null,null,null,null,null,null,null,null,null,null,null,null,null,null,null,652,200]
[null,null,null,null,null,null,null,null,null,null,null,null,null,null,null,null,null,null,null,null,null,null,null,null,null,null,null,null,null,null,null,null,null,null,null,null,null,null,null,null,null,null,null,null,null,null,null,null,null,null,null,null,null,null,null,null,null,null,null,null,null,null,null,null,null,null,null,null,null,null,null,null,null,null,null,null,null,null,null,null,null,null,null,null,null,null,null,null,null,null,null,null,null,null,null,null,null,null,null,null,653,140]
[null,null,null,null,null,null,null,null,null,null,null,null,null,null,null,null,null,null,null,null,null,null,null,null,null,null,null,null,null,null,null,null,null,null,null,null,null,null,null,null,null,null,null,null,null,null,null,null,null,null,null,null,null,null,null,null,null,null,null,null,null,null,null,null,null,null,null,null,null,null,null,null,null,null,null,null,null,null,null,null,null,null,null,null,null,null,null,null,null,null,null,null,null,null,null,null,null,null,null,null,654,200]
[null,null,null,null,null,null,null,null,null,null,null,null,null,null,null,null,null,null,null,null,null,null,null,null,null,null,null,null,null,null,null,null,null,null,null,null,null,null,null,null,null,null,null,null,null,null,null,null,null,null,null,null,null,null,null,null,null,null,null,null,null,null,null,null,null,null,null,null,null,null,null,null,null,null,null,null,null,null,null,null,null,null,null,null,null,null,null,null,null,null,null,null,null,null,null,null,null,null,null,null,655,40]
[null,null,null,null,null,null,null,null,null,null,null,null,null,null,null,null,null,null,null,null,null,null,null,null,null,null,null,null,null,null,null,null,null,null,null,null,null,null,null,null,null,null,null,null,null,null,null,null,null,null,null,null,null,null,null,null,null,null,null,null,null,null,null,null,null,null,null,null,null,null,null,null,null,null,null,null,null,null,null,null,null,null,null,null,null,null,null,null,null,null,null,null,null,null,null,null,null,null,null,null,656,140]
[null,null,null,null,null,null,null,null,null,null,null,null,null,null,null,null,null,null,null,null,null,null,null,null,null,null,null,null,null,null,null,null,null,null,null,null,null,null,null,null,null,null,null,null,null,null,null,null,null,null,null,null,null,null,null,null,null,null,null,null,null,null,null,null,null,null,null,null,null,null,null,null,null,null,null,null,null,null,null,null,null,null,null,null,null,null,null,null,null,null,null,null,null,null,null,null,null,null,null,null,657,140]
[null,null,null,null,null,null,null,null,null,null,null,null,null,null,null,null,null,null,null,null,null,null,null,null,null,null,null,null,null,null,null,null,null,null,null,null,null,null,null,null,null,null,null,null,null,null,null,null,null,null,null,null,null,null,null,null,null,null,null,null,null,null,null,null,null,null,null,null,null,null,null,null,null,null,null,null,null,null,null,null,null,null,null,null,null,null,null,null,null,null,null,null,null,null,null,null,null,null,null,null,658,220]
[null,null,null,null,null,null,null,null,null,null,null,null,null,null,null,null,null,null,null,null,null,null,null,null,null,null,null,null,null,null,null,null,null,null,null,null,null,null,null,null,null,null,null,null,null,null,null,null,null,null,null,null,null,null,null,null,null,null,null,null,null,null,null,null,null,null,null,null,null,null,null,null,null,null,null,null,null,null,null,null,null,null,null,null,null,null,null,null,null,null,null,null,null,null,null,null,null,null,null,null,659,280]
[null,null,null,null,null,null,null,null,null,null,null,null,null,null,null,null,null,null,null,null,null,null,null,null,null,null,null,null,null,null,null,null,null,null,null,null,null,null,null,null,null,null,null,null,null,null,null,null,null,null,null,null,null,null,null,null,null,null,null,null,null,null,null,null,null,null,null,null,null,null,null,null,null,null,null,null,null,null,null,null,null,null,null,null,null,null,null,null,null,null,null,null,null,null,null,null,null,null,null,null,660,160]
[null,null,null,null,null,null,null,null,null,null,null,null,null,null,null,null,null,null,null,null,null,null,null,null,null,null,null,null,null,null,null,null,null,null,null,null,null,null,null,null,null,null,null,null,null,null,null,null,null,null,null,null,null,null,null,null,null,null,null,null,null,null,null,null,null,null,null,null,null,null,null,null,null,null,null,null,null,null,null,null,null,null,null,null,null,null,null,null,null,null,null,null,null,null,null,null,null,null,null,null,661,40]
[null,null,null,null,null,null,null,null,null,null,null,null,null,null,null,null,null,null,null,null,null,null,null,null,null,null,null,null,null,null,null,null,null,null,null,null,null,null,null,null,null,null,null,null,null,null,null,null,null,null,null,null,null,null,null,null,null,null,null,null,null,null,null,null,null,null,null,null,null,null,null,null,null,null,null,null,null,null,null,null,null,null,null,null,null,null,null,null,null,null,null,null,null,null,null,null,null,null,null,null,662,0]
[null,null,null,null,null,null,null,null,null,null,null,null,null,null,null,null,null,null,null,null,null,null,null,null,null,null,null,null,null,null,null,null,null,null,null,null,null,null,null,null,null,null,null,null,null,null,null,null,null,null,null,null,null,null,null,null,null,null,null,null,null,null,null,null,null,null,null,null,null,null,null,null,null,null,null,null,null,null,null,null,null,null,null,null,null,null,null,null,null,null,null,null,null,null,null,null,null,null,null,null,750,0]
[null,null,null,null,null,null,null,null,null,null,null,null,null,null,null,null,null,null,null,null,null,null,null,null,null,null,null,null,null,null,null,null,null,null,null,null,null,null,null,null,null,null,null,null,null,null,null,null,null,null,null,null,null,null,null,null,null,null,null,null,null,null,null,null,null,null,null,null,null,null,null,null,null,null,null,null,null,null,null,null,null,null,null,null,null,null,null,null,null,null,null,null,null,null,null,null,null,null,null,null,751,40]
[null,null,null,null,null,null,null,null,null,null,null,null,null,null,null,null,null,null,null,null,null,null,null,null,null,null,null,null,null,null,null,null,null,null,null,null,null,null,null,null,null,null,null,null,null,null,null,null,null,null,null,null,null,null,null,null,null,null,null,null,null,null,null,null,null,null,null,null,null,null,null,null,null,null,null,null,null,null,null,null,null,null,null,null,null,null,null,null,null,null,null,null,null,null,null,null,null,null,null,null,752,220]
[null,null,null,null,null,null,null,null,null,null,null,null,null,null,null,null,null,null,null,null,null,null,null,null,null,null,null,null,null,null,null,null,null,null,null,null,null,null,null,null,null,null,null,null,null,null,null,null,null,null,null,null,null,null,null,null,null,null,null,null,null,null,null,null,null,null,null,null,null,null,null,null,null,null,null,null,null,null,null,null,null,null,null,null,null,null,null,null,null,null,null,null,null,null,null,null,null,null,null,null,753,280]
[null,null,null,null,null,null,null,null,null,null,null,null,null,null,null,null,null,null,null,null,null,null,null,null,null,null,null,null,null,null,null,null,null,null,null,null,null,null,null,null,null,null,null,null,null,null,null,null,null,null,null,null,null,null,null,null,null,null,null,null,null,null,null,null,null,null,null,null,null,null,null,null,null,null,null,null,null,null,null,null,null,null,null,null,null,null,null,null,null,null,null,null,null,null,null,null,null,null,null,null,754,80]
[null,null,null,null,null,null,null,null,null,null,null,null,null,null,null,null,null,null,null,null,null,null,null,null,null,null,null,null,null,null,null,null,null,null,null,null,null,null,null,null,null,null,null,null,null,null,null,null,null,null,null,null,null,null,null,null,null,null,null,null,null,null,null,null,null,null,null,null,null,null,null,null,null,null,null,null,null,null,null,null,null,null,null,null,null,null,null,null,null,null,null,null,null,null,null,null,null,null,null,null,755,60]
[null,null,null,null,null,null,null,null,null,null,null,null,null,null,null,null,null,null,null,null,null,null,null,null,null,null,null,null,null,null,null,null,null,null,null,null,null,null,null,null,null,null,null,null,null,null,null,null,null,null,null,null,null,null,null,null,null,null,null,null,null,null,null,null,null,null,null,null,null,null,null,null,null,null,null,null,null,null,null,null,null,null,null,null,null,null,null,null,null,null,null,null,null,null,null,null,null,null,null,null,756,260]
[null,null,null,null,null,null,null,null,null,null,null,null,null,null,null,null,null,null,null,null,null,null,null,null,null,null,null,null,null,null,null,null,null,null,null,null,null,null,null,null,null,null,null,null,null,null,null,null,null,null,null,null,null,null,null,null,null,null,null,null,null,null,null,null,null,null,null,null,null,null,null,null,null,null,null,null,null,null,null,null,null,null,null,null,null,null,null,null,null,null,null,null,null,null,null,null,null,null,null,null,757,260]
[null,null,null,null,null,null,null,null,null,null,null,null,null,null,null,null,null,null,null,null,null,null,null,null,null,null,null,null,null,null,null,null,null,null,null,null,null,null,null,null,null,null,null,null,null,null,null,null,null,null,null,null,null,null,null,null,null,null,null,null,null,null,null,null,null,null,null,null,null,null,null,null,null,null,null,null,null,null,null,null,null,null,null,null,null,null,null,null,null,null,null,null,null,null,null,null,null,null,null,null,758,280]
[null,null,null,null,null,null,null,null,null,null,null,null,null,null,null,null,null,null,null,null,null,null,null,null,null,null,null,null,null,null,null,null,null,null,null,null,null,null,null,null,null,null,null,null,null,null,null,null,null,null,null,null,null,null,null,null,null,null,null,null,null,null,null,null,null,null,null,null,null,null,null,null,null,null,null,null,null,null,null,null,null,null,null,null,null,null,null,null,null,null,null,null,null,null,null,null,null,null,null,null,850,0]
[null,null,null,null,null,null,null,null,null,null,null,null,null,null,null,null,null,null,null,null,null,null,null,null,null,null,null,null,null,null,null,null,null,null,null,null,null,null,null,null,null,null,null,null,null,null,null,null,null,null,null,null,null,null,null,null,null,null,null,null,null,null,null,null,null,null,null,null,null,null,null,null,null,null,null,null,null,null,null,null,null,null,null,null,null,null,null,null,null,null,null,null,null,null,null,null,null,null,null,null,851,0]
[null,null,null,null,null,null,null,null,null,null,null,null,null,null,null,null,null,null,null,null,null,null,null,null,null,null,null,null,null,null,null,null,null,null,null,null,null,null,null,null,null,null,null,null,null,null,null,null,null,null,null,null,null,null,null,null,null,null,null,null,null,null,null,null,null,null,null,null,null,null,null,null,null,null,null,null,null,null,null,null,null,null,null,null,null,null,null,null,null,null,null,null,null,null,null,null,null,null,null,null,852,0]
[null,null,null,null,null,null,null,null,null,null,null,null,null,null,null,null,null,null,null,null,null,null,null,null,null,null,null,null,null,null,null,null,null,null,null,null,null,null,null,null,null,null,null,null,null,null,null,null,null,null,null,null,null,null,null,null,null,null,null,null,null,null,null,null,null,null,null,null,null,null,null,null,null,null,null,null,null,null,null,null,null,null,null,null,null,null,null,null,null,null,null,null,null,null,null,null,null,null,null,null,853,0]
[null,null,null,null,null,null,null,null,null,null,null,null,null,null,null,null,null,null,null,null,null,null,null,null,null,null,null,null,null,null,null,null,null,null,null,null,null,null,null,null,null,null,null,null,null,null,null,null,null,null,null,null,null,null,null,null,null,null,null,null,null,null,null,null,null,null,null,null,null,null,null,null,null,null,null,null,null,null,null,null,null,null,null,null,null,null,null,null,null,null,null,null,null,null,null,null,null,null,null,null,854,0]
[null,null,null,null,null,null,null,null,null,null,null,null,null,null,null,null,null,null,null,null,null,null,null,null,null,null,null,null,null,null,null,null,null,null,null,null,null,null,null,null,null,null,null,null,null,null,null,null,null,null,null,null,null,null,null,null,null,null,null,null,null,null,null,null,null,null,null,null,null,null,null,null,null,null,null,null,null,null,null,null,null,null,null,null,null,null,null,null,null,null,null,null,null,null,null,null,null,null,null,null,855,0]
[null,null,null,null,null,null,null,null,null,null,null,null,null,null,null,null,null,null,null,null,null,null,null,null,null,null,null,null,null,null,null,null,null,null,null,null,null,null,null,null,null,null,null,null,null,null,null,null,null,null,null,null,null,null,null,null,null,null,null,null,null,null,null,null,null,null,null,null,null,null,null,null,null,null,null,null,null,null,null,null,null,null,null,null,null,null,null,null,null,null,null,null,null,null,null,null,null,null,null,null,856,60]
[null,null,null,null,null,null,null,null,null,null,null,null,null,null,null,null,null,null,null,null,null,null,null,null,null,null,null,null,null,null,null,null,null,null,null,null,null,null,null,null,null,null,null,null,null,null,null,null,null,null,null,null,null,null,null,null,null,null,null,null,null,null,null,null,null,null,null,null,null,null,null,null,null,null,null,null,null,null,null,null,null,null,null,null,null,null,null,null,null,null,null,null,null,null,null,null,null,null,null,null,857,80]
[null,null,null,null,null,null,null,null,null,null,null,null,null,null,null,null,null,null,null,null,null,null,null,null,null,null,null,null,null,null,null,null,null,null,null,null,null,null,null,null,null,null,null,null,null,null,null,null,null,null,null,null,null,null,null,null,null,null,null,null,null,null,null,null,null,null,null,null,null,null,null,null,null,null,null,null,null,null,null,null,null,null,null,null,null,null,null,null,null,null,null,null,null,null,null,null,null,null,null,null,858,100]
[null,null,null,null,null,null,null,null,null,null,null,null,null,null,null,null,null,null,null,null,null,null,null,null,null,null,null,null,null,null,null,null,null,null,null,null,null,null,null,null,null,null,null,null,null,null,null,null,null,null,null,null,null,null,null,null,null,null,null,null,null,null,null,null,null,null,null,null,null,null,null,null,null,null,null,null,null,null,null,null,null,null,null,null,null,null,null,null,null,null,null,null,null,null,null,null,null,null,null,null,859,180]
[null,null,null,null,null,null,null,null,null,null,null,null,null,null,null,null,null,null,null,null,null,null,null,null,null,null,null,null,null,null,null,null,null,null,null,null,null,null,null,null,null,null,null,null,null,null,null,null,null,null,null,null,null,null,null,null,null,null,null,null,null,null,null,null,null,null,null,null,null,null,null,null,null,null,null,null,null,null,null,null,null,null,null,null,null,null,null,null,null,null,null,null,null,null,null,null,null,null,null,null,860,260]
[null,null,null,null,null,null,null,null,null,null,null,null,null,null,null,null,null,null,null,null,null,null,null,null,null,null,null,null,null,null,null,null,null,null,null,null,null,null,null,null,null,null,null,null,null,null,null,null,null,null,null,null,null,null,null,null,null,null,null,null,null,null,null,null,null,null,null,null,null,null,null,null,null,null,null,null,null,null,null,null,null,null,null,null,null,null,null,null,null,null,null,null,null,null,null,null,null,null,null,null,861,240]
[null,null,null,null,null,null,null,null,null,null,null,null,null,null,null,null,null,null,null,null,null,null,null,null,null,null,null,null,null,null,null,null,null,null,null,null,null,null,null,null,null,null,null,null,null,null,null,null,null,null,null,null,null,null,null,null,null,null,null,null,null,null,null,null,null,null,null,null,null,null,null,null,null,null,null,null,null,null,null,null,null,null,null,null,null,null,null,null,null,null,null,null,null,null,null,null,null,null,null,null,862,280]
[null,null,null,null,null,null,null,null,null,null,null,null,null,null,null,null,null,null,null,null,null,null,null,null,null,null,null,null,null,null,null,null,null,null,null,null,null,null,null,null,null,null,null,null,null,null,null,null,null,null,null,null,null,null,null,null,null,null,null,null,null,null,null,null,null,null,null,null,null,null,null,null,null,null,null,null,null,null,null,null,null,null,null,null,null,null,null,null,null,null,null,null,null,null,null,null,null,null,null,null,863,280]
[null,null,null,null,null,null,null,null,null,null,null,null,null,null,null,null,null,null,null,null,null,null,null,null,null,null,null,null,null,null,null,null,null,null,null,null,null,null,null,null,null,null,null,null,null,null,null,null,null,null,null,null,null,null,null,null,null,null,null,null,null,null,null,null,null,null,null,null,null,null,null,null,null,null,null,null,null,null,null,null,null,null,null,null,null,null,null,null,null,null,null,null,null,null,null,null,null,null,null,null,864,280]
[null,null,null,null,null,null,null,null,null,null,null,null,null,null,null,null,null,null,null,null,null,null,null,null,null,null,null,null,null,null,null,null,null,null,null,null,null,null,null,null,null,null,null,null,null,null,null,null,null,null,null,null,null,null,null,null,null,null,null,null,null,null,null,null,null,null,null,null,null,null,null,null,null,null,null,null,null,null,null,null,null,null,null,null,null,null,null,null,null,null,null,null,null,null,null,null,null,null,null,null,865,280]
[null,null,null,null,null,null,null,null,null,null,null,null,null,null,null,null,null,null,null,null,null,null,null,null,null,null,null,null,null,null,null,null,null,null,null,null,null,null,null,null,null,null,null,null,null,null,null,null,null,null,null,null,null,null,null,null,null,null,null,null,null,null,null,null,null,null,null,null,null,null,null,null,null,null,null,null,null,null,null,null,null,null,null,null,null,null,null,null,null,null,null,null,null,null,null,null,null,null,null,null,866,280]
[null,null,null,null,null,null,null,null,null,null,null,null,null,null,null,null,null,null,null,null,null,null,null,null,null,null,null,null,null,null,null,null,null,null,null,null,null,null,null,null,null,null,null,null,null,null,null,null,null,null,null,null,null,null,null,null,null,null,null,null,null,null,null,null,null,null,null,null,null,null,null,null,null,null,null,null,null,null,null,null,null,null,null,null,null,null,null,null,null,null,null,null,null,null,null,null,null,null,null,null,867,280]
[null,null,null,null,null,null,null,null,null,null,null,null,null,null,null,null,null,null,null,null,null,null,null,null,null,null,null,null,null,null,null,null,null,null,null,null,null,null,null,null,null,null,null,null,null,null,null,null,null,null,null,null,null,null,null,null,null,null,null,null,null,null,null,null,null,null,null,null,null,null,null,null,null,null,null,null,null,null,null,null,null,null,null,null,null,null,null,null,null,null,null,null,null,null,null,null,null,null,null,null,868,280]
[null,null,null,null,null,null,null,null,null,null,null,null,null,null,null,null,null,null,null,null,null,null,null,null,null,null,null,null,null,null,null,null,null,null,null,null,null,null,null,null,null,null,null,null,null,null,null,null,null,null,null,null,null,null,null,null,null,null,null,null,null,null,null,null,null,null,null,null,null,null,null,null,null,null,null,null,null,null,null,null,null,null,null,null,null,null,null,null,null,null,null,null,null,null,null,null,null,null,null,null,869,280]
[null,null,null,null,null,null,null,null,null,null,null,null,null,null,null,null,null,null,null,null,null,null,null,null,null,null,null,null,null,null,null,null,null,null,null,null,null,null,null,null,null,null,null,null,null,null,null,null,null,null,null,null,null,null,null,null,null,null,null,null,null,null,null,null,null,null,null,null,null,null,null,null,null,null,null,null,null,null,null,null,null,null,null,null,null,null,null,null,null,null,null,null,null,null,null,null,null,null,null,null,870,280]
[null,null,null,null,null,null,null,null,null,null,null,null,null,null,null,null,null,null,null,null,null,null,null,null,null,null,null,null,null,null,null,null,null,null,null,null,null,null,null,null,null,null,null,null,null,null,null,null,null,null,null,null,null,null,null,null,null,null,null,null,null,null,null,null,null,null,null,null,null,null,null,null,null,null,null,null,null,null,null,null,null,null,null,null,null,null,null,null,null,null,null,null,null,null,null,null,null,null,null,null,871,280]
[null,null,null,null,null,null,null,null,null,null,null,null,null,null,null,null,null,null,null,null,null,null,null,null,null,null,null,null,null,null,null,null,null,null,null,null,null,null,null,null,null,null,null,null,null,null,null,null,null,null,null,null,null,null,null,null,null,null,null,null,null,null,null,null,null,null,null,null,null,null,null,null,null,null,null,null,null,null,null,null,null,null,null,null,null,null,null,null,null,null,null,null,null,null,null,null,null,null,null,null,872,280]
[null,null,null,null,null,null,null,null,null,null,null,null,null,null,null,null,null,null,null,null,null,null,null,null,null,null,null,null,null,null,null,null,null,null,null,null,null,null,null,null,null,null,null,null,null,null,null,null,null,null,null,null,null,null,null,null,null,null,null,null,null,null,null,null,null,null,null,null,null,null,null,null,null,null,null,null,null,null,null,null,null,null,null,null,null,null,null,null,null,null,null,null,null,null,null,null,null,null,null,null,873,280]
[null,null,null,null,null,null,null,null,null,null,null,null,null,null,null,null,null,null,null,null,null,null,null,null,null,null,null,null,null,null,null,null,null,null,null,null,null,null,null,null,null,null,null,null,null,null,null,null,null,null,null,null,null,null,null,null,null,null,null,null,null,null,null,null,null,null,null,null,null,null,null,null,null,null,null,null,null,null,null,null,null,null,null,null,null,null,null,null,null,null,null,null,null,null,null,null,null,null,null,null,874,280]
[null,null,null,null,null,null,null,null,null,null,null,null,null,null,null,null,null,null,null,null,null,null,null,null,null,null,null,null,null,null,null,null,null,null,null,null,null,null,null,null,null,null,null,null,null,null,null,null,null,null,null,null,null,null,null,null,null,null,null,null,null,null,null,null,null,null,null,null,null,null,null,null,null,null,null,null,null,null,null,null,null,null,null,null,null,null,null,null,null,null,null,null,null,null,null,null,null,null,null,null,875,280]
[null,null,null,null,null,null,null,null,null,null,null,null,null,null,null,null,null,null,null,null,null,null,null,null,null,null,null,null,null,null,null,null,null,null,null,null,null,null,null,null,null,null,null,null,null,null,null,null,null,null,null,null,null,null,null,null,null,null,null,null,null,null,null,null,null,null,null,null,null,null,null,null,null,null,null,null,null,null,null,null,null,null,null,null,null,null,null,null,null,null,null,null,null,null,null,null,null,null,null,null,876,280]
[null,null,null,null,null,null,null,null,null,null,null,null,null,null,null,null,null,null,null,null,null,null,null,null,null,null,null,null,null,null,null,null,null,null,null,null,null,null,null,null,null,null,null,null,null,null,null,null,null,null,null,null,null,null,null,null,null,null,null,null,null,null,null,null,null,null,null,null,null,null,null,null,null,null,null,null,null,null,null,null,null,null,null,null,null,null,null,null,null,null,null,null,null,null,null,null,null,null,null,null,877,280]
[null,null,null,null,null,null,null,null,null,null,null,null,null,null,null,null,null,null,null,null,null,null,null,null,null,null,null,null,null,null,null,null,null,null,null,null,null,null,null,null,null,null,null,null,null,null,null,null,null,null,null,null,null,null,null,null,null,null,null,null,null,null,null,null,null,null,null,null,null,null,null,null,null,null,null,null,null,null,null,null,null,null,null,null,null,null,null,null,null,null,null,null,null,null,null,null,null,null,null,null,878,280]
[null,null,null,null,null,null,null,null,null,null,null,null,null,null,null,null,null,null,null,null,null,null,null,null,null,null,null,null,null,null,null,null,null,null,null,null,null,null,null,null,null,null,null,null,null,null,null,null,null,null,null,null,null,null,null,null,null,null,null,null,null,null,null,null,null,null,null,null,null,null,null,null,null,null,null,null,null,null,null,null,null,null,null,null,null,null,null,null,null,null,null,null,null,null,null,null,null,null,null,null,879,280]
[null,null,null,null,null,null,null,null,null,null,null,null,null,null,null,null,null,null,null,null,null,null,null,null,null,null,null,null,null,null,null,null,null,null,null,null,null,null,null,null,null,null,null,null,null,null,null,null,null,null,null,null,null,null,null,null,null,null,null,null,null,null,null,null,null,null,null,null,null,null,null,null,null,null,null,null,null,null,null,null,null,null,null,null,null,null,null,null,null,null,null,null,null,null,null,null,null,null,null,null,880,280]
[null,null,null,null,null,null,null,null,null,null,null,null,null,null,null,null,null,null,null,null,null,null,null,null,null,null,null,null,null,null,null,null,null,null,null,null,null,null,null,null,null,null,null,null,null,null,null,null,null,null,null,null,null,null,null,null,null,null,null,null,null,null,null,null,null,null,null,null,null,null,null,null,null,null,null,null,null,null,null,null,null,null,null,null,null,null,null,null,null,null,null,null,null,null,null,null,null,null,null,null,881,280]
[null,null,null,null,null,null,null,null,null,null,null,null,null,null,null,null,null,null,null,null,null,null,null,null,null,null,null,null,null,null,null,null,null,null,null,null,null,null,null,null,null,null,null,null,null,null,null,null,null,null,null,null,null,null,null,null,null,null,null,null,null,null,null,null,null,null,null,null,null,null,null,null,null,null,null,null,null,null,null,null,null,null,null,null,null,null,null,null,null,null,null,null,null,null,null,null,null,null,null,null,882,280]
[null,null,null,null,null,null,null,null,null,null,null,null,null,null,null,null,null,null,null,null,null,null,null,null,null,null,null,null,null,null,null,null,null,null,null,null,null,null,null,null,null,null,null,null,null,null,null,null,null,null,null,null,null,null,null,null,null,null,null,null,null,null,null,null,null,null,null,null,null,null,null,null,null,null,null,null,null,null,null,null,null,null,null,null,null,null,null,null,null,null,null,null,null,null,null,null,null,null,null,null,883,280]
[null,null,null,null,null,null,null,null,null,null,null,null,null,null,null,null,null,null,null,null,null,null,null,null,null,null,null,null,null,null,null,null,null,null,null,null,null,null,null,null,null,null,null,null,null,null,null,null,null,null,null,null,null,null,null,null,null,null,null,null,null,null,null,null,null,null,null,null,null,null,null,null,null,null,null,null,null,null,null,null,null,null,null,null,null,null,null,null,null,null,null,null,null,null,null,null,null,null,null,null,884,280]
[null,null,null,null,null,null,null,null,null,null,null,null,null,null,null,null,null,null,null,null,null,null,null,null,null,null,null,null,null,null,null,null,null,null,null,null,null,null,null,null,null,null,null,null,null,null,null,null,null,null,null,null,null,null,null,null,null,null,null,null,null,null,null,null,null,null,null,null,null,null,null,null,null,null,null,null,null,null,null,null,null,null,null,null,null,null,null,null,null,null,null,null,null,null,null,null,null,null,null,null,885,280]
[null,null,null,null,null,null,null,null,null,null,null,null,null,null,null,null,null,null,null,null,null,null,null,null,null,null,null,null,null,null,null,null,null,null,null,null,null,null,null,null,null,null,null,null,null,null,null,null,null,null,null,null,null,null,null,null,null,null,null,null,null,null,null,null,null,null,null,null,null,null,null,null,null,null,null,null,null,null,null,null,null,null,null,null,null,null,null,null,null,null,null,null,null,null,null,null,null,null,null,null,886,280]
[null,null,null,null,null,null,null,null,null,null,null,null,null,null,null,null,null,null,null,null,null,null,null,null,null,null,null,null,null,null,null,null,null,null,null,null,null,null,null,null,null,null,null,null,null,null,null,null,null,null,null,null,null,null,null,null,null,null,null,null,null,null,null,null,null,null,null,null,null,null,null,null,null,null,null,null,null,null,null,null,null,null,null,null,null,null,null,null,null,null,null,null,null,null,null,null,null,null,null,null,887,280]
[null,null,null,null,null,null,null,null,null,null,null,null,null,null,null,null,null,null,null,null,null,null,null,null,null,null,null,null,null,null,null,null,null,null,null,null,null,null,null,null,null,null,null,null,null,null,null,null,null,null,null,null,null,null,null,null,null,null,null,null,null,null,null,null,null,null,null,null,null,null,null,null,null,null,null,null,null,null,null,null,null,null,null,null,null,null,null,null,null,null,null,null,null,null,null,null,null,null,null,null,888,280]
[null,null,null,null,null,null,null,null,null,null,null,null,null,null,null,null,null,null,null,null,null,null,null,null,null,null,null,null,null,null,null,null,null,null,null,null,null,null,null,null,null,null,null,null,null,null,null,null,null,null,null,null,null,null,null,null,null,null,null,null,null,null,null,null,null,null,null,null,null,null,null,null,null,null,null,null,null,null,null,null,null,null,null,null,null,null,null,null,null,null,null,null,null,null,null,null,null,null,null,null,889,240]
[null,null,null,null,null,null,null,null,null,null,null,null,null,null,null,null,null,null,null,null,null,null,null,null,null,null,null,null,null,null,null,null,null,null,null,null,null,null,null,null,null,null,null,null,null,null,null,null,null,null,null,null,null,null,null,null,null,null,null,null,null,null,null,null,null,null,null,null,null,null,null,null,null,null,null,null,null,null,null,null,null,null,null,null,null,null,null,null,null,null,null,null,null,null,null,null,null,null,null,null,890,280]
[null,null,null,null,null,null,null,null,null,null,null,null,null,null,null,null,null,null,null,null,null,null,null,null,null,null,null,null,null,null,null,null,null,null,null,null,null,null,null,null,null,null,null,null,null,null,null,null,null,null,null,null,null,null,null,null,null,null,null,null,null,null,null,null,null,null,null,null,null,null,null,null,null,null,null,null,null,null,null,null,null,null,null,null,null,null,null,null,null,null,null,null,null,null,null,null,null,null,null,null,891,280]
[null,null,null,null,null,null,null,null,null,null,null,null,null,null,null,null,null,null,null,null,null,null,null,null,null,null,null,null,null,null,null,null,null,null,null,null,null,null,null,null,null,null,null,null,null,null,null,null,null,null,null,null,null,null,null,null,null,null,null,null,null,null,null,null,null,null,null,null,null,null,null,null,null,null,null,null,null,null,null,null,null,null,null,null,null,null,null,null,null,null,null,null,null,null,null,null,null,null,null,null,892,280]
[null,null,null,null,null,null,null,null,null,null,null,null,null,null,null,null,null,null,null,null,null,null,null,null,null,null,null,null,null,null,null,null,null,null,null,null,null,null,null,null,null,null,null,null,null,null,null,null,null,null,null,null,null,null,null,null,null,null,null,null,null,null,null,null,null,null,null,null,null,null,null,null,null,null,null,null,null,null,null,null,null,null,null,null,null,null,null,null,null,null,null,null,null,null,null,null,null,null,null,null,950,280]
[null,null,null,null,null,null,null,null,null,null,null,null,null,null,null,null,null,null,null,null,null,null,null,null,null,null,null,null,null,null,null,null,null,null,null,null,null,null,null,null,null,null,null,null,null,null,null,null,null,null,null,null,null,null,null,null,null,null,null,null,null,null,null,null,null,null,null,null,null,null,null,null,null,null,null,null,null,null,null,null,null,null,null,null,null,null,null,null,null,null,null,null,null,null,null,null,null,null,null,null,951,280]
[null,null,null,null,null,null,null,null,null,null,null,null,null,null,null,null,null,null,null,null,null,null,null,null,null,null,null,null,null,null,null,null,null,null,null,null,null,null,null,null,null,null,null,null,null,null,null,null,null,null,null,null,null,null,null,null,null,null,null,null,null,null,null,null,null,null,null,null,null,null,null,null,null,null,null,null,null,null,null,null,null,null,null,null,null,null,null,null,null,null,null,null,null,null,null,null,null,null,null,null,952,280]
[null,null,null,null,null,null,null,null,null,null,null,null,null,null,null,null,null,null,null,null,null,null,null,null,null,null,null,null,null,null,null,null,null,null,null,null,null,null,null,null,null,null,null,null,null,null,null,null,null,null,null,null,null,null,null,null,null,null,null,null,null,null,null,null,null,null,null,null,null,null,null,null,null,null,null,null,null,null,null,null,null,null,null,null,null,null,null,null,null,null,null,null,null,null,null,null,null,null,null,null,953,280]
[null,null,null,null,null,null,null,null,null,null,null,null,null,null,null,null,null,null,null,null,null,null,null,null,null,null,null,null,null,null,null,null,null,null,null,null,null,null,null,null,null,null,null,null,null,null,null,null,null,null,null,null,null,null,null,null,null,null,null,null,null,null,null,null,null,null,null,null,null,null,null,null,null,null,null,null,null,null,null,null,null,null,null,null,null,null,null,null,null,null,null,null,null,null,null,null,null,null,null,null,954,280]
[null,null,null,null,null,null,null,null,null,null,null,null,null,null,null,null,null,null,null,null,null,null,null,null,null,null,null,null,null,null,null,null,null,null,null,null,null,null,null,null,null,null,null,null,null,null,null,null,null,null,null,null,null,null,null,null,null,null,null,null,null,null,null,null,null,null,null,null,null,null,null,null,null,null,null,null,null,null,null,null,null,null,null,null,null,null,null,null,null,null,null,null,null,null,null,null,null,null,null,null,955,280]
[null,null,null,null,null,null,null,null,null,null,null,null,null,null,null,null,null,null,null,null,null,null,null,null,null,null,null,null,null,null,null,null,null,null,null,null,null,null,null,null,null,null,null,null,null,null,null,null,null,null,null,null,null,null,null,null,null,null,null,null,null,null,null,null,null,null,null,null,null,null,null,null,null,null,null,null,null,null,null,null,null,null,null,null,null,null,null,null,null,null,null,null,null,null,null,null,null,null,null,null,956,280]
[null,null,null,null,null,null,null,null,null,null,null,null,null,null,null,null,null,null,null,null,null,null,null,null,null,null,null,null,null,null,null,null,null,null,null,null,null,null,null,null,null,null,null,null,null,null,null,null,null,null,null,null,null,null,null,null,null,null,null,null,null,null,null,null,null,null,null,null,null,null,null,null,null,null,null,null,null,null,null,null,null,null,null,null,null,null,null,null,null,null,null,null,null,null,null,null,null,null,null,null,957,280]
[null,null,null,null,null,null,null,null,null,null,null,null,null,null,null,null,null,null,null,null,null,null,null,null,null,null,null,null,null,null,null,null,null,null,null,null,null,null,null,null,null,null,null,null,null,null,null,null,null,null,null,null,null,null,null,null,null,null,null,null,null,null,null,null,null,null,null,null,null,null,null,null,null,null,null,null,null,null,null,null,null,null,null,null,null,null,null,null,null,null,null,null,null,null,null,null,null,null,null,null,960,280]
[null,null,null,null,null,null,null,null,null,null,null,null,null,null,null,null,null,null,null,null,null,null,null,null,null,null,null,null,null,null,null,null,null,null,null,null,null,null,null,null,null,null,null,null,null,null,null,null,null,null,null,null,null,null,null,null,null,null,null,null,null,null,null,null,null,null,null,null,null,null,null,null,null,null,null,null,null,null,null,null,null,null,null,null,null,null,null,null,null,null,null,null,null,null,null,null,null,null,null,null,961,280]
[null,null,null,null,null,null,null,null,null,null,null,null,null,null,null,null,null,null,null,null,null,null,null,null,null,null,null,null,null,null,null,null,null,null,null,null,null,null,null,null,null,null,null,null,null,null,null,null,null,null,null,null,null,null,null,null,null,null,null,null,null,null,null,null,null,null,null,null,null,null,null,null,null,null,null,null,null,null,null,null,null,null,null,null,null,null,null,null,null,null,null,null,null,null,null,null,null,null,null,null,962,280]
[null,null,null,null,null,null,null,null,null,null,null,null,null,null,null,null,null,null,null,null,null,null,null,null,null,null,null,null,null,null,null,null,null,null,null,null,null,null,null,null,null,null,null,null,null,null,null,null,null,null,null,null,null,null,null,null,null,null,null,null,null,null,null,null,null,null,null,null,null,null,null,null,null,null,null,null,null,null,null,null,null,null,null,null,null,null,null,null,null,null,null,null,null,null,null,null,null,null,null,null,963,280]
[null,null,null,null,null,null,null,null,null,null,null,null,null,null,null,null,null,null,null,null,null,null,null,null,null,null,null,null,null,null,null,null,null,null,null,null,null,null,null,null,null,null,null,null,null,null,null,null,null,null,null,null,null,null,null,null,null,null,null,null,null,null,null,null,null,null,null,null,null,null,null,null,null,null,null,null,null,null,null,null,null,null,null,null,null,null,null,null,null,null,null,null,null,null,null,null,null,null,null,null,964,280]
[null,null,null,null,null,null,null,null,null,null,null,null,null,null,null,null,null,null,null,null,null,null,null,null,null,null,null,null,null,null,null,null,null,null,null,null,null,null,null,null,null,null,null,null,null,null,null,null,null,null,null,null,null,null,null,null,null,null,null,null,null,null,null,null,null,null,null,null,null,null,null,null,null,null,null,null,null,null,null,null,null,null,null,null,null,null,null,null,null,null,null,null,null,null,null,null,null,null,null,null,965,280]
[null,null,null,null,null,null,null,null,null,null,null,null,null,null,null,null,null,null,null,null,null,null,null,null,null,null,null,null,null,null,null,null,null,null,null,null,null,null,null,null,null,null,null,null,null,null,null,null,null,null,null,null,null,null,null,null,null,null,null,null,null,null,null,null,null,null,null,null,null,null,null,null,null,null,null,null,null,null,null,null,null,null,null,null,null,null,null,null,null,null,null,null,null,null,null,null,null,null,null,null,966,280]
[null,null,null,null,null,null,null,null,null,null,null,null,null,null,null,null,null,null,null,null,null,null,null,null,null,null,null,null,null,null,null,null,null,null,null,null,null,null,null,null,null,null,null,null,null,null,null,null,null,null,null,null,null,null,null,null,null,null,null,null,null,null,null,null,null,null,null,null,null,null,null,null,null,null,null,null,null,null,null,null,null,null,null,null,null,null,null,null,null,null,null,null,null,null,null,null,null,null,null,null,967,280]
[null,null,null,null,null,null,null,null,null,null,null,null,null,null,null,null,null,null,null,null,null,null,null,null,null,null,null,null,null,null,null,null,null,null,null,null,null,null,null,null,null,null,null,null,null,null,null,null,null,null,null,null,null,null,null,null,null,null,null,null,null,null,null,null,null,null,null,null,null,null,null,null,null,null,null,null,null,null,null,null,null,null,null,null,null,null,null,null,null,null,null,null,null,null,null,null,null,null,null,null,970,280]
[null,null,null,null,null,null,null,null,null,null,null,null,null,null,null,null,null,null,null,null,null,null,null,null,null,null,null,null,null,null,null,null,null,null,null,null,null,null,null,null,null,null,null,null,null,null,null,null,null,null,null,null,null,null,null,null,null,null,null,null,null,null,null,null,null,null,null,null,null,null,null,null,null,null,null,null,null,null,null,null,null,null,null,null,null,null,null,null,null,null,null,null,null,null,null,null,null,null,null,null,980,280]
[null,null,null,null,null,null,null,null,null,null,null,null,null,null,null,null,null,null,null,null,null,null,null,null,null,null,null,null,null,null,null,null,null,null,null,null,null,null,null,null,null,null,null,null,null,null,null,null,null,null,null,null,null,null,null,null,null,null,null,null,null,null,null,null,null,null,null,null,null,null,null,null,null,null,null,null,null,null,null,null,null,null,null,null,null,null,null,null,null,null,null,null,null,null,null,null,null,null,null,null,981,280]
[null,null,null,null,null,null,null,null,null,null,null,null,null,null,null,null,null,null,null,null,null,null,null,null,null,null,null,null,null,null,null,null,null,null,null,null,null,null,null,null,null,null,null,null,null,null,null,null,null,null,null,null,null,null,null,null,null,null,null,null,null,null,null,null,null,null,null,null,null,null,null,null,null,null,null,null,null,null,null,null,null,null,null,null,null,null,null,null,null,null,null,null,null,null,null,null,null,null,null,null,982,280]
[null,null,null,null,null,null,null,null,null,null,null,null,null,null,null,null,null,null,null,null,null,null,null,null,null,null,null,null,null,null,null,null,null,null,null,null,null,null,null,null,null,null,null,null,null,null,null,null,null,null,null,null,null,null,null,null,null,null,null,null,null,null,null,null,null,null,null,null,null,null,null,null,null,null,null,null,null,null,null,null,null,null,null,null,null,null,null,null,null,null,null,null,null,null,null,null,null,null,null,null,983,280]
[null,null,null,null,null,null,null,null,null,null,null,null,null,null,null,null,null,null,null,null,null,null,null,null,null,null,null,null,null,null,null,null,null,null,null,null,null,null,null,null,null,null,null,null,null,null,null,null,null,null,null,null,null,null,null,null,null,null,null,null,null,null,null,null,null,null,null,null,null,null,null,null,null,null,null,null,null,null,null,null,null,null,null,null,null,null,null,null,null,null,null,null,null,null,null,null,null,null,null,null,984,280]
[null,null,null,null,null,null,null,null,null,null,null,null,null,null,null,null,null,null,null,null,null,null,null,null,null,null,null,null,null,null,null,null,null,null,null,null,null,null,null,null,null,null,null,null,null,null,null,null,null,null,null,null,null,null,null,null,null,null,null,null,null,null,null,null,null,null,null,null,null,null,null,null,null,null,null,null,null,null,null,null,null,null,null,null,null,null,null,null,null,null,null,null,null,null,null,null,null,null,null,null,985,280]
[null,null,null,null,null,null,null,null,null,null,null,null,null,null,null,null,null,null,null,null,null,null,null,null,null,null,null,null,null,null,null,null,null,null,null,null,null,null,null,null,null,null,null,null,null,null,null,null,null,null,null,null,null,null,null,null,null,null,null,null,null,null,null,null,null,null,null,null,null,null,null,null,null,null,null,null,null,null,null,null,null,null,null,null,null,null,null,null,null,null,null,null,null,null,null,null,null,null,null,null,986,280]
[null,null,null,null,null,null,null,null,null,null,null,null,null,null,null,null,null,null,null,null,null,null,null,null,null,null,null,null,null,null,null,null,null,null,null,null,null,null,null,null,null,null,null,null,null,null,null,null,null,null,null,null,null,null,null,null,null,null,null,null,null,null,null,null,null,null,null,null,null,null,null,null,null,null,null,null,null,null,null,null,null,null,null,null,null,null,null,null,null,null,null,null,null,null,null,null,null,null,null,null,987,280]
[null,null,null,null,null,null,null,null,null,null,null,null,null,null,null,null,null,null,null,null,null,null,null,null,null,null,null,null,null,null,null,null,null,null,null,null,null,null,null,null,null,null,null,null,null,null,null,null,null,null,null,null,null,null,null,null,null,null,null,null,null,null,null,null,null,null,null,null,null,null,null,null,null,null,null,null,null,null,null,null,null,null,null,null,null,null,null,null,null,null,null,null,null,null,null,null,null,null,null,null,990,280]
[null,null,null,null,null,null,null,null,null,null,null,null,null,null,null,null,null,null,null,null,null,null,null,null,null,null,null,null,null,null,null,null,null,null,null,null,null,null,null,null,null,null,null,null,null,null,null,null,null,null,null,null,null,null,null,null,null,null,null,null,null,null,null,null,null,null,null,null,null,null,null,null,null,null,null,null,null,null,null,null,null,null,null,null,null,null,null,null,null,null,null,null,null,null,null,null,null,null,null,null,995,0]

{"sheet":"Calcul - PEEOL - Usine ","index":3,"n_rows":179,"n_cols":102,"rows_kept":179,"cut":false,"hidden":true,"merged":[[24,0,24,5],[26,0,26,5],[33,0,33,5],[37,0,37,5],[41,0,41,5],[28,0,28,8],[29,0,29,5],[40,0,40,5],[78,0,78,5],[78,6,78,8],[72,0,74,5],[72,6,74,8],[75,0,75,5],[75,6,75,8],[76,0,77,5],[76,6,77,8],[71,0,71,8],[61,0,63,5],[61,6,63,8],[64,0,64,5],[64,6,64,8],[65,0,66,5],[65,6,66,8],[67,0,67,5],[67,6,67,8],[68,0,68,8],[69,0,69,8],[70,0,70,8],[46,0,46,8],[47,0,47,8],[60,0,60,8],[49,0,49,8],[50,0,52,5],[50,6,52,8],[53,0,53,5],[53,6,53,8],[54,0,55,5],[54,6,55,8],[56,0,56,5],[56,6,56,8],[57,0,57,8],[58,0,58,8],[59,0,59,8],[48,0,48,8],[9,0,9,4],[44,0,44,5],[45,0,45,8],[17,0,17,5],[27,0,27,5],[42,0,42,5],[31,0,31,5],[30,0,30,5],[32,0,32,5],[34,0,34,5],[35,0,35,5],[38,0,38,5],[39,0,39,5],[25,0,25,5],[43,0,43,8],[36,0,36,5],[21,0,21,5],[11,0,11,8],[12,0,12,5],[13,0,13,5],[23,0,23,5],[18,0,18,5],[15,0,15,5],[14,0,14,5],[16,0,16,5],[20,0,20,5],[19,0,19,5],[22,0,22,5],[7,0,7,5],[7,6,7,8],[8,6,8,8],[10,0,10,5],[0,0,0,8],[1,0,1,8],[2,0,2,6],[2,7,2,8],[3,0,3,5],[3,6,3,8],[4,0,4,8],[5,0,5,5],[5,6,5,8],[6,0,6,5],[6,6,6,8],[8,0,8,5]]}
[]
["Programme exceptionnel d’écoulement des bois feuillus de faible qualité des régions de l’Outaouais et des Laurentides\nForêt publique\nAnnexe au rapport et au calcul de l'aide pour le transport des bois\n2020-2021              \n"]
[" *** Veuillez saisir les informations dans les cellules blanches (Planification et Usine de destination) et jaunes (Ministère) ***",null,null,null,null,null,null,"Version 5 - FPu : 2021-02-03"]
["Contexte d'utilisation",null,null,null,null,null,"Inscrire une valeur"]
["Identification"]
["Unité d'aménagement (UA)"]
["Secteur d'intervention"]
["Unité de compilation"]
["Numéro de la prescription"]
["Zone de tarification\nValeur requise pour la deuxième section seulement",null,null,null,null,{"$f":"IF(ISNA(VLOOKUP($I$10,Zone_de_tarification_Admissibilite,1,FALSE)),\"Non_admissible\",\"Question\")","v":"Non_admissible"},null,null,"Inscrire une valeur"]
["Inscrire les renseignements dans la colonne associée au contexte d'utilisation",null,null,null,null,null,"Planification","Usine de destination","Ministère"]
["Admissibilité et calcul de l'aide au transport — À partir de l'usine de sciage ou de la cour de triage et vers une usine de transformation des bois de trituration"]
["Volume provenant de la région de l'Outaouais ou des Laurentides ?"]
["Détenteur d'une entente gré à gré pour transporter ces bois ?"]
["Ville de provenance des bois de trituration"]
["Volume transporté pour l'usine de destination #1 (m3)"]
["Usine de destination des bois de trituration #1"]
["Taux d'aide au transport ($/m3) - Usine de destination #1",null,null,null,null,null,{"$f":"IFERROR(IF(AND(EXACT(UPPER($G$13),UPPER(Menus!$A$2)),EXACT(UPPER($G$14),UPPER(Menus!$A$2))),VLOOKUP(CONCATENATE($G$15,\" - \",$G$17),Tableau_Provenance_Destination_BGAD_Usine_A,4,FALSE),0),0)","v":0},{"$f":"IFERROR(IF(OR(EXACT(UPPER($G$4),UPPER(Menus!$A$47)),EXACT(UPPER($G$4),UPPER(Menus!$A$48))),IF(AND(EXACT(UPPER($H$13),UPPER(Menus!$A$2)),EXACT(UPPER($H$14),UPPER(Menus!$A$2))),VLOOKUP(CONCATENATE($H$15,\" - \",$H$17),Tableau_Provenance_Destination_BGAD_Usine_A,4,FALSE),0),0),0)","v":0},{"$f":"IFERROR(IF(EXACT(UPPER($G$4),UPPER(Menus!$A$48)),IF(AND(EXACT(UPPER($I$13),UPPER(Menus!$A$2)),EXACT(UPPER($I$14),UPPER(Menus!$A$2))),VLOOKUP(CONCATENATE($I$15,\" - \",$I$17),Tableau_Provenance_Destination_BGAD_Usine_A,4,FALSE),0),0),0)","v":0}]
["Sous-total pour l'usine #1 ($)",null,null,null,null,null,{"$f":"IFERROR(ROUND($G$16*$G$18,2),0)","v":0},{"$f":"IFERROR(ROUND($H$16*$H$18,2),0)","v":0},{"$f":"IFERROR(ROUND($I$16*$I$18,2),0)","v":0}]
["Volume transporté pour l'usine de destination #2 (m3)"]
["Usine de destination des bois de trituration #2"]
["Taux d'aide au transport ($/m3) - Usine de destination #2",null,null,null,null,null,{"$f":"IFERROR(IF(AND(EXACT(UPPER($G$13),UPPER(Menus!$A$2)),EXACT(UPPER($G$14),UPPER(Menus!$A$2))),VLOOKUP(CONCATENATE($G$15,\" - \",$G$21),Tableau_Provenance_Destination_BGAD_Usine_A,4,FALSE),0),0)","v":0},{"$f":"IFERROR(IF(OR(EXACT(UPPER($G$4),UPPER(Menus!$A$47)),EXACT(UPPER($G$4),UPPER(Menus!$A$48))),IF(AND(EXACT(UPPER($H$13),UPPER(Menus!$A$2)),EXACT(UPPER($H$14),UPPER(Menus!$A$2))),VLOOKUP(CONCATENATE($H$15,\" - \",$H$21),Tableau_Provenance_Destination_BGAD_Usine_A,4,FALSE),0),0),0)","v":0},{"$f":"IFERROR(IF(EXACT(UPPER($G$4),UPPER(Menus!$A$48)),IF(AND(EXACT(UPPER($I$13),UPPER(Menus!$A$2)),EXACT(UPPER($I$14),UPPER(Menus!$A$2))),VLOOKUP(CONCATENATE($I$15,\" - \",$I$21),Tableau_Provenance_Destination_BGAD_Usine_A,4,FALSE),0),0),0)","v":0}]
["Sous-total pour l'usine #2 ($)",null,null,null,null,null,{"$f":"IFERROR(ROUND($G$20*$G$22,2),0)","v":0},{"$f":"IFERROR(ROUND($H$20*$H$22,2),0)","v":0},{"$f":"IFERROR(ROUND($I$20*$I$22,2),0)","v":0}]
["Volume transporté pour l'usine de destination #3 (m3)"]
["Usine de destination des bois de trituration #3"]
["Taux d'aide au transport ($/m3) - Usine de destination #3",null,null,null,null,null,{"$f":"IFERROR(IF(AND(EXACT(UPPER($G$13),UPPER(Menus!$A$2)),EXACT(UPPER($G$14),UPPER(Menus!$A$2))),VLOOKUP(CONCATENATE($G$15,\" - \",$G$25),Tableau_Provenance_Destination_BGAD_Usine_A,4,FALSE),0),0)","v":0},{"$f":"IFERROR(IF(OR(EXACT(UPPER($G$4),UPPER(Menus!$A$47)),EXACT(UPPER($G$4),UPPER(Menus!$A$48))),IF(AND(EXACT(UPPER($H$13),UPPER(Menus!$A$2)),EXACT(UPPER($H$14),UPPER(Menus!$A$2))),VLOOKUP(CONCATENATE($H$15,\" - \",$H$25),Tableau_Provenance_Destination_BGAD_Usine_A,4,FALSE),0),0),0)","v":0},{"$f":"IFERROR(IF(EXACT(UPPER($G$4),UPPER(Menus!$A$48)),IF(AND(EXACT(UPPER($I$13),UPPER(Menus!$A$2)),EXACT(UPPER($I$14),UPPER(Menus!$A$2))),VLOOKUP(CONCATENATE($I$15,\" - \",$I$25),Tableau_Provenance_Destination_BGAD_Usine_A,4,FALSE),0),0),0)","v":0}]
["Sous-total pour l'usine #3 ($)",null,null,null,null,null,{"$f":"IFERROR(ROUND($G$24*$G$26,2),0)","v":0},{"$f":"IFERROR(ROUND($H$24*$H$26,2),0)","v":0},{"$f":"IFERROR(ROUND($I$24*$I$26,2),0)","v":0}]
["Total admissible ($)",null,null,null,null,null,{"$f":"IFERROR(ROUND(SUM($G$19,$G$23,$G$27),2),0)","v":0},{"$f":"IFERROR(ROUND(SUM($H$19,$H$23,$H$27),2),0)","v":0},{"$f":"IFERROR(ROUND(SUM($I$19,$I$23,$I$27),2),0)","v":0}]
["Admissibilité et calcul de l'aide au transport — À partir de la forêt et directement vers une usine de transformation des bois de trituration\nInscrire une valeur à I10"]
["Entente BGAD  et Utilisateur des bois — Le transport des bois est fait directement à partir de la\nforêt ?"]
["Volume transporté pour l'usine de destination #1 (m3)"]
["Usine de destination des bois de trituration #1"]
["Taux d'aide au transport - Usine de destination #1 ($/m3)",null,null,null,null,null,{"$f":"IFERROR(IF(EXACT(UPPER($G$30),UPPER(Menus!$A$2)),ROUND(VLOOKUP(CONCATENATE($I$10,\" - \",$G$32),Tableau_Provenance_Destination_BGAD_Usine_B,4,FALSE),2),0),0)","v":0},{"$f":"IFERROR(IF(OR(EXACT(UPPER($G$4),UPPER(Menus!$A$47)),EXACT(UPPER($G$4),UPPER(Menus!$A$48))),IF(EXACT(UPPER($H$30),UPPER(Menus!$A$2)),ROUND(VLOOKUP(CONCATENATE($I$10,\" - \",$H$32),Tableau_Provenance_Destination_BGAD_Usine_B,4,FALSE),2),0),0),0)","v":0},{"$f":"IFERROR(IF(EXACT(UPPER($G$4),UPPER(Menus!$A$48)),IF(EXACT(UPPER($I$30),UPPER(Menus!$A$2)),ROUND(VLOOKUP(CONCATENATE($I$10,\" - \",$I$32),Tableau_Provenance_Destination_BGAD_Usine_B,4,FALSE),2),0),0),0)","v":0}]
["Sous-total pour l'usine #1 ($)",null,null,null,null,null,{"$f":"IFERROR(ROUND($G$33*$G$31,2),0)","v":0},{"$f":"IFERROR(ROUND($H$33*$H$31,2),0)","v":0},{"$f":"IFERROR(ROUND($I$33*$I$31,2),0)","v":0}]
["Volume transporté pour l'usine de destination #2 (m3)"]
["Usine de destination des bois de trituration #2"]
["Taux d'aide au transport - Usine de destination #2 ($/m3)",null,null,null,null,null,{"$f":"IFERROR(IF(EXACT(UPPER($G$30),UPPER(Menus!$A$2)),ROUND(VLOOKUP(CONCATENATE($I$10,\" - \",$G$36),Tableau_Provenance_Destination_BGAD_Usine_B,4,FALSE),2),0),0)","v":0},{"$f":"IFERROR(IF(OR(EXACT(UPPER($G$4),UPPER(Menus!$A$47)),EXACT(UPPER($G$4),UPPER(Menus!$A$48))),IF(EXACT(UPPER($H$30),UPPER(Menus!$A$2)),ROUND(VLOOKUP(CONCATENATE($I$10,\" - \",$H$36),Tableau_Provenance_Destination_BGAD_Usine_B,4,FALSE),2),0),0),0)","v":0},{"$f":"IFERROR(IF(EXACT(UPPER($G$4),UPPER(Menus!$A$48)),IF(EXACT(UPPER($I$30),UPPER(Menus!$A$2)),ROUND(VLOOKUP(CONCATENATE($I$10,\" - \",$I$36),Tableau_Provenance_Destination_BGAD_Usine_B,4,FALSE),2),0),0),0)","v":0}]
["Sous-total pour l'usine #2 ($)",null,null,null,null,null,{"$f":"IFERROR(ROUND($G$37*$G$35,2),0)","v":0},{"$f":"IFERROR(ROUND($H$37*$H$35,2),0)","v":0},{"$f":"IFERROR(ROUND($I$37*$I$35,2),0)","v":0}]
["Volume transporté pour l'usine de destination #3 (m3)"]
["Usine de destination des bois de trituration #3"]
["Taux d'aide au transport - Usine de destination #3 ($/m3)",null,null,null,null,null,{"$f":"IFERROR(IF(EXACT(UPPER($G$30),UPPER(Menus!$A$2)),ROUND(VLOOKUP(CONCATENATE($I$10,\" - \",$G$40),Tableau_Provenance_Destination_BGAD_Usine_B,4,FALSE),2),0),0)","v":0},{"$f":"IFERROR(IF(OR(EXACT(UPPER($G$4),UPPER(Menus!$A$47)),EXACT(UPPER($G$4),UPPER(Menus!$A$48))),IF(EXACT(UPPER($H$30),UPPER(Menus!$A$2)),ROUND(VLOOKUP(CONCATENATE($I$10,\" - \",$H$40),Tableau_Provenance_Destination_BGAD_Usine_B,4,FALSE),2),0),0),0)","v":0},{"$f":"IFERROR(IF(EXACT(UPPER($G$4),UPPER(Menus!$A$48)),IF(EXACT(UPPER($I$30),UPPER(Menus!$A$2)),ROUND(VLOOKUP(CONCATENATE($I$10,\" - \",$I$40),Tableau_Provenance_Destination_BGAD_Usine_B,4,FALSE),2),0),0),0)","v":0}]
["Sous-total pour l'usine #3 ($)",null,null,null,null,null,{"$f":"IFERROR(ROUND($G$41*$G$39,2),0)","v":0},{"$f":"IFERROR(ROUND($H$41*$H$39,2),0)","v":0},{"$f":"IFERROR(ROUND($I$41*$I$39,2),0)","v":0}]
["Total admissible ($)",null,null,null,null,null,{"$f":"IFERROR(ROUND(SUM($G$34,$G$38,$G$42),2),0)","v":0},{"$f":"IFERROR(ROUND(SUM($H$34,$H$38,$H$42),2),0)","v":0},{"$f":"IFERROR(ROUND(SUM($I$34,$I$38,$I$42),2),0)","v":0}]
["Résumé de l'aide pour le Programme exceptionnel d’écoulement des bois feuillus de faible qualité des régions de l’Outaouais et des Laurentides"]
["Grand total admissible ($)",null,null,null,null,null,{"$f":"IFERROR(ROUND(SUM($G$43,$G$28),2),0)","v":0},{"$f":"IFERROR(ROUND(SUM($H$43,$H$28),2),0)","v":0},{"$f":"IFERROR(ROUND(SUM($I$43,$I$28),2),0)","v":0}]
[]
["Section réservée à l'usage de la Planification"]
["Remarques"]
[]
["J'atteste que les renseignements fournis dans ce document afin de calculer l'aide supplémentaire sont complets et conformes à la vérité, au meilleur de mes connaissances."]
[]
[]
[]
["Nom et prénom de l'ingénieur forestier",null,null,null,null,null,"No de permis"]
[null,null,null,null,null,null,{"$f":"TODAY()","v":"2021-02-03"}]
[]
["Signature de l'ingénieur forestier",null,null,null,null,null,"Date (AAAA-MM-JJ)"]
["Section réservée à l'usage du BGAD"]
["Remarques"]
[]
["J'atteste que les renseignements fournis dans ce document afin de calculer l'aide supplémentaire sont complets et conformes à la vérité, au meilleur de mes connaissances."]
[]
[]
[]
["Nom et prénom de l'ingénieur forestier",null,null,null,null,null,"No de permis"]
[null,null,null,null,null,null,{"$f":"TODAY()","v":"2021-02-03"}]
[]
["Signature de l'ingénieur forestier",null,null,null,null,null,"Date (AAAA-MM-JJ)"]
["Section réservée à l'usage du Ministère"]
["Remarques"]
[]
["J'atteste que les renseignements fournis dans ce document afin de calculer l'aide supplémentaire sont complets et conformes à la vérité, au meilleur de mes connaissances."]
[]
[]
[]
["Nom et prénom de l'ingénieur forestier",null,null,null,null,null,"No de permis"]
[null,null,null,null,null,null,{"$f":"TODAY()","v":"2021-02-03"}]
[]
["Signature de l'ingénieur forestier",null,null,null,null,null,"Date (AAAA-MM-JJ)"]
[null,null,null,null,null,null,null,null,null,null,null,null,null,null,null,null,null,null,null,null,null,null,null,null,null,null,null,null,null,null,null,null,null,null,null,null,null,null,null,null,null,null,null,null,null,null,null,null,null,null,null,null,null,null,null,null,null,null,null,null,null,null,null,null,null,null,null,null,null,null,null,null,null,null,null,null,null,null,null,null,null,null,null,null,null,null,null,null,null,null,null,null,null,null,null,null,null,null,null,null,455,0]
[null,null,null,null,null,null,null,null,null,null,null,null,null,null,null,null,null,null,null,null,null,null,null,null,null,null,null,null,null,null,null,null,null,null,null,null,null,null,null,null,null,null,null,null,null,null,null,null,null,null,null,null,null,null,null,null,null,null,null,null,null,null,null,null,null,null,null,null,null,null,null,null,null,null,null,null,null,null,null,null,null,null,null,null,null,null,null,null,null,null,null,null,null,null,null,null,null,null,null,null,456,0]
[null,null,null,null,null,null,null,null,null,null,null,null,null,null,null,null,null,null,null,null,null,null,null,null,null,null,null,null,null,null,null,null,null,null,null,null,null,null,null,null,null,null,null,null,null,null,null,null,null,null,null,null,null,null,null,null,null,null,null,null,null,null,null,null,null,null,null,null,null,null,null,null,null,null,null,null,null,null,null,null,null,null,null,null,null,null,null,null,null,null,null,null,null,null,null,null,null,null,null,null,457,0]
[null,null,null,null,null,null,null,null,null,null,null,null,null,null,null,null,null,null,null,null,null,null,null,null,null,null,null,null,null,null,null,null,null,null,null,null,null,null,null,null,null,null,null,null,null,null,null,null,null,null,null,null,null,null,null,null,null,null,null,null,null,null,null,null,null,null,null,null,null,null,null,null,null,null,null,null,null,null,null,null,null,null,null,null,null,null,null,null,null,null,null,null,null,null,null,null,null,null,null,null,458,60]
[null,null,null,null,null,null,null,null,null,null,null,null,null,null,null,null,null,null,null,null,null,null,null,null,null,null,null,null,null,null,null,null,null,null,null,null,null,null,null,null,null,null,null,null,null,null,null,null,null,null,null,null,null,null,null,null,null,null,null,null,null,null,null,null,null,null,null,null,null,null,null,null,null,null,null,null,null,null,null,null,null,null,null,null,null,null,null,null,null,null,null,null,null,null,null,null,null,null,null,null,459,60]
[null,null,null,null,null,null,null,null,null,null,null,null,null,null,null,null,null,null,null,null,null,null,null,null,null,null,null,null,null,null,null,null,null,null,null,null,null,null,null,null,null,null,null,null,null,null,null,null,null,null,null,null,null,null,null,null,null,null,null,null,null,null,null,null,null,null,null,null,null,null,null,null,null,null,null,null,null,null,null,null,null,null,null,null,null,null,null,null,null,null,null,null,null,null,null,null,null,null,null,null,460,200]
[null,null,null,null,null,null,null,null,null,null,null,null,null,null,null,null,null,null,null,null,null,null,null,null,null,null,null,null,null,null,null,null,null,null,null,null,null,null,null,null,null,null,null,null,null,null,null,null,null,null,null,null,null,null,null,null,null,null,null,null,null,null,null,null,null,null,null,null,null,null,null,null,null,null,null,null,null,null,null,null,null,null,null,null,null,null,null,null,null,null,null,null,null,null,null,null,null,null,null,null,461,240]
[null,null,null,null,null,null,null,null,null,null,null,null,null,null,null,null,null,null,null,null,null,null,null,null,null,null,null,null,null,null,null,null,null,null,null,null,null,null,null,null,null,null,null,null,null,null,null,null,null,null,null,null,null,null,null,null,null,null,null,null,null,null,null,null,null,null,null,null,null,null,null,null,null,null,null,null,null,null,null,null,null,null,null,null,null,null,null,null,null,null,null,null,null,null,null,null,null,null,null,null,551,0]
[null,null,null,null,null,null,null,null,null,null,null,null,null,null,null,null,null,null,null,null,null,null,null,null,null,null,null,null,null,null,null,null,null,null,null,null,null,null,null,null,null,null,null,null,null,null,null,null,null,null,null,null,null,null,null,null,null,null,null,null,null,null,null,null,null,null,null,null,null,null,null,null,null,null,null,null,null,null,null,null,null,null,null,null,null,null,null,null,null,null,null,null,null,null,null,null,null,null,null,null,650,0]
[null,null,null,null,null,null,null,null,null,null,null,null,null,null,null,null,null,null,null,null,null,null,null,null,null,null,null,null,null,null,null,null,null,null,null,null,null,null,null,null,null,null,null,null,null,null,null,null,null,null,null,null,null,null,null,null,null,null,null,null,null,null,null,null,null,null,null,null,null,null,null,null,null,null,null,null,null,null,null,null,null,null,null,null,null,null,null,null,null,null,null,null,null,null,null,null,null,null,null,null,651,40]
[null,null,null,null,null,null,null,null,null,null,null,null,null,null,null,null,null,null,null,null,null,null,null,null,null,null,null,null,null,null,null,null,null,null,null,null,null,null,null,null,null,null,null,null,null,null,null,null,null,null,null,null,null,null,null,null,null,null,null,null,null,null,null,null,null,null,null,null,null,null,null,null,null,null,null,null,null,null,null,null,null,null,null,null,null,null,null,null,null,null,null,null,null,null,null,null,null,null,null,null,652,200]
[null,null,null,null,null,null,null,null,null,null,null,null,null,null,null,null,null,null,null,null,null,null,null,null,null,null,null,null,null,null,null,null,null,null,null,null,null,null,null,null,null,null,null,null,null,null,null,null,null,null,null,null,null,null,null,null,null,null,null,null,null,null,null,null,null,null,null,null,null,null,null,null,null,null,null,null,null,null,null,null,null,null,null,null,null,null,null,null,null,null,null,null,null,null,null,null,null,null,null,null,653,140]
[null,null,null,null,null,null,null,null,null,null,null,null,null,null,null,null,null,null,null,null,null,null,null,null,null,null,null,null,null,null,null,null,null,null,null,null,null,null,null,null,null,null,null,null,null,null,null,null,null,null,null,null,null,null,null,null,null,null,null,null,null,null,null,null,null,null,null,null,null,null,null,null,null,null,null,null,null,null,null,null,null,null,null,null,null,null,null,null,null,null,null,null,null,null,null,null,null,null,null,null,654,200]
[null,null,null,null,null,null,null,null,null,null,null,null,null,null,null,null,null,null,null,null,null,null,null,null,null,null,null,null,null,null,null,null,null,null,null,null,null,null,null,null,null,null,null,null,null,null,null,null,null,null,null,null,null,null,null,null,null,null,null,null,null,null,null,null,null,null,null,null,null,null,null,null,null,null,null,null,null,null,null,null,null,null,null,null,null,null,null,null,null,null,null,null,null,null,null,null,null,null,null,null,655,40]
[null,null,null,null,null,null,null,null,null,null,null,null,null,null,null,null,null,null,null,null,null,null,null,null,null,null,null,null,null,null,null,null,null,null,null,null,null,null,null,null,null,null,null,null,null,null,null,null,null,null,null,null,null,null,null,null,null,null,null,null,null,null,null,null,null,null,null,null,null,null,null,null,null,null,null,null,null,null,null,null,null,null,null,null,null,null,null,null,null,null,null,null,null,null,null,null,null,null,null,null,656,140]
[null,null,null,null,null,null,null,null,null,null,null,null,null,null,null,null,null,null,null,null,null,null,null,null,null,null,null,null,null,null,null,null,null,null,null,null,null,null,null,null,null,null,null,null,null,null,null,null,null,null,null,null,null,null,null,null,null,null,null,null,null,null,null,null,null,null,null,null,null,null,null,null,null,null,null,null,null,null,null,null,null,null,null,null,null,null,null,null,null,null,null,null,null,null,null,null,null,null,null,null,657,140]
[null,null,null,null,null,null,null,null,null,null,null,null,null,null,null,null,null,null,null,null,null,null,null,null,null,null,null,null,null,null,null,null,null,null,null,null,null,null,null,null,null,null,null,null,null,null,null,null,null,null,null,null,null,null,null,null,null,null,null,null,null,null,null,null,null,null,null,null,null,null,null,null,null,null,null,null,null,null,null,null,null,null,null,null,null,null,null,null,null,null,null,null,null,null,null,null,null,null,null,null,658,220]
[null,null,null,null,null,null,null,null,null,null,null,null,null,null,null,null,null,null,null,null,null,null,null,null,null,null,null,null,null,null,null,null,null,null,null,null,null,null,null,null,null,null,null,null,null,null,null,null,null,null,null,null,null,null,null,null,null,null,null,null,null,null,null,null,null,null,null,null,null,null,null,null,null,null,null,null,null,null,null,null,null,null,null,null,null,null,null,null,null,null,null,null,null,null,null,null,null,null,null,null,659,280]
[null,null,null,null,null,null,null,null,null,null,null,null,null,null,null,null,null,null,null,null,null,null,null,null,null,null,null,null,null,null,null,null,null,null,null,null,null,null,null,null,null,null,null,null,null,null,null,null,null,null,null,null,null,null,null,null,null,null,null,null,null,null,null,null,null,null,null,null,null,null,null,null,null,null,null,null,null,null,null,null,null,null,null,null,null,null,null,null,null,null,null,null,null,null,null,null,null,null,null,null,660,160]
[null,null,null,null,null,null,null,null,null,null,null,null,null,null,null,null,null,null,null,null,null,null,null,null,null,null,null,null,null,null,null,null,null,null,null,null,null,null,null,null,null,null,null,null,null,null,null,null,null,null,null,null,null,null,null,null,null,null,null,null,null,null,null,null,null,null,null,null,null,null,null,null,null,null,null,null,null,null,null,null,null,null,null,null,null,null,null,null,null,null,null,null,null,null,null,null,null,null,null,null,661,40]
[null,null,null,null,null,null,null,null,null,null,null,null,null,null,null,null,null,null,null,null,null,null,null,null,null,null,null,null,null,null,null,null,null,null,null,null,null,null,null,null,null,null,null,null,null,null,null,null,null,null,null,null,null,null,null,null,null,null,null,null,null,null,null,null,null,null,null,null,null,null,null,null,null,null,null,null,null,null,null,null,null,null,null,null,null,null,null,null,null,null,null,null,null,null,null,null,null,null,null,null,662,0]
[null,null,null,null,null,null,null,null,null,null,null,null,null,null,null,null,null,null,null,null,null,null,null,null,null,null,null,null,null,null,null,null,null,null,null,null,null,null,null,null,null,null,null,null,null,null,null,null,null,null,null,null,null,null,null,null,null,null,null,null,null,null,null,null,null,null,null,null,null,null,null,null,null,null,null,null,null,null,null,null,null,null,null,null,null,null,null,null,null,null,null,null,null,null,null,null,null,null,null,null,750,0]
[null,null,null,null,null,null,null,null,null,null,null,null,null,null,null,null,null,null,null,null,null,null,null,null,null,null,null,null,null,null,null,null,null,null,null,null,null,null,null,null,null,null,null,null,null,null,null,null,null,null,null,null,null,null,null,null,null,null,null,null,null,null,null,null,null,null,null,null,null,null,null,null,null,null,null,null,null,null,null,null,null,null,null,null,null,null,null,null,null,null,null,null,null,null,null,null,null,null,null,null,751,40]
[null,null,null,null,null,null,null,null,null,null,null,null,null,null,null,null,null,null,null,null,null,null,null,null,null,null,null,null,null,null,null,null,null,null,null,null,null,null,null,null,null,null,null,null,null,null,null,null,null,null,null,null,null,null,null,null,null,null,null,null,null,null,null,null,null,null,null,null,null,null,null,null,null,null,null,null,null,null,null,null,null,null,null,null,null,null,null,null,null,null,null,null,null,null,null,null,null,null,null,null,752,220]
[null,null,null,null,null,null,null,null,null,null,null,null,null,null,null,null,null,null,null,null,null,null,null,null,null,null,null,null,null,null,null,null,null,null,null,null,null,null,null,null,null,null,null,null,null,null,null,null,null,null,null,null,null,null,null,null,null,null,null,null,null,null,null,null,null,null,null,null,null,null,null,null,null,null,null,null,null,null,null,null,null,null,null,null,null,null,null,null,null,null,null,null,null,null,null,null,null,null,null,null,753,280]
[null,null,null,null,null,null,null,null,null,null,null,null,null,null,null,null,null,null,null,null,null,null,null,null,null,null,null,null,null,null,null,null,null,null,null,null,null,null,null,null,null,null,null,null,null,null,null,null,null,null,null,null,null,null,null,null,null,null,null,null,null,null,null,null,null,null,null,null,null,null,null,null,null,null,null,null,null,null,null,null,null,null,null,null,null,null,null,null,null,null,null,null,null,null,null,null,null,null,null,null,754,80]
[null,null,null,null,null,null,null,null,null,null,null,null,null,null,null,null,null,null,null,null,null,null,null,null,null,null,null,null,null,null,null,null,null,null,null,null,null,null,null,null,null,null,null,null,null,null,null,null,null,null,null,null,null,null,null,null,null,null,null,null,null,null,null,null,null,null,null,null,null,null,null,null,null,null,null,null,null,null,null,null,null,null,null,null,null,null,null,null,null,null,null,null,null,null,null,null,null,null,null,null,755,60]
[null,null,null,null,null,null,null,null,null,null,null,null,null,null,null,null,null,null,null,null,null,null,null,null,null,null,null,null,null,null,null,null,null,null,null,null,null,null,null,null,null,null,null,null,null,null,null,null,null,null,null,null,null,null,null,null,null,null,null,null,null,null,null,null,null,null,null,null,null,null,null,null,null,null,null,null,null,null,null,null,null,null,null,null,null,null,null,null,null,null,null,null,null,null,null,null,null,null,null,null,756,260]
[null,null,null,null,null,null,null,null,null,null,null,null,null,null,null,null,null,null,null,null,null,null,null,null,null,null,null,null,null,null,null,null,null,null,null,null,null,null,null,null,null,null,null,null,null,null,null,null,null,null,null,null,null,null,null,null,null,null,null,null,null,null,null,null,null,null,null,null,null,null,null,null,null,null,null,null,null,null,null,null,null,null,null,null,null,null,null,null,null,null,null,null,null,null,null,null,null,null,null,null,757,260]
[null,null,null,null,null,null,null,null,null,null,null,null,null,null,null,null,null,null,null,null,null,null,null,null,null,null,null,null,null,null,null,null,null,null,null,null,null,null,null,null,null,null,null,null,null,null,null,null,null,null,null,null,null,null,null,null,null,null,null,null,null,null,null,null,null,null,null,null,null,null,null,null,null,null,null,null,null,null,null,null,null,null,null,null,null,null,null,null,null,null,null,null,null,null,null,null,null,null,null,null,758,280]
[null,null,null,null,null,null,null,null,null,null,null,null,null,null,null,null,null,null,null,null,null,null,null,null,null,null,null,null,null,null,null,null,null,null,null,null,null,null,null,null,null,null,null,null,null,null,null,null,null,null,null,null,null,null,null,null,null,null,null,null,null,null,null,null,null,null,null,null,null,null,null,null,null,null,null,null,null,null,null,null,null,null,null,null,null,null,null,null,null,null,null,null,null,null,null,null,null,null,null,null,850,0]
[null,null,null,null,null,null,null,null,null,null,null,null,null,null,null,null,null,null,null,null,null,null,null,null,null,null,null,null,null,null,null,null,null,null,null,null,null,null,null,null,null,null,null,null,null,null,null,null,null,null,null,null,null,null,null,null,null,null,null,null,null,null,null,null,null,null,null,null,null,null,null,null,null,null,null,null,null,null,null,null,null,null,null,null,null,null,null,null,null,null,null,null,null,null,null,null,null,null,null,null,851,0]
[null,null,null,null,null,null,null,null,null,null,null,null,null,null,null,null,null,null,null,null,null,null,null,null,null,null,null,null,null,null,null,null,null,null,null,null,null,null,null,null,null,null,null,null,null,null,null,null,null,null,null,null,null,null,null,null,null,null,null,null,null,null,null,null,null,null,null,null,null,null,null,null,null,null,null,null,null,null,null,null,null,null,null,null,null,null,null,null,null,null,null,null,null,null,null,null,null,null,null,null,852,0]
[null,null,null,null,null,null,null,null,null,null,null,null,null,null,null,null,null,null,null,null,null,null,null,null,null,null,null,null,null,null,null,null,null,null,null,null,null,null,null,null,null,null,null,null,null,null,null,null,null,null,null,null,null,null,null,null,null,null,null,null,null,null,null,null,null,null,null,null,null,null,null,null,null,null,null,null,null,null,null,null,null,null,null,null,null,null,null,null,null,null,null,null,null,null,null,null,null,null,null,null,853,0]
[null,null,null,null,null,null,null,null,null,null,null,null,null,null,null,null,null,null,null,null,null,null,null,null,null,null,null,null,null,null,null,null,null,null,null,null,null,null,null,null,null,null,null,null,null,null,null,null,null,null,null,null,null,null,null,null,null,null,null,null,null,null,null,null,null,null,null,null,null,null,null,null,null,null,null,null,null,null,null,null,null,null,null,null,null,null,null,null,null,null,null,null,null,null,null,null,null,null,null,null,854,0]
[null,null,null,null,null,null,null,null,null,null,null,null,null,null,null,null,null,null,null,null,null,null,null,null,null,null,null,null,null,null,null,null,null,null,null,null,null,null,null,null,null,null,null,null,null,null,null,null,null,null,null,null,null,null,null,null,null,null,null,null,null,null,null,null,null,null,null,null,null,null,null,null,null,null,null,null,null,null,null,null,null,null,null,null,null,null,null,null,null,null,null,null,null,null,null,null,null,null,null,null,855,0]
[null,null,null,null,null,null,null,null,null,null,null,null,null,null,null,null,null,null,null,null,null,null,null,null,null,null,null,null,null,null,null,null,null,null,null,null,null,null,null,null,null,null,null,null,null,null,null,null,null,null,null,null,null,null,null,null,null,null,null,null,null,null,null,null,null,null,null,null,null,null,null,null,null,null,null,null,null,null,null,null,null,null,null,null,null,null,null,null,null,null,null,null,null,null,null,null,null,null,null,null,856,60]
[null,null,null,null,null,null,null,null,null,null,null,null,null,null,null,null,null,null,null,null,null,null,null,null,null,null,null,null,null,null,null,null,null,null,null,null,null,null,null,null,null,null,null,null,null,null,null,null,null,null,null,null,null,null,null,null,null,null,null,null,null,null,null,null,null,null,null,null,null,null,null,null,null,null,null,null,null,null,null,null,null,null,null,null,null,null,null,null,null,null,null,null,null,null,null,null,null,null,null,null,857,80]
[null,null,null,null,null,null,null,null,null,null,null,null,null,null,null,null,null,null,null,null,null,null,null,null,null,null,null,null,null,null,null,null,null,null,null,null,null,null,null,null,null,null,null,null,null,null,null,null,null,null,null,null,null,null,null,null,null,null,null,null,null,null,null,null,null,null,null,null,null,null,null,null,null,null,null,null,null,null,null,null,null,null,null,null,null,null,null,null,null,null,null,null,null,null,null,null,null,null,null,null,858,100]
[null,null,null,null,null,null,null,null,null,null,null,null,null,null,null,null,null,null,null,null,null,null,null,null,null,null,null,null,null,null,null,null,null,null,null,null,null,null,null,null,null,null,null,null,null,null,null,null,null,null,null,null,null,null,null,null,null,null,null,null,null,null,null,null,null,null,null,null,null,null,null,null,null,null,null,null,null,null,null,null,null,null,null,null,null,null,null,null,null,null,null,null,null,null,null,null,null,null,null,null,859,180]
[null,null,null,null,null,null,null,null,null,null,null,null,null,null,null,null,null,null,null,null,null,null,null,null,null,null,null,null,null,null,null,null,null,null,null,null,null,null,null,null,null,null,null,null,null,null,null,null,null,null,null,null,null,null,null,null,null,null,null,null,null,null,null,null,null,null,null,null,null,null,null,null,null,null,null,null,null,null,null,null,null,null,null,null,null,null,null,null,null,null,null,null,null,null,null,null,null,null,null,null,860,260]
[null,null,null,null,null,null,null,null,null,null,null,null,null,null,null,null,null,null,null,null,null,null,null,null,null,null,null,null,null,null,null,null,null,null,null,null,null,null,null,null,null,null,null,null,null,null,null,null,null,null,null,null,null,null,null,null,null,null,null,null,null,null,null,null,null,null,null,null,null,null,null,null,null,null,null,null,null,null,null,null,null,null,null,null,null,null,null,null,null,null,null,null,null,null,null,null,null,null,null,null,861,240]
[null,null,null,null,null,null,null,null,null,null,null,null,null,null,null,null,null,null,null,null,null,null,null,null,null,null,null,null,null,null,null,null,null,null,null,null,null,null,null,null,null,null,null,null,null,null,null,null,null,null,null,null,null,null,null,null,null,null,null,null,null,null,null,null,null,null,null,null,null,null,null,null,null,null,null,null,null,null,null,null,null,null,null,null,null,null,null,null,null,null,null,null,null,null,null,null,null,null,null,null,862,280]
[null,null,null,null,null,null,null,null,null,null,null,null,null,null,null,null,null,null,null,null,null,null,null,null,null,null,null,null,null,null,null,null,null,null,null,null,null,null,null,null,null,null,null,null,null,null,null,null,null,null,null,null,null,null,null,null,null,null,null,null,null,null,null,null,null,null,null,null,null,null,null,null,null,null,null,null,null,null,null,null,null,null,null,null,null,null,null,null,null,null,null,null,null,null,null,null,null,null,null,null,863,280]
[null,null,null,null,null,null,null,null,null,null,null,null,null,null,null,null,null,null,null,null,null,null,null,null,null,null,null,null,null,null,null,null,null,null,null,null,null,null,null,null,null,null,null,null,null,null,null,null,null,null,null,null,null,null,null,null,null,null,null,null,null,null,null,null,null,null,null,null,null,null,null,null,null,null,null,null,null,null,null,null,null,null,null,null,null,null,null,null,null,null,null,null,null,null,null,null,null,null,null,null,864,280]
[null,null,null,null,null,null,null,null,null,null,null,null,null,null,null,null,null,null,null,null,null,null,null,null,null,null,null,null,null,null,null,null,null,null,null,null,null,null,null,null,null,null,null,null,null,null,null,null,null,null,null,null,null,null,null,null,null,null,null,null,null,null,null,null,null,null,null,null,null,null,null,null,null,null,null,null,null,null,null,null,null,null,null,null,null,null,null,null,null,null,null,null,null,null,null,null,null,null,null,null,865,280]
[null,null,null,null,null,null,null,null,null,null,null,null,null,null,null,null,null,null,null,null,null,null,null,null,null,null,null,null,null,null,null,null,null,null,null,null,null,null,null,null,null,null,null,null,null,null,null,null,null,null,null,null,null,null,null,null,null,null,null,null,null,null,null,null,null,null,null,null,null,null,null,null,null,null,null,null,null,null,null,null,null,null,null,null,null,null,null,null,null,null,null,null,null,null,null,null,null,null,null,null,866,280]
[null,null,null,null,null,null,null,null,null,null,null,null,null,null,null,null,null,null,null,null,null,null,null,null,null,null,null,null,null,null,null,null,null,null,null,null,null,null,null,null,null,null,null,null,null,null,null,null,null,null,null,null,null,null,null,null,null,null,null,null,null,null,null,null,null,null,null,null,null,null,null,null,null,null,null,null,null,null,null,null,null,null,null,null,null,null,null,null,null,null,null,null,null,null,null,null,null,null,null,null,867,280]
[null,null,null,null,null,null,null,null,null,null,null,null,null,null,null,null,null,null,null,null,null,null,null,null,null,null,null,null,null,null,null,null,null,null,null,null,null,null,null,null,null,null,null,null,null,null,null,null,null,null,null,null,null,null,null,null,null,null,null,null,null,null,null,null,null,null,null,null,null,null,null,null,null,null,null,null,null,null,null,null,null,null,null,null,null,null,null,null,null,null,null,null,null,null,null,null,null,null,null,null,868,280]
[null,null,null,null,null,null,null,null,null,null,null,null,null,null,null,null,null,null,null,null,null,null,null,null,null,null,null,null,null,null,null,null,null,null,null,null,null,null,null,null,null,null,null,null,null,null,null,null,null,null,null,null,null,null,null,null,null,null,null,null,null,null,null,null,null,null,null,null,null,null,null,null,null,null,null,null,null,null,null,null,null,null,null,null,null,null,null,null,null,null,null,null,null,null,null,null,null,null,null,null,869,280]
[null,null,null,null,null,null,null,null,null,null,null,null,null,null,null,null,null,null,null,null,null,null,null,null,null,null,null,null,null,null,null,null,null,null,null,null,null,null,null,null,null,null,null,null,null,null,null,null,null,null,null,null,null,null,null,null,null,null,null,null,null,null,null,null,null,null,null,null,null,null,null,null,null,null,null,null,null,null,null,null,null,null,null,null,null,null,null,null,null,null,null,null,null,null,null,null,null,null,null,null,870,280]
[null,null,null,null,null,null,null,null,null,null,null,null,null,null,null,null,null,null,null,null,null,null,null,null,null,null,null,null,null,null,null,null,null,null,null,null,null,null,null,null,null,null,null,null,null,null,null,null,null,null,null,null,null,null,null,null,null,null,null,null,null,null,null,null,null,null,null,null,null,null,null,null,null,null,null,null,null,null,null,null,null,null,null,null,null,null,null,null,null,null,null,null,null,null,null,null,null,null,null,null,871,280]
[null,null,null,null,null,null,null,null,null,null,null,null,null,null,null,null,null,null,null,null,null,null,null,null,null,null,null,null,null,null,null,null,null,null,null,null,null,null,null,null,null,null,null,null,null,null,null,null,null,null,null,null,null,null,null,null,null,null,null,null,null,null,null,null,null,null,null,null,null,null,null,null,null,null,null,null,null,null,null,null,null,null,null,null,null,null,null,null,null,null,null,null,null,null,null,null,null,null,null,null,872,280]
[null,null,null,null,null,null,null,null,null,null,null,null,null,null,null,null,null,null,null,null,null,null,null,null,null,null,null,null,null,null,null,null,null,null,null,null,null,null,null,null,null,null,null,null,null,null,null,null,null,null,null,null,null,null,null,null,null,null,null,null,null,null,null,null,null,null,null,null,null,null,null,null,null,null,null,null,null,null,null,null,null,null,null,null,null,null,null,null,null,null,null,null,null,null,null,null,null,null,null,null,873,280]
[null,null,null,null,null,null,null,null,null,null,null,null,null,null,null,null,null,null,null,null,null,null,null,null,null,null,null,null,null,null,null,null,null,null,null,null,null,null,null,null,null,null,null,null,null,null,null,null,null,null,null,null,null,null,null,null,null,null,null,null,null,null,null,null,null,null,null,null,null,null,null,null,null,null,null,null,null,null,null,null,null,null,null,null,null,null,null,null,null,null,null,null,null,null,null,null,null,null,null,null,874,280]
[null,null,null,null,null,null,null,null,null,null,null,null,null,null,null,null,null,null,null,null,null,null,null,null,null,null,null,null,null,null,null,null,null,null,null,null,null,null,null,null,null,null,null,null,null,null,null,null,null,null,null,null,null,null,null,null,null,null,null,null,null,null,null,null,null,null,null,null,null,null,null,null,null,null,null,null,null,null,null,null,null,null,null,null,null,null,null,null,null,null,null,null,null,null,null,null,null,null,null,null,875,280]
[null,null,null,null,null,null,null,null,null,null,null,null,null,null,null,null,null,null,null,null,null,null,null,null,null,null,null,null,null,null,null,null,null,null,null,null,null,null,null,null,null,null,null,null,null,null,null,null,null,null,null,null,null,null,null,null,null,null,null,null,null,null,null,null,null,null,null,null,null,null,null,null,null,null,null,null,null,null,null,null,null,null,null,null,null,null,null,null,null,null,null,null,null,null,null,null,null,null,null,null,876,280]
[null,null,null,null,null,null,null,null,null,null,null,null,null,null,null,null,null,null,null,null,null,null,null,null,null,null,null,null,null,null,null,null,null,null,null,null,null,null,null,null,null,null,null,null,null,null,null,null,null,null,null,null,null,null,null,null,null,null,null,null,null,null,null,null,null,null,null,null,null,null,null,null,null,null,null,null,null,null,null,null,null,null,null,null,null,null,null,null,null,null,null,null,null,null,null,null,null,null,null,null,877,280]
[null,null,null,null,null,null,null,null,null,null,null,null,null,null,null,null,null,null,null,null,null,null,null,null,null,null,null,null,null,null,null,null,null,null,null,null,null,null,null,null,null,null,null,null,null,null,null,null,null,null,null,null,null,null,null,null,null,null,null,null,null,null,null,null,null,null,null,null,null,null,null,null,null,null,null,null,null,null,null,null,null,null,null,null,null,null,null,null,null,null,null,null,null,null,null,null,null,null,null,null,878,280]
[null,null,null,null,null,null,null,null,null,null,null,null,null,null,null,null,null,null,null,null,null,null,null,null,null,null,null,null,null,null,null,null,null,null,null,null,null,null,null,null,null,null,null,null,null,null,null,null,null,null,null,null,null,null,null,null,null,null,null,null,null,null,null,null,null,null,null,null,null,null,null,null,null,null,null,null,null,null,null,null,null,null,null,null,null,null,null,null,null,null,null,null,null,null,null,null,null,null,null,null,879,280]
[null,null,null,null,null,null,null,null,null,null,null,null,null,null,null,null,null,null,null,null,null,null,null,null,null,null,null,null,null,null,null,null,null,null,null,null,null,null,null,null,null,null,null,null,null,null,null,null,null,null,null,null,null,null,null,null,null,null,null,null,null,null,null,null,null,null,null,null,null,null,null,null,null,null,null,null,null,null,null,null,null,null,null,null,null,null,null,null,null,null,null,null,null,null,null,null,null,null,null,null,880,280]
[null,null,null,null,null,null,null,null,null,null,null,null,null,null,null,null,null,null,null,null,null,null,null,null,null,null,null,null,null,null,null,null,null,null,null,null,null,null,null,null,null,null,null,null,null,null,null,null,null,null,null,null,null,null,null,null,null,null,null,null,null,null,null,null,null,null,null,null,null,null,null,null,null,null,null,null,null,null,null,null,null,null,null,null,null,null,null,null,null,null,null,null,null,null,null,null,null,null,null,null,881,280]
[null,null,null,null,null,null,null,null,null,null,null,null,null,null,null,null,null,null,null,null,null,null,null,null,null,null,null,null,null,null,null,null,null,null,null,null,null,null,null,null,null,null,null,null,null,null,null,null,null,null,null,null,null,null,null,null,null,null,null,null,null,null,null,null,null,null,null,null,null,null,null,null,null,null,null,null,null,null,null,null,null,null,null,null,null,null,null,null,null,null,null,null,null,null,null,null,null,null,null,null,882,280]
[null,null,null,null,null,null,null,null,null,null,null,null,null,null,null,null,null,null,null,null,null,null,null,null,null,null,null,null,null,null,null,null,null,null,null,null,null,null,null,null,null,null,null,null,null,null,null,null,null,null,null,null,null,null,null,null,null,null,null,null,null,null,null,null,null,null,null,null,null,null,null,null,null,null,null,null,null,null,null,null,null,null,null,null,null,null,null,null,null,null,null,null,null,null,null,null,null,null,null,null,883,280]
[null,null,null,null,null,null,null,null,null,null,null,null,null,null,null,null,null,null,null,null,null,null,null,null,null,null,null,null,null,null,null,null,null,null,null,null,null,null,null,null,null,null,null,null,null,null,null,null,null,null,null,null,null,null,null,null,null,null,null,null,null,null,null,null,null,null,null,null,null,null,null,null,null,null,null,null,null,null,null,null,null,null,null,null,null,null,null,null,null,null,null,null,null,null,null,null,null,null,null,null,884,280]
[null,null,null,null,null,null,null,null,null,null,null,null,null,null,null,null,null,null,null,null,null,null,null,null,null,null,null,null,null,null,null,null,null,null,null,null,null,null,null,null,null,null,null,null,null,null,null,null,null,null,null,null,null,null,null,null,null,null,null,null,null,null,null,null,null,null,null,null,null,null,null,null,null,null,null,null,null,null,null,null,null,null,null,null,null,null,null,null,null,null,null,null,null,null,null,null,null,null,null,null,885,280]
[null,null,null,null,null,null,null,null,null,null,null,null,null,null,null,null,null,null,null,null,null,null,null,null,null,null,null,null,null,null,null,null,null,null,null,null,null,null,null,null,null,null,null,null,null,null,null,null,null,null,null,null,null,null,null,null,null,null,null,null,null,null,null,null,null,null,null,null,null,null,null,null,null,null,null,null,null,null,null,null,null,null,null,null,null,null,null,null,null,null,null,null,null,null,null,null,null,null,null,null,886,280]
[null,null,null,null,null,null,null,null,null,null,null,null,null,null,null,null,null,null,null,null,null,null,null,null,null,null,null,null,null,null,null,null,null,null,null,null,null,null,null,null,null,null,null,null,null,null,null,null,null,null,null,null,null,null,null,null,null,null,null,null,null,null,null,null,null,null,null,null,null,null,null,null,null,null,null,null,null,null,null,null,null,null,null,null,null,null,null,null,null,null,null,null,null,null,null,null,null,null,null,null,887,280]
[null,null,null,null,null,null,null,null,null,null,null,null,null,null,null,null,null,null,null,null,null,null,null,null,null,null,null,null,null,null,null,null,null,null,null,null,null,null,null,null,null,null,null,null,null,null,null,null,null,null,null,null,null,null,null,null,null,null,null,null,null,null,null,null,null,null,null,null,null,null,null,null,null,null,null,null,null,null,null,null,null,null,null,null,null,null,null,null,null,null,null,null,null,null,null,null,null,null,null,null,888,280]
[null,null,null,null,null,null,null,null,null,null,null,null,null,null,null,null,null,null,null,null,null,null,null,null,null,null,null,null,null,null,null,null,null,null,null,null,null,null,null,null,null,null,null,null,null,null,null,null,null,null,null,null,null,null,null,null,null,null,null,null,null,null,null,null,null,null,null,null,null,null,null,null,null,null,null,null,null,null,null,null,null,null,null,null,null,null,null,null,null,null,null,null,null,null,null,null,null,null,null,null,889,240]
[null,null,null,null,null,null,null,null,null,null,null,null,null,null,null,null,null,null,null,null,null,null,null,null,null,null,null,null,null,null,null,null,null,null,null,null,null,null,null,null,null,null,null,null,null,null,null,null,null,null,null,null,null,null,null,null,null,null,null,null,null,null,null,null,null,null,null,null,null,null,null,null,null,null,null,null,null,null,null,null,null,null,null,null,null,null,null,null,null,null,null,null,null,null,null,null,null,null,null,null,890,280]
[null,null,null,null,null,null,null,null,null,null,null,null,null,null,null,null,null,null,null,null,null,null,null,null,null,null,null,null,null,null,null,null,null,null,null,null,null,null,null,null,null,null,null,null,null,null,null,null,null,null,null,null,null,null,null,null,null,null,null,null,null,null,null,null,null,null,null,null,null,null,null,null,null,null,null,null,null,null,null,null,null,null,null,null,null,null,null,null,null,null,null,null,null,null,null,null,null,null,null,null,891,280]
[null,null,null,null,null,null,null,null,null,null,null,null,null,null,null,null,null,null,null,null,null,null,null,null,null,null,null,null,null,null,null,null,null,null,null,null,null,null,null,null,null,null,null,null,null,null,null,null,null,null,null,null,null,null,null,null,null,null,null,null,null,null,null,null,null,null,null,null,null,null,null,null,null,null,null,null,null,null,null,null,null,null,null,null,null,null,null,null,null,null,null,null,null,null,null,null,null,null,null,null,892,280]
[null,null,null,null,null,null,null,null,null,null,null,null,null,null,null,null,null,null,null,null,null,null,null,null,null,null,null,null,null,null,null,null,null,null,null,null,null,null,null,null,null,null,null,null,null,null,null,null,null,null,null,null,null,null,null,null,null,null,null,null,null,null,null,null,null,null,null,null,null,null,null,null,null,null,null,null,null,null,null,null,null,null,null,null,null,null,null,null,null,null,null,null,null,null,null,null,null,null,null,null,950,280]
[null,null,null,null,null,null,null,null,null,null,null,null,null,null,null,null,null,null,null,null,null,null,null,null,null,null,null,null,null,null,null,null,null,null,null,null,null,null,null,null,null,null,null,null,null,null,null,null,null,null,null,null,null,null,null,null,null,null,null,null,null,null,null,null,null,null,null,null,null,null,null,null,null,null,null,null,null,null,null,null,null,null,null,null,null,null,null,null,null,null,null,null,null,null,null,null,null,null,null,null,951,280]
[null,null,null,null,null,null,null,null,null,null,null,null,null,null,null,null,null,null,null,null,null,null,null,null,null,null,null,null,null,null,null,null,null,null,null,null,null,null,null,null,null,null,null,null,null,null,null,null,null,null,null,null,null,null,null,null,null,null,null,null,null,null,null,null,null,null,null,null,null,null,null,null,null,null,null,null,null,null,null,null,null,null,null,null,null,null,null,null,null,null,null,null,null,null,null,null,null,null,null,null,952,280]
[null,null,null,null,null,null,null,null,null,null,null,null,null,null,null,null,null,null,null,null,null,null,null,null,null,null,null,null,null,null,null,null,null,null,null,null,null,null,null,null,null,null,null,null,null,null,null,null,null,null,null,null,null,null,null,null,null,null,null,null,null,null,null,null,null,null,null,null,null,null,null,null,null,null,null,null,null,null,null,null,null,null,null,null,null,null,null,null,null,null,null,null,null,null,null,null,null,null,null,null,953,280]
[null,null,null,null,null,null,null,null,null,null,null,null,null,null,null,null,null,null,null,null,null,null,null,null,null,null,null,null,null,null,null,null,null,null,null,null,null,null,null,null,null,null,null,null,null,null,null,null,null,null,null,null,null,null,null,null,null,null,null,null,null,null,null,null,null,null,null,null,null,null,null,null,null,null,null,null,null,null,null,null,null,null,null,null,null,null,null,null,null,null,null,null,null,null,null,null,null,null,null,null,954,280]
[null,null,null,null,null,null,null,null,null,null,null,null,null,null,null,null,null,null,null,null,null,null,null,null,null,null,null,null,null,null,null,null,null,null,null,null,null,null,null,null,null,null,null,null,null,null,null,null,null,null,null,null,null,null,null,null,null,null,null,null,null,null,null,null,null,null,null,null,null,null,null,null,null,null,null,null,null,null,null,null,null,null,null,null,null,null,null,null,null,null,null,null,null,null,null,null,null,null,null,null,955,280]
[null,null,null,null,null,null,null,null,null,null,null,null,null,null,null,null,null,null,null,null,null,null,null,null,null,null,null,null,null,null,null,null,null,null,null,null,null,null,null,null,null,null,null,null,null,null,null,null,null,null,null,null,null,null,null,null,null,null,null,null,null,null,null,null,null,null,null,null,null,null,null,null,null,null,null,null,null,null,null,null,null,null,null,null,null,null,null,null,null,null,null,null,null,null,null,null,null,null,null,null,956,280]
[null,null,null,null,null,null,null,null,null,null,null,null,null,null,null,null,null,null,null,null,null,null,null,null,null,null,null,null,null,null,null,null,null,null,null,null,null,null,null,null,null,null,null,null,null,null,null,null,null,null,null,null,null,null,null,null,null,null,null,null,null,null,null,null,null,null,null,null,null,null,null,null,null,null,null,null,null,null,null,null,null,null,null,null,null,null,null,null,null,null,null,null,null,null,null,null,null,null,null,null,957,280]
[null,null,null,null,null,null,null,null,null,null,null,null,null,null,null,null,null,null,null,null,null,null,null,null,null,null,null,null,null,null,null,null,null,null,null,null,null,null,null,null,null,null,null,null,null,null,null,null,null,null,null,null,null,null,null,null,null,null,null,null,null,null,null,null,null,null,null,null,null,null,null,null,null,null,null,null,null,null,null,null,null,null,null,null,null,null,null,null,null,null,null,null,null,null,null,null,null,null,null,null,960,280]
[null,null,null,null,null,null,null,null,null,null,null,null,null,null,null,null,null,null,null,null,null,null,null,null,null,null,null,null,null,null,null,null,null,null,null,null,null,null,null,null,null,null,null,null,null,null,null,null,null,null,null,null,null,null,null,null,null,null,null,null,null,null,null,null,null,null,null,null,null,null,null,null,null,null,null,null,null,null,null,null,null,null,null,null,null,null,null,null,null,null,null,null,null,null,null,null,null,null,null,null,961,280]
[null,null,null,null,null,null,null,null,null,null,null,null,null,null,null,null,null,null,null,null,null,null,null,null,null,null,null,null,null,null,null,null,null,null,null,null,null,null,null,null,null,null,null,null,null,null,null,null,null,null,null,null,null,null,null,null,null,null,null,null,null,null,null,null,null,null,null,null,null,null,null,null,null,null,null,null,null,null,null,null,null,null,null,null,null,null,null,null,null,null,null,null,null,null,null,null,null,null,null,null,962,280]
[null,null,null,null,null,null,null,null,null,null,null,null,null,null,null,null,null,null,null,null,null,null,null,null,null,null,null,null,null,null,null,null,null,null,null,null,null,null,null,null,null,null,null,null,null,null,null,null,null,null,null,null,null,null,null,null,null,null,null,null,null,null,null,null,null,null,null,null,null,null,null,null,null,null,null,null,null,null,null,null,null,null,null,null,null,null,null,null,null,null,null,null,null,null,null,null,null,null,null,null,963,280]
[null,null,null,null,null,null,null,null,null,null,null,null,null,null,null,null,null,null,null,null,null,null,null,null,null,null,null,null,null,null,null,null,null,null,null,null,null,null,null,null,null,null,null,null,null,null,null,null,null,null,null,null,null,null,null,null,null,null,null,null,null,null,null,null,null,null,null,null,null,null,null,null,null,null,null,null,null,null,null,null,null,null,null,null,null,null,null,null,null,null,null,null,null,null,null,null,null,null,null,null,964,280]
[null,null,null,null,null,null,null,null,null,null,null,null,null,null,null,null,null,null,null,null,null,null,null,null,null,null,null,null,null,null,null,null,null,null,null,null,null,null,null,null,null,null,null,null,null,null,null,null,null,null,null,null,null,null,null,null,null,null,null,null,null,null,null,null,null,null,null,null,null,null,null,null,null,null,null,null,null,null,null,null,null,null,null,null,null,null,null,null,null,null,null,null,null,null,null,null,null,null,null,null,965,280]
[null,null,null,null,null,null,null,null,null,null,null,null,null,null,null,null,null,null,null,null,null,null,null,null,null,null,null,null,null,null,null,null,null,null,null,null,null,null,null,null,null,null,null,null,null,null,null,null,null,null,null,null,null,null,null,null,null,null,null,null,null,null,null,null,null,null,null,null,null,null,null,null,null,null,null,null,null,null,null,null,null,null,null,null,null,null,null,null,null,null,null,null,null,null,null,null,null,null,null,null,966,280]
[null,null,null,null,null,null,null,null,null,null,null,null,null,null,null,null,null,null,null,null,null,null,null,null,null,null,null,null,null,null,null,null,null,null,null,null,null,null,null,null,null,null,null,null,null,null,null,null,null,null,null,null,null,null,null,null,null,null,null,null,null,null,null,null,null,null,null,null,null,null,null,null,null,null,null,null,null,null,null,null,null,null,null,null,null,null,null,null,null,null,null,null,null,null,null,null,null,null,null,null,967,280]
[null,null,null,null,null,null,null,null,null,null,null,null,null,null,null,null,null,null,null,null,null,null,null,null,null,null,null,null,null,null,null,null,null,null,null,null,null,null,null,null,null,null,null,null,null,null,null,null,null,null,null,null,null,null,null,null,null,null,null,null,null,null,null,null,null,null,null,null,null,null,null,null,null,null,null,null,null,null,null,null,null,null,null,null,null,null,null,null,null,null,null,null,null,null,null,null,null,null,null,null,970,280]
[null,null,null,null,null,null,null,null,null,null,null,null,null,null,null,null,null,null,null,null,null,null,null,null,null,null,null,null,null,null,null,null,null,null,null,null,null,null,null,null,null,null,null,null,null,null,null,null,null,null,null,null,null,null,null,null,null,null,null,null,null,null,null,null,null,null,null,null,null,null,null,null,null,null,null,null,null,null,null,null,null,null,null,null,null,null,null,null,null,null,null,null,null,null,null,null,null,null,null,null,980,280]
[null,null,null,null,null,null,null,null,null,null,null,null,null,null,null,null,null,null,null,null,null,null,null,null,null,null,null,null,null,null,null,null,null,null,null,null,null,null,null,null,null,null,null,null,null,null,null,null,null,null,null,null,null,null,null,null,null,null,null,null,null,null,null,null,null,null,null,null,null,null,null,null,null,null,null,null,null,null,null,null,null,null,null,null,null,null,null,null,null,null,null,null,null,null,null,null,null,null,null,null,981,280]
[null,null,null,null,null,null,null,null,null,null,null,null,null,null,null,null,null,null,null,null,null,null,null,null,null,null,null,null,null,null,null,null,null,null,null,null,null,null,null,null,null,null,null,null,null,null,null,null,null,null,null,null,null,null,null,null,null,null,null,null,null,null,null,null,null,null,null,null,null,null,null,null,null,null,null,null,null,null,null,null,null,null,null,null,null,null,null,null,null,null,null,null,null,null,null,null,null,null,null,null,982,280]
[null,null,null,null,null,null,null,null,null,null,null,null,null,null,null,null,null,null,null,null,null,null,null,null,null,null,null,null,null,null,null,null,null,null,null,null,null,null,null,null,null,null,null,null,null,null,null,null,null,null,null,null,null,null,null,null,null,null,null,null,null,null,null,null,null,null,null,null,null,null,null,null,null,null,null,null,null,null,null,null,null,null,null,null,null,null,null,null,null,null,null,null,null,null,null,null,null,null,null,null,983,280]
[null,null,null,null,null,null,null,null,null,null,null,null,null,null,null,null,null,null,null,null,null,null,null,null,null,null,null,null,null,null,null,null,null,null,null,null,null,null,null,null,null,null,null,null,null,null,null,null,null,null,null,null,null,null,null,null,null,null,null,null,null,null,null,null,null,null,null,null,null,null,null,null,null,null,null,null,null,null,null,null,null,null,null,null,null,null,null,null,null,null,null,null,null,null,null,null,null,null,null,null,984,280]
[null,null,null,null,null,null,null,null,null,null,null,null,null,null,null,null,null,null,null,null,null,null,null,null,null,null,null,null,null,null,null,null,null,null,null,null,null,null,null,null,null,null,null,null,null,null,null,null,null,null,null,null,null,null,null,null,null,null,null,null,null,null,null,null,null,null,null,null,null,null,null,null,null,null,null,null,null,null,null,null,null,null,null,null,null,null,null,null,null,null,null,null,null,null,null,null,null,null,null,null,985,280]
[null,null,null,null,null,null,null,null,null,null,null,null,null,null,null,null,null,null,null,null,null,null,null,null,null,null,null,null,null,null,null,null,null,null,null,null,null,null,null,null,null,null,null,null,null,null,null,null,null,null,null,null,null,null,null,null,null,null,null,null,null,null,null,null,null,null,null,null,null,null,null,null,null,null,null,null,null,null,null,null,null,null,null,null,null,null,null,null,null,null,null,null,null,null,null,null,null,null,null,null,986,280]
[null,null,null,null,null,null,null,null,null,null,null,null,null,null,null,null,null,null,null,null,null,null,null,null,null,null,null,null,null,null,null,null,null,null,null,null,null,null,null,null,null,null,null,null,null,null,null,null,null,null,null,null,null,null,null,null,null,null,null,null,null,null,null,null,null,null,null,null,null,null,null,null,null,null,null,null,null,null,null,null,null,null,null,null,null,null,null,null,null,null,null,null,null,null,null,null,null,null,null,null,987,280]
[null,null,null,null,null,null,null,null,null,null,null,null,null,null,null,null,null,null,null,null,null,null,null,null,null,null,null,null,null,null,null,null,null,null,null,null,null,null,null,null,null,null,null,null,null,null,null,null,null,null,null,null,null,null,null,null,null,null,null,null,null,null,null,null,null,null,null,null,null,null,null,null,null,null,null,null,null,null,null,null,null,null,null,null,null,null,null,null,null,null,null,null,null,null,null,null,null,null,null,null,990,280]
[null,null,null,null,null,null,null,null,null,null,null,null,null,null,null,null,null,null,null,null,null,null,null,null,null,null,null,null,null,null,null,null,null,null,null,null,null,null,null,null,null,null,null,null,null,null,null,null,null,null,null,null,null,null,null,null,null,null,null,null,null,null,null,null,null,null,null,null,null,null,null,null,null,null,null,null,null,null,null,null,null,null,null,null,null,null,null,null,null,null,null,null,null,null,null,null,null,null,null,null,995,0]

{"sheet":"Calcul - PEEOL - FPrivée","index":4,"n_rows":63,"n_cols":9,"rows_kept":63,"cut":false,"hidden":true,"merged":[[26,0,26,5],[0,0,0,8],[1,0,1,8],[2,0,2,6],[2,7,2,8],[3,0,3,5],[3,6,3,8],[4,0,4,8],[5,0,5,5],[6,0,6,5],[6,6,6,8],[7,0,7,5],[7,6,7,8],[8,0,8,5],[8,6,8,8],[9,0,9,5],[10,0,10,8],[11,0,11,5],[13,0,13,4],[14,0,14,5],[15,0,15,5],[12,0,12,5],[24,0,24,5],[22,0,22,5],[25,0,25,5],[16,0,16,5],[21,0,21,5],[18,0,18,5],[19,0,19,5],[17,0,17,5],[20,0,20,5],[23,0,23,5],[29,0,29,8],[27,0,27,8],[28,0,28,5],[30,0,30,8],[31,0,31,8],[32,0,32,8],[33,0,33,8],[34,0,36,5],[34,6,36,8],[37,0,37,5],[37,6,37,8],[38,0,39,5],[38,6,39,8],[40,0,40,5],[40,6,40,8],[41,0,41,8],[42,0,42,8],[43,0,43,8],[44,0,44,8],[45,0,47,5],[45,6,47,8],[48,0,48,5],[48,6,48,8],[49,0,50,5],[49,6,50,8],[51,0,51,5],[51,6,51,8],[52,0,52,8],[53,0,53,8],[54,0,54,8],[55,0,55,8],[56,0,58,5],[56,6,58,8],[59,0,59,5],[59,6,59,8],[60,0,61,5],[60,6,61,8],[62,0,62,5],[62,6,62,8]]}
[]
["Programme exceptionnel d’écoulement des bois feuillus de faible qualité des régions de l’Outaouais et des Laurentides\nForêt privée\nAnnexe au rapport et au calcul de l'aide pour le transport des bois\n2020-2021              \n"]
[" *** Veuillez saisir les informations dans les cellules blanches (Bénéficiaire) et jaunes (Ministère) ***",null,null,null,null,null,null,"Version 4 - FPr : 2020-12-17"]
["Contexte d'utilisation"]
["Identification"]
["Territoire du plan conjoint des producteurs de bois\nValeur requise pour le calcul"]
["Propriétaire"]
["Numéro du plan d'aménagement forestier"]
["Numéro de la prescription"]
["Inscrire les renseignements dans la colonne associée au contexte d'utilisation",null,null,null,null,null,"Planification","Bénéficiaire","Ministère"]
["Admissibilité et calcul de l'aide au transport — Forêt privée\nInscrire une valeur à I6"]
["Volume provenant d'un territoire des plans conjoints des producteurs de bois admissibles\nLes volumes transportés doivent provenir des territoires des plans conjoints des producteurs de bois de\n« Laurentides et Outaouais », « Pontiac » ou « Vallée de la Gatineau»"]
["Volume transporté pour l'usine de destination #1 (m3)"]
["Usine de destination des bois #1",null,null,null,null,{"$f":"IF(ISNA(VLOOKUP($I$6,Territoire_plan_conjoint_FPr_Question,1,FALSE)),\"Non_admissible\",\"Question\")","v":"Non_admissible"}]
["Type de bois de faible qualité #1"]
["Taux d'aide au transport - Usine de destination #1 ($/m3)",null,null,null,null,null,{"$f":"IFERROR(IF(EXACT(UPPER($G$12),UPPER(Menus!$A$2)),VLOOKUP(CONCATENATE($I$6,\" - \",$G$14,\" - \",$G$15),Tableau_Plan_conjoint_Destination_Essence_FPr,5,FALSE),0),0)","v":0},{"$f":"IFERROR(IF(EXACT(UPPER($H$12),UPPER(Menus!$A$2)),IF(OR(EXACT(UPPER($G$4),UPPER(Menus!$A$52)),EXACT(UPPER($G$4),UPPER(Menus!$A$53)),EXACT(UPPER($G$4),UPPER(Menus!$A$54))),VLOOKUP(CONCATENATE($I$6,\" - \",$H$14,\" - \",$H$15),Tableau_Plan_conjoint_Destination_Essence_FPr,5,FALSE),0),0),0)","v":0},{"$f":"IFERROR(IF(EXACT(UPPER($I$12),UPPER(Menus!$A$2)),IF(EXACT(UPPER($G$4),UPPER(Menus!$A$53)),VLOOKUP(CONCATENATE($I$6,\" - \",$I$14,\" - \",$I$15),Tableau_Plan_conjoint_Destination_Essence_FPr,5,FALSE),0),0),0)","v":0}]
["Sous-total pour l'usine #1 ($)",null,null,null,null,null,{"$f":"IFERROR(ROUND($G$13*$G$16,2),0)","v":0},{"$f":"IFERROR(ROUND($H$13*$H$16,2),0)","v":0},{"$f":"IFERROR(ROUND($I$13*$I$16,2),0)","v":0}]
["Volume transporté pour l'usine de destination #2 (m3)"]
["Usine de destination des bois #2"]
["Type de bois de faible qualité #2"]
["Taux d'aide au transport - Usine de destination #2 ($/m3)",null,null,null,null,null,{"$f":"IFERROR(IF(EXACT(UPPER($G$12),UPPER(Menus!$A$2)),VLOOKUP(CONCATENATE($I$6,\" - \",$G$19,\" - \",$G$20),Tableau_Plan_conjoint_Destination_Essence_FPr,5,FALSE),0),0)","v":0},{"$f":"IFERROR(IF(EXACT(UPPER($H$12),UPPER(Menus!$A$2)),IF(OR(EXACT(UPPER($G$4),UPPER(Menus!$A$52)),EXACT(UPPER($G$4),UPPER(Menus!$A$53)),EXACT(UPPER($G$4),UPPER(Menus!$A$54))),VLOOKUP(CONCATENATE($I$6,\" - \",$H$19,\" - \",$H$20),Tableau_Plan_conjoint_Destination_Essence_FPr,5,FALSE),0),0),0)","v":0},{"$f":"IFERROR(IF(EXACT(UPPER($I$12),UPPER(Menus!$A$2)),IF(EXACT(UPPER($G$4),UPPER(Menus!$A$53)),VLOOKUP(CONCATENATE($I$6,\" - \",$I$19,\" - \",$I$20),Tableau_Plan_conjoint_Destination_Essence_FPr,5,FALSE),0),0),0)","v":0}]
["Sous-total pour l'usine #2 ($)",null,null,null,null,null,{"$f":"IFERROR(ROUND($G$18*$G$21,2),0)","v":0},{"$f":"IFERROR(ROUND($H$18*$H$21,2),0)","v":0},{"$f":"IFERROR(ROUND($I$18*$I$21,2),0)","v":0}]
["Volume transporté pour l'usine de destination #3 (m3)"]
["Usine de destination des bois #3"]
["Type de bois de faible qualité #3"]
["Taux d'aide au transport - Usine de destination #3 ($/m3)",null,null,null,null,null,{"$f":"IFERROR(IF(EXACT(UPPER($G$12),UPPER(Menus!$A$2)),VLOOKUP(CONCATENATE($I$6,\" - \",$G$24,\" - \",$G$25),Tableau_Plan_conjoint_Destination_Essence_FPr,5,FALSE),0),0)","v":0},{"$f":"IFERROR(IF(EXACT(UPPER($H$12),UPPER(Menus!$A$2)),IF(OR(EXACT(UPPER($G$4),UPPER(Menus!$A$52)),EXACT(UPPER($G$4),UPPER(Menus!$A$53)),EXACT(UPPER($G$4),UPPER(Menus!$A$54))),VLOOKUP(CONCATENATE($I$6,\" - \",$H$24,\" - \",$H$25),Tableau_Plan_conjoint_Destination_Essence_FPr,5,FALSE),0),0),0)","v":0},{"$f":"IFERROR(IF(EXACT(UPPER($I$12),UPPER(Menus!$A$2)),IF(EXACT(UPPER($G$4),UPPER(Menus!$A$53)),VLOOKUP(CONCATENATE($I$6,\" - \",$I$24,\" - \",$I$25),Tableau_Plan_conjoint_Destination_Essence_FPr,5,FALSE),0),0),0)","v":0}]
["Sous-total pour l'usine #3 ($)",null,null,null,null,null,{"$f":"IFERROR(ROUND($G$23*$G$26,2),0)","v":0},{"$f":"IFERROR(ROUND($H$23*$H$26,2),0)","v":0},{"$f":"IFERROR(ROUND($I$23*$I$26,2),0)","v":0}]
["Résumé de l'aide pour le Programme exceptionnel d’écoulement des bois feuillus de faible qualité des régions de l’Outaouais et des Laurentides"]
["Grand total admissible ($)",null,null,null,null,null,{"$f":"IFERROR(ROUND(SUM($G$17,$G$22,$G$27),2),0)","v":0},{"$f":"IFERROR(ROUND(SUM($H$17,$H$22,$H$27),2),0)","v":0},{"$f":"IFERROR(ROUND(SUM($I$17,$I$22,$I$27),2),0)","v":0}]
[]
["Section réservée à l'usage de la Planification"]
["Remarques"]
[]
["J'atteste que les renseignements fournis dans ce document afin de calculer l'aide supplémentaire sont complets et conformes à la vérité, au meilleur de mes connaissances."]
[]
[]
[]
["Nom et prénom de l'ingénieur forestier",null,null,null,null,null,"No de permis"]
[null,null,null,null,null,null,{"$f":"TODAY()","v":"2021-02-03"}]
[]
["Signature de l'ingénieur forestier",null,null,null,null,null,"Date (AAAA-MM-JJ)"]
["Section réservée à l'usage du Bénéficiaire"]
["Remarques"]
[]
["J'atteste que les renseignements fournis dans ce document afin de calculer l'aide supplémentaire sont complets et conformes à la vérité, au meilleur de mes connaissances."]
[]
[]
[]
["Nom et prénom de l'ingénieur forestier",null,null,null,null,null,"No de permis"]
[null,null,null,null,null,null,{"$f":"TODAY()","v":"2021-02-03"}]
[]
["Signature de l'ingénieur forestier",null,null,null,null,null,"Date (AAAA-MM-JJ)"]
["Section réservée à l'usage du Ministère"]
["Remarques"]
[]
["J'atteste que les renseignements fournis dans ce document afin de calculer l'aide supplémentaire sont complets et conformes à la vérité, au meilleur de mes connaissances."]
[]
[]
[]
["Nom et prénom de l'ingénieur forestier",null,null,null,null,null,"No de permis"]
[null,null,null,null,null,null,{"$f":"TODAY()","v":"2021-02-03"}]
[]
["Signature de l'ingénieur forestier",null,null,null,null,null,"Date (AAAA-MM-JJ)"]

{"sheet":"Carte admi. - PEEOL - FPublique","index":5,"n_rows":0,"n_cols":0,"rows_kept":0,"cut":false,"hidden":true,"merged":[]}

{"sheet":"Cartes admis. - PEEOL - FPrivée","index":6,"n_rows":0,"n_cols":0,"rows_kept":0,"cut":false,"hidden":true,"merged":[]}

{"sheet":"Versions du fichier - FPublique","index":7,"n_rows":24,"n_cols":20,"rows_kept":24,"cut":false,"hidden":true,"merged":[[0,0,0,16],[0,19,0,24],[12,2,12,12],[13,2,13,12]]}
["Programme exceptionnel d’écoulement des bois feuillus de faible qualité des régions de l’Outaouais et des Laurentides\nForêt publique\nSuivi des versions du fichier de l'annexe au rapport et au calcul de l'aide pour le transport des bois pour l’exercice 2020-2021                     ",null,null,null,null,null,null,null,null,null,null,null,null,null,null,null,null,null,null,"Version 5 - FPu : 2021-02-03"]
[]
["Version 1 - FPu","Nom du fichier :","Calcul_aide_PEEOL_FPublique_2020-2021_2020-07-20.xlsm"]
[{"$f":"A3","v":"Version 1 - FPu"},"Date de mise en ligne :","2020-07-21"]
[{"$f":"A4","v":"Version 1 - FPu"},"Remarques :","• Version officielle"]
[{"$f":"A5","v":"Version 1 - FPu"}]
["Version 2 - FPu","Nom du fichier :","Calcul_aide_PEEOL_FPublique_2020-2021_2020-07-22.xlsm"]
[{"$f":"A7","v":"Version 2 - FPu"},"Date de mise en ligne :","2020-07-22"]
[{"$f":"A8","v":"Version 2 - FPu"},"Remarques :","• Onglets « Calcul - PEEOL - BGAD » et « Calcul - PEEOL - Usine » : le format de certaines cellules a été modifié. Les calculs demeurent inchangés."]
[{"$f":"A9","v":"Version 2 - FPu"}]
["Version 3 - FPu","Nom du fichier :","Calcul_aide_PEEOL_FPublique_2020-2021_2020-09-04.xlsm"]
[{"$f":"A11","v":"Version 3 - FPu"},"Date de mise en ligne :","2020-09-04 ou dans les jours suivants."]
[{"$f":"A12","v":"Version 3 - FPu"},"Remarques :","• Onglet « Calcul - PEEOL - BGAD » : ajout de certains BGAD, correction des libellés aux lignes 12 et 30, ajustement de l'unité de mesure à la ligne 35 \n   et correctifs aux calculs à G38, H38 et I38."]
[{"$f":"A13","v":"Version 3 - FPu"},null,"• Onglet « Calcul - PEEOL - Usine » : ajout de certaines villes de provenance et d'une usine de destination ainsi que correctifs à la valeur de l'aide pour\n   certaines combinaisons de ville et de destination."]
[{"$f":"A14","v":"Version 3 - FPu"},null,null,null,{"$f":"LOWER(E14)","v":""}]
["Version 4 - FPu","Nom du fichier :","Calcul_aide_PEEOL_FPublique_2020-2021_2020-12-02.xlsm"]
[{"$f":"A16","v":"Version 4 - FPu"},"Date de mise en ligne :","2020-12-02 ou dans les jours suivants."]
[{"$f":"A17","v":"Version 4 - FPu"},"Remarques :","• Onglet « Calcul - PEEOL - BGAD » : ajout de certains BGAD."]
[{"$f":"A18","v":"Version 4 - FPu"},null,"• Onglet « Calcul - PEEOL - Usine » : ajout de certaines villes de provenance et d'usines de destination."]
[{"$f":"A19","v":"Version 4 - FPu"}]
["Version 5 - FPu","Nom du fichier :","Calcul_aide_PEEOL_FPublique_2020-2021_2021-02-03.xlsm"]
[null,"Date de mise en ligne :","2021-02-03 ou dans les jours suivants."]
[null,"Remarques :","• Onglet « Calcul - PEEOL - BGAD » : ajout d'un BGAD."]
[null,null,"• Onglet « Calcul - PEEOL - Usine  » : ajout d'une ville de provenance."]

{"sheet":"Versions du fichier - FPrivée","index":8,"n_rows":18,"n_cols":20,"rows_kept":18,"cut":false,"hidden":true,"merged":[[0,0,0,16],[0,19,0,24]]}
["Programme exceptionnel d’écoulement des bois feuillus de faible qualité des régions de l’Outaouais et des Laurentides\nForêt privée\nSuivi des versions du fichier de l'annexe au rapport et au calcul de l'aide pour le transport des bois pour l’exercice 2020-2021                     ",null,null,null,null,null,null,null,null,null,null,null,null,null,null,null,null,null,null,"Version 4 - FPr : 2020-12-17"]
[]
["Version 1 - FPr","Nom du fichier :","Calcul_aide_PEEOL_FPrivée_2020-2021_2020-07-20.xlsm"]
[{"$f":"A3","v":"Version 1 - FPr"},"Date de mise en ligne :","2020-07-21"]
[{"$f":"A4","v":"Version 1 - FPr"},"Remarques :","• Version officielle"]
[{"$f":"A5","v":"Version 1 - FPr"}]
["Version 2 - FPr","Nom du fichier :","Calcul_aide_PEEOL_FPrivée_2020-2021_2020-07-22.xlsm"]
[{"$f":"A7","v":"Version 2 - FPr"},"Date de mise en ligne :","2020-07-22"]
[{"$f":"A8","v":"Version 2 - FPr"},"Remarques :","• Onglet « Calcul - PEEOL - FPrivée » : le format de certaines cellules a été modifié. Les calculs demeurent inchangés."]
[{"$f":"A9","v":"Version 2 - FPr"}]
["Version 3 - FPr","Nom du fichier :","Calcul_aide_PEEOL_FPrivée_2020-2021_2020-12-02.xlsm"]
[{"$f":"A11","v":"Version 3 - FPr"},"Date de mise en ligne :","2020-12-02 ou dans les jours suivants."]
[{"$f":"A12","v":"Version 3 - FPr"},"Remarques :","• Onglet « Calcul - PEEOL - FPrivée » : ajout d'une usine de destination et modification d'un libellé pour le contexte d'utilisation."]
["Version 3 - FPr"]
["Version 4 - FPr","Nom du fichier :","Calcul_aide_PEEOL_FPrivée_2020-2021_2020-12-17.xlsm"]
[{"$f":"A15","v":"Version 4 - FPr"},"Date de mise en ligne :","2020-12-17 ou dans les jours suivants."]
[{"$f":"A16","v":"Version 4 - FPr"},"Remarques :","• Onglet « Calcul - PEEOL - FPrivée » : modification des taux pour le peuplier."]
["Version 3 - FPr"]

{"sheet":"Menus","index":9,"n_rows":854,"n_cols":6,"rows_kept":854,"cut":false,"hidden":true,"merged":[]}
["Question"]
["Oui"]
["Non"]
["Sans objet"]
["Non admissible"]
[]
["UA (R14-15 et R07 seulement)"]
["06151"]
["06452"]
["06471"]
["07151"]
["07152"]
["07251"]
["07351"]
["07352"]
["07451"]
[]
["Zone de tarification"]
["648"]
["649"]
["656"]
["657"]
["658"]
["659"]
["660"]
["661"]
["662"]
["750"]
["751"]
["752"]
["753"]
["754"]
["755"]
["756"]
["757"]
["758"]
["Inscrire une valeur"]
[]
["Contexte - BGAD"]
["Planification"]
["BGAD"]
["Ministère"]
["Inscrire une valeur"]
[]
["Contexte - Usine de destination"]
["Planification"]
["Usine de destination"]
["Ministère"]
["Inscrire une valeur"]
[]
["Contexte - Forêt privée"]
["Bénéficiaire"]
["Ministère"]
["Inscrire une valeur"]
[]
["BGAD"]
["CCPL - Low"]
["CCPL - Mansfield-et-Pontefract"]
["CCPL - Mont­Laurier"]
["CCPL - Rapides-des-Joachims"]
["CCPL - Sainte­Thérèse"]
["Forespect inc."]
["Forex inc."]
["Groupe Crête"]
["Jovalco Produits forestiers inc."]
["Lauzon - Planchers de bois exclusifs inc. "]
["Louisiana-Pacific Canada Ltd. (Bois­Franc) "]
["PF Résolu Canada inc. (Maniwaki)"]
["Produits forestiers Lachance inc. "]
["Scierie Carrière ltée "]
[]
["Zone de tarification et BGAD (RechercheV) - A BGAD (CP)","Zone","Numéro de l'usine","Nom de l'usine","Ville","Aide$/ha CP"]
[{"$f":"B73&\" - \"&D73","v":"648 - Jovalco Produits forestiers inc."},648,"071-1-001","Jovalco Produits forestiers inc.","Litchfield",320]
["649 - Jovalco Produits forestiers inc.",649,"071-1-001","Jovalco Produits forestiers inc.","Litchfield",320]
["656 - Jovalco Produits forestiers inc.",656,"071-1-001","Jovalco Produits forestiers inc.","Litchfield",320]
["657 - Jovalco Produits forestiers inc.",657,"071-1-001","Jovalco Produits forestiers inc.","Litchfield",320]
["658 - Jovalco Produits forestiers inc.",658,"071-1-001","Jovalco Produits forestiers inc.","Litchfield",320]
["659 - Jovalco Produits forestiers inc.",659,"071-1-001","Jovalco Produits forestiers inc.","Litchfield",320]
["660 - Jovalco Produits forestiers inc.",660,"071-1-001","Jovalco Produits forestiers inc.","Litchfield",320]
["661 - Jovalco Produits forestiers inc.",661,"071-1-001","Jovalco Produits forestiers inc.","Litchfield",320]
["662 - Jovalco Produits forestiers inc.",662,"071-1-001","Jovalco Produits forestiers inc.","Litchfield",260]
["750 - Jovalco Produits forestiers inc.",750,"071-1-001","Jovalco Produits forestiers inc.","Litchfield",180]
["751 - Jovalco Produits forestiers inc.",751,"071-1-001","Jovalco Produits forestiers inc.","Litchfield",20]
["752 - Jovalco Produits forestiers inc.",752,"071-1-001","Jovalco Produits forestiers inc.","Litchfield",220]
["753 - Jovalco Produits forestiers inc.",753,"071-1-001","Jovalco Produits forestiers inc.","Litchfield",320]
["754 - Jovalco Produits forestiers inc.",754,"071-1-001","Jovalco Produits forestiers inc.","Litchfield",260]
["755 - Jovalco Produits forestiers inc.",755,"071-1-001","Jovalco Produits forestiers inc.","Litchfield",220]
["756 - Jovalco Produits forestiers inc.",756,"071-1-001","Jovalco Produits forestiers inc.","Litchfield",320]
["757 - Jovalco Produits forestiers inc.",757,"071-1-001","Jovalco Produits forestiers inc.","Litchfield",320]
["758 - Jovalco Produits forestiers inc.",758,"071-1-001","Jovalco Produits forestiers inc.","Litchfield",320]
["648 - Lauzon - Planchers de bois exclusifs inc. ",648,"072-1-005","Lauzon - Planchers de bois exclusifs inc. ","Papineauville",260]
["649 - Lauzon - Planchers de bois exclusifs inc. ",649,"072-1-005","Lauzon - Planchers de bois exclusifs inc. ","Papineauville",80]
["656 - Lauzon - Planchers de bois exclusifs inc. ",656,"072-1-005","Lauzon - Planchers de bois exclusifs inc. ","Papineauville",320]
["657 - Lauzon - Planchers de bois exclusifs inc. ",657,"072-1-005","Lauzon - Planchers de bois exclusifs inc. ","Papineauville",320]
["658 - Lauzon - Planchers de bois exclusifs inc. ",658,"072-1-005","Lauzon - Planchers de bois exclusifs inc. ","Papineauville",320]
["659 - Lauzon - Planchers de bois exclusifs inc. ",659,"072-1-005","Lauzon - Planchers de bois exclusifs inc. ","Papineauville",320]
["660 - Lauzon - Planchers de bois exclusifs inc. ",660,"072-1-005","Lauzon - Planchers de bois exclusifs inc. ","Papineauville",320]
["661 - Lauzon - Planchers de bois exclusifs inc. ",661,"072-1-005","Lauzon - Planchers de bois exclusifs inc. ","Papineauville",240]
["662 - Lauzon - Planchers de bois exclusifs inc. ",662,"072-1-005","Lauzon - Planchers de bois exclusifs inc. ","Papineauville",120]
["750 - Lauzon - Planchers de bois exclusifs inc. ",750,"072-1-005","Lauzon - Planchers de bois exclusifs inc. ","Papineauville",0]
["751 - Lauzon - Planchers de bois exclusifs inc. ",751,"072-1-005","Lauzon - Planchers de bois exclusifs inc. ","Papineauville",240]
["752 - Lauzon - Planchers de bois exclusifs inc. ",752,"072-1-005","Lauzon - Planchers de bois exclusifs inc. ","Papineauville",320]
["753 - Lauzon - Planchers de bois exclusifs inc. ",753,"072-1-005","Lauzon - Planchers de bois exclusifs inc. ","Papineauville",320]
["754 - Lauzon - Planchers de bois exclusifs inc. ",754,"072-1-005","Lauzon - Planchers de bois exclusifs inc. ","Papineauville",320]
[{"$f":"B105&\" - \"&D105","v":"755 - Lauzon - Planchers de bois exclusifs inc. "},755,"072-1-005","Lauzon - Planchers de bois exclusifs inc. ","Papineauville",280]
["756 - Lauzon - Planchers de bois exclusifs inc. ",756,"072-1-005","Lauzon - Planchers de bois exclusifs inc. ","Papineauville",320]
["757 - Lauzon - Planchers de bois exclusifs inc. ",757,"072-1-005","Lauzon - Planchers de bois exclusifs inc. ","Papineauville",320]
["758 - Lauzon - Planchers de bois exclusifs inc. ",758,"072-1-005","Lauzon - Planchers de bois exclusifs inc. ","Papineauville",320]
["648 - Forespect inc.",648,"072-1-012","Forespect inc.","Namur",160]
["649 - Forespect inc.",649,"072-1-012","Forespect inc.","Namur",0]
["656 - Forespect inc.",656,"072-1-012","Forespect inc.","Namur",260]
["657 - Forespect inc.",657,"072-1-012","Forespect inc.","Namur",280]
["658 - Forespect inc.",658,"072-1-012","Forespect inc.","Namur",320]
["659 - Forespect inc.",659,"072-1-012","Forespect inc.","Namur",320]
["660 - Forespect inc.",660,"072-1-012","Forespect inc.","Namur",320]
["661 - Forespect inc.",661,"072-1-012","Forespect inc.","Namur",200]
["662 - Forespect inc.",662,"072-1-012","Forespect inc.","Namur",140]
["750 - Forespect inc.",750,"072-1-012","Forespect inc.","Namur",20]
["751 - Forespect inc.",751,"072-1-012","Forespect inc.","Namur",320]
["752 - Forespect inc.",752,"072-1-012","Forespect inc.","Namur",320]
["753 - Forespect inc.",753,"072-1-012","Forespect inc.","Namur",320]
["754 - Forespect inc.",754,"072-1-012","Forespect inc.","Namur",320]
["755 - Forespect inc.",755,"072-1-012","Forespect inc.","Namur",320]
["756 - Forespect inc.",756,"072-1-012","Forespect inc.","Namur",320]
["757 - Forespect inc.",757,"072-1-012","Forespect inc.","Namur",320]
["758 - Forespect inc.",758,"072-1-012","Forespect inc.","Namur",320]
["648 - Produits forestiers Lachance inc. ",648,"142-1-005","Produits forestiers Lachance inc. ","Sainte-Émélie-de-l'Énergie",180]
["649 - Produits forestiers Lachance inc. ",649,"142-1-005","Produits forestiers Lachance inc. ","Sainte-Émélie-de-l'Énergie",160]
["656 - Produits forestiers Lachance inc. ",656,"142-1-005","Produits forestiers Lachance inc. ","Sainte-Émélie-de-l'Énergie",240]
["657 - Produits forestiers Lachance inc. ",657,"142-1-005","Produits forestiers Lachance inc. ","Sainte-Émélie-de-l'Énergie",280]
["658 - Produits forestiers Lachance inc. ",658,"142-1-005","Produits forestiers Lachance inc. ","Sainte-Émélie-de-l'Énergie",320]
["659 - Produits forestiers Lachance inc. ",659,"142-1-005","Produits forestiers Lachance inc. ","Sainte-Émélie-de-l'Énergie",320]
["660 - Produits forestiers Lachance inc. ",660,"142-1-005","Produits forestiers Lachance inc. ","Sainte-Émélie-de-l'Énergie",320]
["661 - Produits forestiers Lachance inc. ",661,"142-1-005","Produits forestiers Lachance inc. ","Sainte-Émélie-de-l'Énergie",320]
["662 - Produits forestiers Lachance inc. ",662,"142-1-005","Produits forestiers Lachance inc. ","Sainte-Émélie-de-l'Énergie",320]
["750 - Produits forestiers Lachance inc. ",750,"142-1-005","Produits forestiers Lachance inc. ","Sainte-Émélie-de-l'Énergie",280]
[{"$f":"B137&\" - \"&D137","v":"751 - Produits forestiers Lachance inc. "},751,"142-1-005","Produits forestiers Lachance inc. ","Sainte-Émélie-de-l'Énergie",320]
["752 - Produits forestiers Lachance inc. ",752,"142-1-005","Produits forestiers Lachance inc. ","Sainte-Émélie-de-l'Énergie",320]
["753 - Produits forestiers Lachance inc. ",753,"142-1-005","Produits forestiers Lachance inc. ","Sainte-Émélie-de-l'Énergie",320]
["754 - Produits forestiers Lachance inc. ",754,"142-1-005","Produits forestiers Lachance inc. ","Sainte-Émélie-de-l'Énergie",320]
["755 - Produits forestiers Lachance inc. ",755,"142-1-005","Produits forestiers Lachance inc. ","Sainte-Émélie-de-l'Énergie",320]
["756 - Produits forestiers Lachance inc. ",756,"142-1-005","Produits forestiers Lachance inc. ","Sainte-Émélie-de-l'Énergie",320]
["757 - Produits forestiers Lachance inc. ",757,"142-1-005","Produits forestiers Lachance inc. ","Sainte-Émélie-de-l'Énergie",320]
["758 - Produits forestiers Lachance inc. ",758,"142-1-005","Produits forestiers Lachance inc. ","Sainte-Émélie-de-l'Énergie",320]
["648 - Groupe Crête",648,"151-1-019","Groupe Crête","Saint-Faustin",160]
["649 - Groupe Crête",649,"151-1-019","Groupe Crête","Saint-Faustin",20]
["656 - Groupe Crête",656,"151-1-019","Groupe Crête","Saint-Faustin",260]
["657 - Groupe Crête",657,"151-1-019","Groupe Crête","Saint-Faustin",300]
["658 - Groupe Crête",658,"151-1-019","Groupe Crête","Saint-Faustin",320]
["659 - Groupe Crête",659,"151-1-019","Groupe Crête","Saint-Faustin",320]
["660 - Groupe Crête",660,"151-1-019","Groupe Crête","Saint-Faustin",320]
["661 - Groupe Crête",661,"151-1-019","Groupe Crête","Saint-Faustin",200]
["662 - Groupe Crête",662,"151-1-019","Groupe Crête","Saint-Faustin",220]
["750 - Groupe Crête",750,"151-1-019","Groupe Crête","Saint-Faustin",140]
["751 - Groupe Crête",751,"151-1-019","Groupe Crête","Saint-Faustin",320]
["752 - Groupe Crête",752,"151-1-019","Groupe Crête","Saint-Faustin",320]
["753 - Groupe Crête",753,"151-1-019","Groupe Crête","Saint-Faustin",320]
["754 - Groupe Crête",754,"151-1-019","Groupe Crête","Saint-Faustin",320]
["755 - Groupe Crête",755,"151-1-019","Groupe Crête","Saint-Faustin",320]
["756 - Groupe Crête",756,"151-1-019","Groupe Crête","Saint-Faustin",320]
["757 - Groupe Crête",757,"151-1-019","Groupe Crête","Saint-Faustin",320]
["758 - Groupe Crête",758,"151-1-019","Groupe Crête","Saint-Faustin",320]
["648 - Scierie Carrière ltée ",648,"151-1-020","Scierie Carrière ltée ","Lachute",240]
["649 - Scierie Carrière ltée ",649,"151-1-020","Scierie Carrière ltée ","Lachute",60]
["656 - Scierie Carrière ltée ",656,"151-1-020","Scierie Carrière ltée ","Lachute",320]
["657 - Scierie Carrière ltée ",657,"151-1-020","Scierie Carrière ltée ","Lachute",320]
["658 - Scierie Carrière ltée ",658,"151-1-020","Scierie Carrière ltée ","Lachute",320]
["659 - Scierie Carrière ltée ",659,"151-1-020","Scierie Carrière ltée ","Lachute",320]
[{"$f":"B169&\" - \"&D169","v":"660 - Scierie Carrière ltée "},660,"151-1-020","Scierie Carrière ltée ","Lachute",320]
["661 - Scierie Carrière ltée ",661,"151-1-020","Scierie Carrière ltée ","Lachute",280]
["662 - Scierie Carrière ltée ",662,"151-1-020","Scierie Carrière ltée ","Lachute",220]
["750 - Scierie Carrière ltée ",750,"151-1-020","Scierie Carrière ltée ","Lachute",100]
["751 - Scierie Carrière ltée ",751,"151-1-020","Scierie Carrière ltée ","Lachute",320]
["752 - Scierie Carrière ltée ",752,"151-1-020","Scierie Carrière ltée ","Lachute",320]
["753 - Scierie Carrière ltée ",753,"151-1-020","Scierie Carrière ltée ","Lachute",320]
["754 - Scierie Carrière ltée ",754,"151-1-020","Scierie Carrière ltée ","Lachute",320]
["755 - Scierie Carrière ltée ",755,"151-1-020","Scierie Carrière ltée ","Lachute",320]
["756 - Scierie Carrière ltée ",756,"151-1-020","Scierie Carrière ltée ","Lachute",320]
["757 - Scierie Carrière ltée ",757,"151-1-020","Scierie Carrière ltée ","Lachute",320]
["758 - Scierie Carrière ltée ",758,"151-1-020","Scierie Carrière ltée ","Lachute",320]
["648 - CCPL - Sainte­Thérèse",648,"152-2-004","CCPL - Sainte­Thérèse","Sainte-Thérèse",260]
["649 - CCPL - Sainte­Thérèse",649,"152-2-004","CCPL - Sainte­Thérèse","Sainte-Thérèse",120]
["656 - CCPL - Sainte­Thérèse",656,"152-2-004","CCPL - Sainte­Thérèse","Sainte-Thérèse",320]
["657 - CCPL - Sainte­Thérèse",657,"152-2-004","CCPL - Sainte­Thérèse","Sainte-Thérèse",320]
["658 - CCPL - Sainte­Thérèse",658,"152-2-004","CCPL - Sainte­Thérèse","Sainte-Thérèse",320]
["659 - CCPL - Sainte­Thérèse",659,"152-2-004","CCPL - Sainte­Thérèse","Sainte-Thérèse",320]
["660 - CCPL - Sainte­Thérèse",660,"152-2-004","CCPL - Sainte­Thérèse","Sainte-Thérèse",320]
["661 - CCPL - Sainte­Thérèse",661,"152-2-004","CCPL - Sainte­Thérèse","Sainte-Thérèse",300]
["662 - CCPL - Sainte­Thérèse",662,"152-2-004","CCPL - Sainte­Thérèse","Sainte-Thérèse",300]
["750 - CCPL - Sainte­Thérèse",750,"152-2-004","CCPL - Sainte­Thérèse","Sainte-Thérèse",200]
["751 - CCPL - Sainte­Thérèse",751,"152-2-004","CCPL - Sainte­Thérèse","Sainte-Thérèse",320]
["752 - CCPL - Sainte­Thérèse",752,"152-2-004","CCPL - Sainte­Thérèse","Sainte-Thérèse",320]
["753 - CCPL - Sainte­Thérèse",753,"152-2-004","CCPL - Sainte­Thérèse","Sainte-Thérèse",320]
["754 - CCPL - Sainte­Thérèse",754,"152-2-004","CCPL - Sainte­Thérèse","Sainte-Thérèse",320]
["755 - CCPL - Sainte­Thérèse",755,"152-2-004","CCPL - Sainte­Thérèse","Sainte-Thérèse",320]
["756 - CCPL - Sainte­Thérèse",756,"152-2-004","CCPL - Sainte­Thérèse","Sainte-Thérèse",320]
["757 - CCPL - Sainte­Thérèse",757,"152-2-004","CCPL - Sainte­Thérèse","Sainte-Thérèse",320]
["758 - CCPL - Sainte­Thérèse",758,"152-2-004","CCPL - Sainte­Thérèse","Sainte-Thérèse",320]
["648 - CCPL - Mont­Laurier",648,"154-1-006","CCPL - Mont­Laurier","Mont-Laurier",100]
["649 - CCPL - Mont­Laurier",649,"154-1-006","CCPL - Mont­Laurier","Mont-Laurier",120]
[{"$f":"B201&\" - \"&D201","v":"656 - CCPL - Mont­Laurier"},656,"154-1-006","CCPL - Mont­Laurier","Mont-Laurier",180]
["657 - CCPL - Mont­Laurier",657,"154-1-006","CCPL - Mont­Laurier","Mont-Laurier",100]
["658 - CCPL - Mont­Laurier",658,"154-1-006","CCPL - Mont­Laurier","Mont-Laurier",260]
["659 - CCPL - Mont­Laurier",659,"154-1-006","CCPL - Mont­Laurier","Mont-Laurier",320]
["660 - CCPL - Mont­Laurier",660,"154-1-006","CCPL - Mont­Laurier","Mont-Laurier",120]
["661 - CCPL - Mont­Laurier",661,"154-1-006","CCPL - Mont­Laurier","Mont-Laurier",0]
["662 - CCPL - Mont­Laurier",662,"154-1-006","CCPL - Mont­Laurier","Mont-Laurier",40]
["750 - CCPL - Mont­Laurier",750,"154-1-006","CCPL - Mont­Laurier","Mont-Laurier",140]
["751 - CCPL - Mont­Laurier",751,"154-1-006","CCPL - Mont­Laurier","Mont-Laurier",320]
["752 - CCPL - Mont­Laurier",752,"154-1-006","CCPL - Mont­Laurier","Mont-Laurier",320]
["753 - CCPL - Mont­Laurier",753,"154-1-006","CCPL - Mont­Laurier","Mont-Laurier",320]
["754 - CCPL - Mont­Laurier",754,"154-1-006","CCPL - Mont­Laurier","Mont-Laurier",240]
["755 - CCPL - Mont­Laurier",755,"154-1-006","CCPL - Mont­Laurier","Mont-Laurier",100]
["756 - CCPL - Mont­Laurier",756,"154-1-006","CCPL - Mont­Laurier","Mont-Laurier",260]
["757 - CCPL - Mont­Laurier",757,"154-1-006","CCPL - Mont­Laurier","Mont-Laurier",240]
["758 - CCPL - Mont­Laurier",758,"154-1-006","CCPL - Mont­Laurier","Mont-Laurier",320]
["648 - Forex inc.",648,"154-1-007","Forex inc.","Mont-Laurier",120]
["649 - Forex inc.",649,"154-1-007","Forex inc.","Mont-Laurier",140]
["656 - Forex inc.",656,"154-1-007","Forex inc.","Mont-Laurier",180]
["657 - Forex inc.",657,"154-1-007","Forex inc.","Mont-Laurier",100]
["658 - Forex inc.",658,"154-1-007","Forex inc.","Mont-Laurier",240]
["659 - Forex inc.",659,"154-1-007","Forex inc.","Mont-Laurier",320]
["660 - Forex inc.",660,"154-1-007","Forex inc.","Mont-Laurier",120]
["661 - Forex inc.",661,"154-1-007","Forex inc.","Mont-Laurier",0]
["662 - Forex inc.",662,"154-1-007","Forex inc.","Mont-Laurier",40]
["750 - Forex inc.",750,"154-1-007","Forex inc.","Mont-Laurier",120]
["751 - Forex inc.",751,"154-1-007","Forex inc.","Mont-Laurier",320]
["752 - Forex inc.",752,"154-1-007","Forex inc.","Mont-Laurier",320]
["753 - Forex inc.",753,"154-1-007","Forex inc.","Mont-Laurier",320]
["754 - Forex inc.",754,"154-1-007","Forex inc.","Mont-Laurier",240]
["755 - Forex inc.",755,"154-1-007","Forex inc.","Mont-Laurier",100]
["756 - Forex inc.",756,"154-1-007","Forex inc.","Mont-Laurier",260]
[{"$f":"B233&\" - \"&D233","v":"757 - Forex inc."},757,"154-1-007","Forex inc.","Mont-Laurier",240]
["758 - Forex inc.",758,"154-1-007","Forex inc.","Mont-Laurier",320]
["648 - Forex inc.",648,"154-2-006","Forex inc.","Mont-Laurier",120]
["649 - Forex inc.",649,"154-2-006","Forex inc.","Mont-Laurier",140]
["656 - Forex inc.",656,"154-2-006","Forex inc.","Mont-Laurier",180]
["657 - Forex inc.",657,"154-2-006","Forex inc.","Mont-Laurier",100]
["658 - Forex inc.",658,"154-2-006","Forex inc.","Mont-Laurier",240]
["659 - Forex inc.",659,"154-2-006","Forex inc.","Mont-Laurier",320]
["660 - Forex inc.",660,"154-2-006","Forex inc.","Mont-Laurier",120]
["661 - Forex inc.",661,"154-2-006","Forex inc.","Mont-Laurier",0]
["662 - Forex inc.",662,"154-2-006","Forex inc.","Mont-Laurier",40]
["750 - Forex inc.",750,"154-2-006","Forex inc.","Mont-Laurier",120]
["751 - Forex inc.",751,"154-2-006","Forex inc.","Mont-Laurier",320]
["752 - Forex inc.",752,"154-2-006","Forex inc.","Mont-Laurier",320]
["753 - Forex inc.",753,"154-2-006","Forex inc.","Mont-Laurier",320]
["754 - Forex inc.",754,"154-2-006","Forex inc.","Mont-Laurier",240]
["755 - Forex inc.",755,"154-2-006","Forex inc.","Mont-Laurier",100]
["756 - Forex inc.",756,"154-2-006","Forex inc.","Mont-Laurier",260]
["757 - Forex inc.",757,"154-2-006","Forex inc.","Mont-Laurier",240]
["758 - Forex inc.",758,"154-2-006","Forex inc.","Mont-Laurier",320]
["648 - CCPL - Low",648,"072-1-001","CCPL - Low","Low",320]
["649 - CCPL - Low",649,"072-1-001","CCPL - Low","Low",240]
["656 - CCPL - Low",656,"072-1-001","CCPL - Low","Low",320]
["657 - CCPL - Low",657,"072-1-001","CCPL - Low","Low",320]
["658 - CCPL - Low",658,"072-1-001","CCPL - Low","Low",320]
["659 - CCPL - Low",659,"072-1-001","CCPL - Low","Low",320]
["660 - CCPL - Low",660,"072-1-001","CCPL - Low","Low",320]
["661 - CCPL - Low",661,"072-1-001","CCPL - Low","Low",260]
["662 - CCPL - Low",662,"072-1-001","CCPL - Low","Low",160]
["750 - CCPL - Low",750,"072-1-001","CCPL - Low","Low",80]
["751 - CCPL - Low",751,"072-1-001","CCPL - Low","Low",140]
["752 - CCPL - Low",752,"072-1-001","CCPL - Low","Low",320]
["753 - CCPL - Low",753,"072-1-001","CCPL - Low","Low",320]
["754 - CCPL - Low",754,"072-1-001","CCPL - Low","Low",280]
["755 - CCPL - Low",755,"072-1-001","CCPL - Low","Low",180]
["756 - CCPL - Low",756,"072-1-001","CCPL - Low","Low",320]
["757 - CCPL - Low",757,"072-1-001","CCPL - Low","Low",320]
["758 - CCPL - Low",758,"072-1-001","CCPL - Low","Low",320]
["648 - CCPL - Rapides-des-Joachims",648,"071-1-002","CCPL - Rapides-des-Joachims","Rapides-des-Joachims",320]
["649 - CCPL - Rapides-des-Joachims",649,"071-1-002","CCPL - Rapides-des-Joachims","Rapides-des-Joachims",320]
["656 - CCPL - Rapides-des-Joachims",656,"071-1-002","CCPL - Rapides-des-Joachims","Rapides-des-Joachims",320]
["657 - CCPL - Rapides-des-Joachims",657,"071-1-002","CCPL - Rapides-des-Joachims","Rapides-des-Joachims",320]
["658 - CCPL - Rapides-des-Joachims",658,"071-1-002","CCPL - Rapides-des-Joachims","Rapides-des-Joachims",320]
["659 - CCPL - Rapides-des-Joachims",659,"071-1-002","CCPL - Rapides-des-Joachims","Rapides-des-Joachims",320]
["660 - CCPL - Rapides-des-Joachims",660,"071-1-002","CCPL - Rapides-des-Joachims","Rapides-des-Joachims",320]
["661 - CCPL - Rapides-des-Joachims",661,"071-1-002","CCPL - Rapides-des-Joachims","Rapides-des-Joachims",320]
["662 - CCPL - Rapides-des-Joachims",662,"071-1-002","CCPL - Rapides-des-Joachims","Rapides-des-Joachims",320]
["750 - CCPL - Rapides-des-Joachims",750,"071-1-002","CCPL - Rapides-des-Joachims","Rapides-des-Joachims",320]
["751 - CCPL - Rapides-des-Joachims",751,"071-1-002","CCPL - Rapides-des-Joachims","Rapides-des-Joachims",200]
["752 - CCPL - Rapides-des-Joachims",752,"071-1-002","CCPL - Rapides-des-Joachims","Rapides-des-Joachims",80]
["753 - CCPL - Rapides-des-Joachims",753,"071-1-002","CCPL - Rapides-des-Joachims","Rapides-des-Joachims",220]
["754 - CCPL - Rapides-des-Joachims",754,"071-1-002","CCPL - Rapides-des-Joachims","Rapides-des-Joachims",320]
["755 - CCPL - Rapides-des-Joachims",755,"071-1-002","CCPL - Rapides-des-Joachims","Rapides-des-Joachims",320]
["756 - CCPL - Rapides-des-Joachims",756,"071-1-002","CCPL - Rapides-des-Joachims","Rapides-des-Joachims",320]
["757 - CCPL - Rapides-des-Joachims",757,"071-1-002","CCPL - Rapides-des-Joachims","Rapides-des-Joachims",320]
[{"$f":"B288&\" - \"&D288","v":"758 - CCPL - Rapides-des-Joachims"},758,"071-1-002","CCPL - Rapides-des-Joachims","Rapides-des-Joachims",320]
[{"$f":"B289&\" - \"&D289","v":"648 - Louisiana-Pacific Canada Ltd. (Bois­Franc) "},648,"073-0-001","Louisiana-Pacific Canada Ltd. (Bois­Franc) ","Bois­Franc",220]
["649 - Louisiana-Pacific Canada Ltd. (Bois­Franc) ",649,"073-0-001","Louisiana-Pacific Canada Ltd. (Bois­Franc) ","Bois­Franc",220]
["656 - Louisiana-Pacific Canada Ltd. (Bois­Franc) ",656,"073-0-001","Louisiana-Pacific Canada Ltd. (Bois­Franc) ","Bois­Franc",280]
["657 - Louisiana-Pacific Canada Ltd. (Bois­Franc) ",657,"073-0-001","Louisiana-Pacific Canada Ltd. (Bois­Franc) ","Bois­Franc",200]
["658 - Louisiana-Pacific Canada Ltd. (Bois­Franc) ",658,"073-0-001","Louisiana-Pacific Canada Ltd. (Bois­Franc) ","Bois­Franc",320]
["659 - Louisiana-Pacific Canada Ltd. (Bois­Franc) ",659,"073-0-001","Louisiana-Pacific Canada Ltd. (Bois­Franc) ","Bois­Franc",320]
["660 - Louisiana-Pacific Canada Ltd. (Bois­Franc) ",660,"073-0-001","Louisiana-Pacific Canada Ltd. (Bois­Franc) ","Bois­Franc",160]
["661 - Louisiana-Pacific Canada Ltd. (Bois­Franc) ",661,"073-0-001","Louisiana-Pacific Canada Ltd. (Bois­Franc) ","Bois­Franc",100]
["662 - Louisiana-Pacific Canada Ltd. (Bois­Franc) ",662,"073-0-001","Louisiana-Pacific Canada Ltd. (Bois­Franc) ","Bois­Franc",120]
["750 - Louisiana-Pacific Canada Ltd. (Bois­Franc) ",750,"073-0-001","Louisiana-Pacific Canada Ltd. (Bois­Franc) ","Bois­Franc",180]
["751 - Louisiana-Pacific Canada Ltd. (Bois­Franc) ",751,"073-0-001","Louisiana-Pacific Canada Ltd. (Bois­Franc) ","Bois­Franc",240]
["752 - Louisiana-Pacific Canada Ltd. (Bois­Franc) ",752,"073-0-001","Louisiana-Pacific Canada Ltd. (Bois­Franc) ","Bois­Franc",320]
["753 - Louisiana-Pacific Canada Ltd. (Bois­Franc) ",753,"073-0-001","Louisiana-Pacific Canada Ltd. (Bois­Franc) ","Bois­Franc",320]
["754 - Louisiana-Pacific Canada Ltd. (Bois­Franc) ",754,"073-0-001","Louisiana-Pacific Canada Ltd. (Bois­Franc) ","Bois­Franc",180]
["755 - Louisiana-Pacific Canada Ltd. (Bois­Franc) ",755,"073-0-001","Louisiana-Pacific Canada Ltd. (Bois­Franc) ","Bois­Franc",40]
["756 - Louisiana-Pacific Canada Ltd. (Bois­Franc) ",756,"073-0-001","Louisiana-Pacific Canada Ltd. (Bois­Franc) ","Bois­Franc",220]
["757 - Louisiana-Pacific Canada Ltd. (Bois­Franc) ",757,"073-0-001","Louisiana-Pacific Canada Ltd. (Bois­Franc) ","Bois­Franc",220]
["758 - Louisiana-Pacific Canada Ltd. (Bois­Franc) ",758,"073-0-001","Louisiana-Pacific Canada Ltd. (Bois­Franc) ","Bois­Franc",320]
["648 - PF Résolu Canada inc. (Maniwaki)",648,"073-1-010","PF Résolu Canada inc. (Maniwaki)","Maniwaki",240]
["649 - PF Résolu Canada inc. (Maniwaki)",649,"073-1-010","PF Résolu Canada inc. (Maniwaki)","Maniwaki",240]
["656 - PF Résolu Canada inc. (Maniwaki)",656,"073-1-010","PF Résolu Canada inc. (Maniwaki)","Maniwaki",300]
["657 - PF Résolu Canada inc. (Maniwaki)",657,"073-1-010","PF Résolu Canada inc. (Maniwaki)","Maniwaki",220]
["658 - PF Résolu Canada inc. (Maniwaki)",658,"073-1-010","PF Résolu Canada inc. (Maniwaki)","Maniwaki",320]
["659 - PF Résolu Canada inc. (Maniwaki)",659,"073-1-010","PF Résolu Canada inc. (Maniwaki)","Maniwaki",320]
["660 - PF Résolu Canada inc. (Maniwaki)",660,"073-1-010","PF Résolu Canada inc. (Maniwaki)","Maniwaki",160]
["661 - PF Résolu Canada inc. (Maniwaki)",661,"073-1-010","PF Résolu Canada inc. (Maniwaki)","Maniwaki",100]
["662 - PF Résolu Canada inc. (Maniwaki)",662,"073-1-010","PF Résolu Canada inc. (Maniwaki)","Maniwaki",120]
["750 - PF Résolu Canada inc. (Maniwaki)",750,"073-1-010","PF Résolu Canada inc. (Maniwaki)","Maniwaki",140]
["751 - PF Résolu Canada inc. (Maniwaki)",751,"073-1-010","PF Résolu Canada inc. (Maniwaki)","Maniwaki",200]
["752 - PF Résolu Canada inc. (Maniwaki)",752,"073-1-010","PF Résolu Canada inc. (Maniwaki)","Maniwaki",320]
["753 - PF Résolu Canada inc. (Maniwaki)",753,"073-1-010","PF Résolu Canada inc. (Maniwaki)","Maniwaki",280]
["754 - PF Résolu Canada inc. (Maniwaki)",754,"073-1-010","PF Résolu Canada inc. (Maniwaki)","Maniwaki",140]
["755 - PF Résolu Canada inc. (Maniwaki)",755,"073-1-010","PF Résolu Canada inc. (Maniwaki)","Maniwaki",20]
["756 - PF Résolu Canada inc. (Maniwaki)",756,"073-1-010","PF Résolu Canada inc. (Maniwaki)","Maniwaki",240]
["757 - PF Résolu Canada inc. (Maniwaki)",757,"073-1-010","PF Résolu Canada inc. (Maniwaki)","Maniwaki",240]
["758 - PF Résolu Canada inc. (Maniwaki)",758,"073-1-010","PF Résolu Canada inc. (Maniwaki)","Maniwaki",320]
[{"$f":"B325&\" - \"&D325","v":"648 - CCPL - Mansfield-et-Pontefract"},648,null,"CCPL - Mansfield-et-Pontefract","Mansfield-et-Pontefract",320]
[{"$f":"B326&\" - \"&D326","v":"649 - CCPL - Mansfield-et-Pontefract"},649,null,"CCPL - Mansfield-et-Pontefract","Mansfield-et-Pontefract",320]
[{"$f":"B327&\" - \"&D327","v":"656 - CCPL - Mansfield-et-Pontefract"},656,null,"CCPL - Mansfield-et-Pontefract","Mansfield-et-Pontefract",320]
[{"$f":"B328&\" - \"&D328","v":"657 - CCPL - Mansfield-et-Pontefract"},657,null,"CCPL - Mansfield-et-Pontefract","Mansfield-et-Pontefract",320]
[{"$f":"B329&\" - \"&D329","v":"658 - CCPL - Mansfield-et-Pontefract"},658,null,"CCPL - Mansfield-et-Pontefract","Mansfield-et-Pontefract",320]
["659 - CCPL - Mansfield-et-Pontefract",659,null,"CCPL - Mansfield-et-Pontefract","Mansfield-et-Pontefract",320]
["660 - CCPL - Mansfield-et-Pontefract",660,null,"CCPL - Mansfield-et-Pontefract","Mansfield-et-Pontefract",320]
["661 - CCPL - Mansfield-et-Pontefract",661,null,"CCPL - Mansfield-et-Pontefract","Mansfield-et-Pontefract",320]
["662 - CCPL - Mansfield-et-Pontefract",662,null,"CCPL - Mansfield-et-Pontefract","Mansfield-et-Pontefract",280]
["750 - CCPL - Mansfield-et-Pontefract",750,null,"CCPL - Mansfield-et-Pontefract","Mansfield-et-Pontefract",180]
["751 - CCPL - Mansfield-et-Pontefract",751,null,"CCPL - Mansfield-et-Pontefract","Mansfield-et-Pontefract",0]
["752 - CCPL - Mansfield-et-Pontefract",752,null,"CCPL - Mansfield-et-Pontefract","Mansfield-et-Pontefract",120]
["753 - CCPL - Mansfield-et-Pontefract",753,null,"CCPL - Mansfield-et-Pontefract","Mansfield-et-Pontefract",120]
["754 - CCPL - Mansfield-et-Pontefract",754,null,"CCPL - Mansfield-et-Pontefract","Mansfield-et-Pontefract",100]
["755 - CCPL - Mansfield-et-Pontefract",755,null,"CCPL - Mansfield-et-Pontefract","Mansfield-et-Pontefract",220]
["756 - CCPL - Mansfield-et-Pontefract",756,null,"CCPL - Mansfield-et-Pontefract","Mansfield-et-Pontefract",240]
["757 - CCPL - Mansfield-et-Pontefract",757,null,"CCPL - Mansfield-et-Pontefract","Mansfield-et-Pontefract",320]
["758 - CCPL - Mansfield-et-Pontefract",758,null,"CCPL - Mansfield-et-Pontefract","Mansfield-et-Pontefract",320]
[]
["Zone de tarification et BGAD (RechercheV) - BGAD B (CT)","Zone","Num_usine","Nom_usine","Plafond$/ha CT","Aide$/m3 CT"]
[{"$f":"B345&\" - \"&D345","v":"648 - Jovalco Produits forestiers inc."},648,"071-1-001","Jovalco Produits forestiers inc.",320,6]
["649 - Jovalco Produits forestiers inc.",649,"071-1-001","Jovalco Produits forestiers inc.",320,6]
["656 - Jovalco Produits forestiers inc.",656,"071-1-001","Jovalco Produits forestiers inc.",320,6]
["657 - Jovalco Produits forestiers inc.",657,"071-1-001","Jovalco Produits forestiers inc.",320,6]
["658 - Jovalco Produits forestiers inc.",658,"071-1-001","Jovalco Produits forestiers inc.",320,6]
["659 - Jovalco Produits forestiers inc.",659,"071-1-001","Jovalco Produits forestiers inc.",320,6]
["660 - Jovalco Produits forestiers inc.",660,"071-1-001","Jovalco Produits forestiers inc.",320,6]
["661 - Jovalco Produits forestiers inc.",661,"071-1-001","Jovalco Produits forestiers inc.",320,6]
["662 - Jovalco Produits forestiers inc.",662,"071-1-001","Jovalco Produits forestiers inc.",300,5]
["750 - Jovalco Produits forestiers inc.",750,"071-1-001","Jovalco Produits forestiers inc.",180,3]
["751 - Jovalco Produits forestiers inc.",751,"071-1-001","Jovalco Produits forestiers inc.",60,1]
["752 - Jovalco Produits forestiers inc.",752,"071-1-001","Jovalco Produits forestiers inc.",240,4]
["753 - Jovalco Produits forestiers inc.",753,"071-1-001","Jovalco Produits forestiers inc.",320,6]
["754 - Jovalco Produits forestiers inc.",754,"071-1-001","Jovalco Produits forestiers inc.",300,5]
["755 - Jovalco Produits forestiers inc.",755,"071-1-001","Jovalco Produits forestiers inc.",240,4]
["756 - Jovalco Produits forestiers inc.",756,"071-1-001","Jovalco Produits forestiers inc.",320,6]
["757 - Jovalco Produits forestiers inc.",757,"071-1-001","Jovalco Produits forestiers inc.",320,6]
["758 - Jovalco Produits forestiers inc.",758,"071-1-001","Jovalco Produits forestiers inc.",320,6]
["648 - Lauzon - Planchers de bois exclusifs inc. ",648,"072-1-005","Lauzon - Planchers de bois exclusifs inc. ",300,5]
["649 - Lauzon - Planchers de bois exclusifs inc. ",649,"072-1-005","Lauzon - Planchers de bois exclusifs inc. ",120,2]
["656 - Lauzon - Planchers de bois exclusifs inc. ",656,"072-1-005","Lauzon - Planchers de bois exclusifs inc. ",320,6]
["657 - Lauzon - Planchers de bois exclusifs inc. ",657,"072-1-005","Lauzon - Planchers de bois exclusifs inc. ",320,6]
["658 - Lauzon - Planchers de bois exclusifs inc. ",658,"072-1-005","Lauzon - Planchers de bois exclusifs inc. ",320,6]
["659 - Lauzon - Planchers de bois exclusifs inc. ",659,"072-1-005","Lauzon - Planchers de bois exclusifs inc. ",320,6]
["660 - Lauzon - Planchers de bois exclusifs inc. ",660,"072-1-005","Lauzon - Planchers de bois exclusifs inc. ",320,6]
["661 - Lauzon - Planchers de bois exclusifs inc. ",661,"072-1-005","Lauzon - Planchers de bois exclusifs inc. ",240,4]
["662 - Lauzon - Planchers de bois exclusifs inc. ",662,"072-1-005","Lauzon - Planchers de bois exclusifs inc. ",120,2]
["750 - Lauzon - Planchers de bois exclusifs inc. ",750,"072-1-005","Lauzon - Planchers de bois exclusifs inc. ",0,0]
["751 - Lauzon - Planchers de bois exclusifs inc. ",751,"072-1-005","Lauzon - Planchers de bois exclusifs inc. ",240,4]
["752 - Lauzon - Planchers de bois exclusifs inc. ",752,"072-1-005","Lauzon - Planchers de bois exclusifs inc. ",320,6]
["753 - Lauzon - Planchers de bois exclusifs inc. ",753,"072-1-005","Lauzon - Planchers de bois exclusifs inc. ",320,6]
["754 - Lauzon - Planchers de bois exclusifs inc. ",754,"072-1-005","Lauzon - Planchers de bois exclusifs inc. ",320,6]
["755 - Lauzon - Planchers de bois exclusifs inc. ",755,"072-1-005","Lauzon - Planchers de bois exclusifs inc. ",300,5]
["756 - Lauzon - Planchers de bois exclusifs inc. ",756,"072-1-005","Lauzon - Planchers de bois exclusifs inc. ",320,6]
["757 - Lauzon - Planchers de bois exclusifs inc. ",757,"072-1-005","Lauzon - Planchers de bois exclusifs inc. ",320,6]
["758 - Lauzon - Planchers de bois exclusifs inc. ",758,"072-1-005","Lauzon - Planchers de bois exclusifs inc. ",320,6]
["648 - Forespect inc.",648,"072-1-012","Forespect inc.",180,3]
["649 - Forespect inc.",649,"072-1-012","Forespect inc.",0,0]
["656 - Forespect inc.",656,"072-1-012","Forespect inc.",300,5]
["657 - Forespect inc.",657,"072-1-012","Forespect inc.",300,5]
["658 - Forespect inc.",658,"072-1-012","Forespect inc.",320,6]
["659 - Forespect inc.",659,"072-1-012","Forespect inc.",320,6]
["660 - Forespect inc.",660,"072-1-012","Forespect inc.",320,6]
["661 - Forespect inc.",661,"072-1-012","Forespect inc.",240,4]
["662 - Forespect inc.",662,"072-1-012","Forespect inc.",180,3]
["750 - Forespect inc.",750,"072-1-012","Forespect inc.",60,1]
["751 - Forespect inc.",751,"072-1-012","Forespect inc.",320,6]
["752 - Forespect inc.",752,"072-1-012","Forespect inc.",320,6]
["753 - Forespect inc.",753,"072-1-012","Forespect inc.",320,6]
["754 - Forespect inc.",754,"072-1-012","Forespect inc.",320,6]
["755 - Forespect inc.",755,"072-1-012","Forespect inc.",320,6]
["756 - Forespect inc.",756,"072-1-012","Forespect inc.",320,6]
["757 - Forespect inc.",757,"072-1-012","Forespect inc.",320,6]
["758 - Forespect inc.",758,"072-1-012","Forespect inc.",320,6]
["648 - Produits forestiers Lachance inc. ",648,"142-1-005","Produits forestiers Lachance inc. ",180,3]
["649 - Produits forestiers Lachance inc. ",649,"142-1-005","Produits forestiers Lachance inc. ",180,3]
["656 - Produits forestiers Lachance inc. ",656,"142-1-005","Produits forestiers Lachance inc. ",240,4]
["657 - Produits forestiers Lachance inc. ",657,"142-1-005","Produits forestiers Lachance inc. ",300,5]
["658 - Produits forestiers Lachance inc. ",658,"142-1-005","Produits forestiers Lachance inc. ",320,6]
["659 - Produits forestiers Lachance inc. ",659,"142-1-005","Produits forestiers Lachance inc. ",320,6]
["660 - Produits forestiers Lachance inc. ",660,"142-1-005","Produits forestiers Lachance inc. ",320,6]
["661 - Produits forestiers Lachance inc. ",661,"142-1-005","Produits forestiers Lachance inc. ",320,6]
["662 - Produits forestiers Lachance inc. ",662,"142-1-005","Produits forestiers Lachance inc. ",320,6]
["750 - Produits forestiers Lachance inc. ",750,"142-1-005","Produits forestiers Lachance inc. ",300,5]
[{"$f":"B409&\" - \"&D409","v":"751 - Produits forestiers Lachance inc. "},751,"142-1-005","Produits forestiers Lachance inc. ",320,6]
["752 - Produits forestiers Lachance inc. ",752,"142-1-005","Produits forestiers Lachance inc. ",320,6]
["753 - Produits forestiers Lachance inc. ",753,"142-1-005","Produits forestiers Lachance inc. ",320,6]
["754 - Produits forestiers Lachance inc. ",754,"142-1-005","Produits forestiers Lachance inc. ",320,6]
["755 - Produits forestiers Lachance inc. ",755,"142-1-005","Produits forestiers Lachance inc. ",320,6]
["756 - Produits forestiers Lachance inc. ",756,"142-1-005","Produits forestiers Lachance inc. ",320,6]
["757 - Produits forestiers Lachance inc. ",757,"142-1-005","Produits forestiers Lachance inc. ",320,6]
["758 - Produits forestiers Lachance inc. ",758,"142-1-005","Produits forestiers Lachance inc. ",320,6]
["648 - Groupe Crête",648,"151-1-019","Groupe Crête",180,3]
["649 - Groupe Crête",649,"151-1-019","Groupe Crête",60,1]
["656 - Groupe Crête",656,"151-1-019","Groupe Crête",300,5]
["657 - Groupe Crête",657,"151-1-019","Groupe Crête",300,5]
["658 - Groupe Crête",658,"151-1-019","Groupe Crête",320,6]
["659 - Groupe Crête",659,"151-1-019","Groupe Crête",320,6]
["660 - Groupe Crête",660,"151-1-019","Groupe Crête",320,6]
["661 - Groupe Crête",661,"151-1-019","Groupe Crête",240,4]
["662 - Groupe Crête",662,"151-1-019","Groupe Crête",240,4]
["750 - Groupe Crête",750,"151-1-019","Groupe Crête",180,3]
["751 - Groupe Crête",751,"151-1-019","Groupe Crête",320,6]
["752 - Groupe Crête",752,"151-1-019","Groupe Crête",320,6]
["753 - Groupe Crête",753,"151-1-019","Groupe Crête",320,6]
["754 - Groupe Crête",754,"151-1-019","Groupe Crête",320,6]
["755 - Groupe Crête",755,"151-1-019","Groupe Crête",320,6]
["756 - Groupe Crête",756,"151-1-019","Groupe Crête",320,6]
["757 - Groupe Crête",757,"151-1-019","Groupe Crête",320,6]
["758 - Groupe Crête",758,"151-1-019","Groupe Crête",320,6]
["648 - Scierie Carrière ltée ",648,"151-1-020","Scierie Carrière ltée ",240,4]
["649 - Scierie Carrière ltée ",649,"151-1-020","Scierie Carrière ltée ",60,1]
["656 - Scierie Carrière ltée ",656,"151-1-020","Scierie Carrière ltée ",320,6]
["657 - Scierie Carrière ltée ",657,"151-1-020","Scierie Carrière ltée ",320,6]
["658 - Scierie Carrière ltée ",658,"151-1-020","Scierie Carrière ltée ",320,6]
["659 - Scierie Carrière ltée ",659,"151-1-020","Scierie Carrière ltée ",320,6]
["660 - Scierie Carrière ltée ",660,"151-1-020","Scierie Carrière ltée ",320,6]
["661 - Scierie Carrière ltée ",661,"151-1-020","Scierie Carrière ltée ",300,5]
["662 - Scierie Carrière ltée ",662,"151-1-020","Scierie Carrière ltée ",240,4]
["750 - Scierie Carrière ltée ",750,"151-1-020","Scierie Carrière ltée ",120,2]
["751 - Scierie Carrière ltée ",751,"151-1-020","Scierie Carrière ltée ",320,6]
["752 - Scierie Carrière ltée ",752,"151-1-020","Scierie Carrière ltée ",320,6]
["753 - Scierie Carrière ltée ",753,"151-1-020","Scierie Carrière ltée ",320,6]
["754 - Scierie Carrière ltée ",754,"151-1-020","Scierie Carrière ltée ",320,6]
["755 - Scierie Carrière ltée ",755,"151-1-020","Scierie Carrière ltée ",320,6]
["756 - Scierie Carrière ltée ",756,"151-1-020","Scierie Carrière ltée ",320,6]
["757 - Scierie Carrière ltée ",757,"151-1-020","Scierie Carrière ltée ",320,6]
["758 - Scierie Carrière ltée ",758,"151-1-020","Scierie Carrière ltée ",320,6]
["648 - CCPL - Sainte­Thérèse",648,"152-2-004","CCPL - Sainte­Thérèse",300,5]
["649 - CCPL - Sainte­Thérèse",649,"152-2-004","CCPL - Sainte­Thérèse",120,2]
["656 - CCPL - Sainte­Thérèse",656,"152-2-004","CCPL - Sainte­Thérèse",320,6]
["657 - CCPL - Sainte­Thérèse",657,"152-2-004","CCPL - Sainte­Thérèse",320,6]
["658 - CCPL - Sainte­Thérèse",658,"152-2-004","CCPL - Sainte­Thérèse",320,6]
["659 - CCPL - Sainte­Thérèse",659,"152-2-004","CCPL - Sainte­Thérèse",320,6]
["660 - CCPL - Sainte­Thérèse",660,"152-2-004","CCPL - Sainte­Thérèse",320,6]
["661 - CCPL - Sainte­Thérèse",661,"152-2-004","CCPL - Sainte­Thérèse",300,5]
["662 - CCPL - Sainte­Thérèse",662,"152-2-004","CCPL - Sainte­Thérèse",300,5]
["750 - CCPL - Sainte­Thérèse",750,"152-2-004","CCPL - Sainte­Thérèse",240,4]
["751 - CCPL - Sainte­Thérèse",751,"152-2-004","CCPL - Sainte­Thérèse",320,6]
["752 - CCPL - Sainte­Thérèse",752,"152-2-004","CCPL - Sainte­Thérèse",320,6]
["753 - CCPL - Sainte­Thérèse",753,"152-2-004","CCPL - Sainte­Thérèse",320,6]
["754 - CCPL - Sainte­Thérèse",754,"152-2-004","CCPL - Sainte­Thérèse",320,6]
["755 - CCPL - Sainte­Thérèse",755,"152-2-004","CCPL - Sainte­Thérèse",320,6]
["756 - CCPL - Sainte­Thérèse",756,"152-2-004","CCPL - Sainte­Thérèse",320,6]
["757 - CCPL - Sainte­Thérèse",757,"152-2-004","CCPL - Sainte­Thérèse",320,6]
["758 - CCPL - Sainte­Thérèse",758,"152-2-004","CCPL - Sainte­Thérèse",320,6]
["648 - CCPL - Mont­Laurier",648,"154-1-006","CCPL - Mont­Laurier",120,2]
["649 - CCPL - Mont­Laurier",649,"154-1-006","CCPL - Mont­Laurier",120,2]
[{"$f":"B473&\" - \"&D473","v":"656 - CCPL - Mont­Laurier"},656,"154-1-006","CCPL - Mont­Laurier",180,3]
["657 - CCPL - Mont­Laurier",657,"154-1-006","CCPL - Mont­Laurier",120,2]
["658 - CCPL - Mont­Laurier",658,"154-1-006","CCPL - Mont­Laurier",300,5]
["659 - CCPL - Mont­Laurier",659,"154-1-006","CCPL - Mont­Laurier",320,6]
["660 - CCPL - Mont­Laurier",660,"154-1-006","CCPL - Mont­Laurier",120,2]
["661 - CCPL - Mont­Laurier",661,"154-1-006","CCPL - Mont­Laurier",0,0]
["662 - CCPL - Mont­Laurier",662,"154-1-006","CCPL - Mont­Laurier",60,1]
["750 - CCPL - Mont­Laurier",750,"154-1-006","CCPL - Mont­Laurier",180,3]
["751 - CCPL - Mont­Laurier",751,"154-1-006","CCPL - Mont­Laurier",320,6]
["752 - CCPL - Mont­Laurier",752,"154-1-006","CCPL - Mont­Laurier",320,6]
["753 - CCPL - Mont­Laurier",753,"154-1-006","CCPL - Mont­Laurier",320,6]
["754 - CCPL - Mont­Laurier",754,"154-1-006","CCPL - Mont­Laurier",240,4]
["755 - CCPL - Mont­Laurier",755,"154-1-006","CCPL - Mont­Laurier",120,2]
["756 - CCPL - Mont­Laurier",756,"154-1-006","CCPL - Mont­Laurier",300,5]
["757 - CCPL - Mont­Laurier",757,"154-1-006","CCPL - Mont­Laurier",240,4]
["758 - CCPL - Mont­Laurier",758,"154-1-006","CCPL - Mont­Laurier",320,6]
["648 - Forex inc.",648,"154-1-007","Forex inc.",120,2]
["649 - Forex inc.",649,"154-1-007","Forex inc.",180,3]
["656 - Forex inc.",656,"154-1-007","Forex inc.",180,3]
["657 - Forex inc.",657,"154-1-007","Forex inc.",120,2]
["658 - Forex inc.",658,"154-1-007","Forex inc.",240,4]
["659 - Forex inc.",659,"154-1-007","Forex inc.",320,6]
["660 - Forex inc.",660,"154-1-007","Forex inc.",120,2]
["661 - Forex inc.",661,"154-1-007","Forex inc.",0,0]
["662 - Forex inc.",662,"154-1-007","Forex inc.",60,1]
["750 - Forex inc.",750,"154-1-007","Forex inc.",120,2]
["751 - Forex inc.",751,"154-1-007","Forex inc.",320,6]
["752 - Forex inc.",752,"154-1-007","Forex inc.",320,6]
["753 - Forex inc.",753,"154-1-007","Forex inc.",320,6]
["754 - Forex inc.",754,"154-1-007","Forex inc.",240,4]
["755 - Forex inc.",755,"154-1-007","Forex inc.",120,2]
["756 - Forex inc.",756,"154-1-007","Forex inc.",300,5]
["757 - Forex inc.",757,"154-1-007","Forex inc.",240,4]
["758 - Forex inc.",758,"154-1-007","Forex inc.",320,6]
["648 - Forex inc.",648,"154-2-006","Forex inc.",120,2]
["649 - Forex inc.",649,"154-2-006","Forex inc.",180,3]
["656 - Forex inc.",656,"154-2-006","Forex inc.",180,3]
["657 - Forex inc.",657,"154-2-006","Forex inc.",120,2]
["658 - Forex inc.",658,"154-2-006","Forex inc.",240,4]
["659 - Forex inc.",659,"154-2-006","Forex inc.",320,6]
["660 - Forex inc.",660,"154-2-006","Forex inc.",120,2]
["661 - Forex inc.",661,"154-2-006","Forex inc.",0,0]
["662 - Forex inc.",662,"154-2-006","Forex inc.",60,1]
["750 - Forex inc.",750,"154-2-006","Forex inc.",120,2]
["751 - Forex inc.",751,"154-2-006","Forex inc.",320,6]
["752 - Forex inc.",752,"154-2-006","Forex inc.",320,6]
["753 - Forex inc.",753,"154-2-006","Forex inc.",320,6]
["754 - Forex inc.",754,"154-2-006","Forex inc.",240,4]
["755 - Forex inc.",755,"154-2-006","Forex inc.",120,2]
["756 - Forex inc.",756,"154-2-006","Forex inc.",300,5]
["757 - Forex inc.",757,"154-2-006","Forex inc.",240,4]
["758 - Forex inc.",758,"154-2-006","Forex inc.",320,6]
["648 - CCPL - Low",648,"072-1-001","CCPL - Low",320,6]
["649 - CCPL - Low",649,"072-1-001","CCPL - Low",240,4]
["656 - CCPL - Low",656,"072-1-001","CCPL - Low",320,6]
["657 - CCPL - Low",657,"072-1-001","CCPL - Low",320,6]
["658 - CCPL - Low",658,"072-1-001","CCPL - Low",320,6]
["659 - CCPL - Low",659,"072-1-001","CCPL - Low",320,6]
["660 - CCPL - Low",660,"072-1-001","CCPL - Low",320,6]
["661 - CCPL - Low",661,"072-1-001","CCPL - Low",300,5]
["662 - CCPL - Low",662,"072-1-001","CCPL - Low",180,3]
["750 - CCPL - Low",750,"072-1-001","CCPL - Low",120,2]
["751 - CCPL - Low",751,"072-1-001","CCPL - Low",180,3]
["752 - CCPL - Low",752,"072-1-001","CCPL - Low",320,6]
["753 - CCPL - Low",753,"072-1-001","CCPL - Low",320,6]
["754 - CCPL - Low",754,"072-1-001","CCPL - Low",300,5]
["755 - CCPL - Low",755,"072-1-001","CCPL - Low",180,3]
["756 - CCPL - Low",756,"072-1-001","CCPL - Low",320,6]
["757 - CCPL - Low",757,"072-1-001","CCPL - Low",320,6]
["758 - CCPL - Low",758,"072-1-001","CCPL - Low",320,6]
["648 - CCPL - Rapides-des-Joachims",648,"071-1-002","CCPL - Rapides-des-Joachims",320,6]
["649 - CCPL - Rapides-des-Joachims",649,"071-1-002","CCPL - Rapides-des-Joachims",320,6]
["656 - CCPL - Rapides-des-Joachims",656,"071-1-002","CCPL - Rapides-des-Joachims",320,6]
["657 - CCPL - Rapides-des-Joachims",657,"071-1-002","CCPL - Rapides-des-Joachims",320,6]
["658 - CCPL - Rapides-des-Joachims",658,"071-1-002","CCPL - Rapides-des-Joachims",320,6]
["659 - CCPL - Rapides-des-Joachims",659,"071-1-002","CCPL - Rapides-des-Joachims",320,6]
["660 - CCPL - Rapides-des-Joachims",660,"071-1-002","CCPL - Rapides-des-Joachims",320,6]
["661 - CCPL - Rapides-des-Joachims",661,"071-1-002","CCPL - Rapides-des-Joachims",320,6]
["662 - CCPL - Rapides-des-Joachims",662,"071-1-002","CCPL - Rapides-des-Joachims",320,6]
["750 - CCPL - Rapides-des-Joachims",750,"071-1-002","CCPL - Rapides-des-Joachims",320,6]
["751 - CCPL - Rapides-des-Joachims",751,"071-1-002","CCPL - Rapides-des-Joachims",240,4]
["752 - CCPL - Rapides-des-Joachims",752,"071-1-002","CCPL - Rapides-des-Joachims",120,2]
["753 - CCPL - Rapides-des-Joachims",753,"071-1-002","CCPL - Rapides-des-Joachims",240,4]
["754 - CCPL - Rapides-des-Joachims",754,"071-1-002","CCPL - Rapides-des-Joachims",320,6]
["755 - CCPL - Rapides-des-Joachims",755,"071-1-002","CCPL - Rapides-des-Joachims",320,6]
["756 - CCPL - Rapides-des-Joachims",756,"071-1-002","CCPL - Rapides-des-Joachims",320,6]
["757 - CCPL - Rapides-des-Joachims",757,"071-1-002","CCPL - Rapides-des-Joachims",320,6]
["758 - CCPL - Rapides-des-Joachims",758,"071-1-002","CCPL - Rapides-des-Joachims",320,6]
[{"$f":"B561&\" - \"&D561","v":"648 - Louisiana-Pacific Canada Ltd. (Bois­Franc) "},648,"073-0-001","Louisiana-Pacific Canada Ltd. (Bois­Franc) ",240,4]
["649 - Louisiana-Pacific Canada Ltd. (Bois­Franc) ",649,"073-0-001","Louisiana-Pacific Canada Ltd. (Bois­Franc) ",240,4]
["656 - Louisiana-Pacific Canada Ltd. (Bois­Franc) ",656,"073-0-001","Louisiana-Pacific Canada Ltd. (Bois­Franc) ",300,5]
["657 - Louisiana-Pacific Canada Ltd. (Bois­Franc) ",657,"073-0-001","Louisiana-Pacific Canada Ltd. (Bois­Franc) ",240,4]
["658 - Louisiana-Pacific Canada Ltd. (Bois­Franc) ",658,"073-0-001","Louisiana-Pacific Canada Ltd. (Bois­Franc) ",320,6]
["659 - Louisiana-Pacific Canada Ltd. (Bois­Franc) ",659,"073-0-001","Louisiana-Pacific Canada Ltd. (Bois­Franc) ",320,6]
["660 - Louisiana-Pacific Canada Ltd. (Bois­Franc) ",660,"073-0-001","Louisiana-Pacific Canada Ltd. (Bois­Franc) ",180,3]
["661 - Louisiana-Pacific Canada Ltd. (Bois­Franc) ",661,"073-0-001","Louisiana-Pacific Canada Ltd. (Bois­Franc) ",120,2]
["662 - Louisiana-Pacific Canada Ltd. (Bois­Franc) ",662,"073-0-001","Louisiana-Pacific Canada Ltd. (Bois­Franc) ",120,2]
["750 - Louisiana-Pacific Canada Ltd. (Bois­Franc) ",750,"073-0-001","Louisiana-Pacific Canada Ltd. (Bois­Franc) ",180,3]
["751 - Louisiana-Pacific Canada Ltd. (Bois­Franc) ",751,"073-0-001","Louisiana-Pacific Canada Ltd. (Bois­Franc) ",240,4]
["752 - Louisiana-Pacific Canada Ltd. (Bois­Franc) ",752,"073-0-001","Louisiana-Pacific Canada Ltd. (Bois­Franc) ",320,6]
["753 - Louisiana-Pacific Canada Ltd. (Bois­Franc) ",753,"073-0-001","Louisiana-Pacific Canada Ltd. (Bois­Franc) ",320,6]
["754 - Louisiana-Pacific Canada Ltd. (Bois­Franc) ",754,"073-0-001","Louisiana-Pacific Canada Ltd. (Bois­Franc) ",180,3]
["755 - Louisiana-Pacific Canada Ltd. (Bois­Franc) ",755,"073-0-001","Louisiana-Pacific Canada Ltd. (Bois­Franc) ",60,1]
["756 - Louisiana-Pacific Canada Ltd. (Bois­Franc) ",756,"073-0-001","Louisiana-Pacific Canada Ltd. (Bois­Franc) ",240,4]
["757 - Louisiana-Pacific Canada Ltd. (Bois­Franc) ",757,"073-0-001","Louisiana-Pacific Canada Ltd. (Bois­Franc) ",240,4]
["758 - Louisiana-Pacific Canada Ltd. (Bois­Franc) ",758,"073-0-001","Louisiana-Pacific Canada Ltd. (Bois­Franc) ",320,6]
["648 - PF Résolu Canada inc. (Maniwaki)",648,"073-1-010","PF Résolu Canada inc. (Maniwaki)",240,4]
["649 - PF Résolu Canada inc. (Maniwaki)",649,"073-1-010","PF Résolu Canada inc. (Maniwaki)",240,4]
["656 - PF Résolu Canada inc. (Maniwaki)",656,"073-1-010","PF Résolu Canada inc. (Maniwaki)",300,5]
["657 - PF Résolu Canada inc. (Maniwaki)",657,"073-1-010","PF Résolu Canada inc. (Maniwaki)",240,4]
["658 - PF Résolu Canada inc. (Maniwaki)",658,"073-1-010","PF Résolu Canada inc. (Maniwaki)",320,6]
["659 - PF Résolu Canada inc. (Maniwaki)",659,"073-1-010","PF Résolu Canada inc. (Maniwaki)",320,6]
["660 - PF Résolu Canada inc. (Maniwaki)",660,"073-1-010","PF Résolu Canada inc. (Maniwaki)",180,3]
["661 - PF Résolu Canada inc. (Maniwaki)",661,"073-1-010","PF Résolu Canada inc. (Maniwaki)",120,2]
["662 - PF Résolu Canada inc. (Maniwaki)",662,"073-1-010","PF Résolu Canada inc. (Maniwaki)",120,2]
["750 - PF Résolu Canada inc. (Maniwaki)",750,"073-1-010","PF Résolu Canada inc. (Maniwaki)",180,3]
["751 - PF Résolu Canada inc. (Maniwaki)",751,"073-1-010","PF Résolu Canada inc. (Maniwaki)",240,4]
["752 - PF Résolu Canada inc. (Maniwaki)",752,"073-1-010","PF Résolu Canada inc. (Maniwaki)",320,6]
["753 - PF Résolu Canada inc. (Maniwaki)",753,"073-1-010","PF Résolu Canada inc. (Maniwaki)",300,5]
["754 - PF Résolu Canada inc. (Maniwaki)",754,"073-1-010","PF Résolu Canada inc. (Maniwaki)",180,3]
["755 - PF Résolu Canada inc. (Maniwaki)",755,"073-1-010","PF Résolu Canada inc. (Maniwaki)",60,1]
["756 - PF Résolu Canada inc. (Maniwaki)",756,"073-1-010","PF Résolu Canada inc. (Maniwaki)",240,4]
["757 - PF Résolu Canada inc. (Maniwaki)",757,"073-1-010","PF Résolu Canada inc. (Maniwaki)",240,4]
["758 - PF Résolu Canada inc. (Maniwaki)",758,"073-1-010","PF Résolu Canada inc. (Maniwaki)",320,6]
["648 - CCPL - Mansfield-et-Pontefract",648,null,"CCPL - Mansfield-et-Pontefract",320,6]
["649 - CCPL - Mansfield-et-Pontefract",649,null,"CCPL - Mansfield-et-Pontefract",320,6]
["656 - CCPL - Mansfield-et-Pontefract",656,null,"CCPL - Mansfield-et-Pontefract",320,6]
["657 - CCPL - Mansfield-et-Pontefract",657,null,"CCPL - Mansfield-et-Pontefract",320,6]
["658 - CCPL - Mansfield-et-Pontefract",658,null,"CCPL - Mansfield-et-Pontefract",320,6]
["659 - CCPL - Mansfield-et-Pontefract",659,null,"CCPL - Mansfield-et-Pontefract",320,6]
["660 - CCPL - Mansfield-et-Pontefract",660,null,"CCPL - Mansfield-et-Pontefract",320,6]
["661 - CCPL - Mansfield-et-Pontefract",661,null,"CCPL - Mansfield-et-Pontefract",320,6]
["662 - CCPL - Mansfield-et-Pontefract",662,null,"CCPL - Mansfield-et-Pontefract",300,5]
["750 - CCPL - Mansfield-et-Pontefract",750,null,"CCPL - Mansfield-et-Pontefract",180,3]
["751 - CCPL - Mansfield-et-Pontefract",751,null,"CCPL - Mansfield-et-Pontefract",0,0]
["752 - CCPL - Mansfield-et-Pontefract",752,null,"CCPL - Mansfield-et-Pontefract",120,2]
["753 - CCPL - Mansfield-et-Pontefract",753,null,"CCPL - Mansfield-et-Pontefract",120,2]
["754 - CCPL - Mansfield-et-Pontefract",754,null,"CCPL - Mansfield-et-Pontefract",120,2]
["755 - CCPL - Mansfield-et-Pontefract",755,null,"CCPL - Mansfield-et-Pontefract",240,4]
["756 - CCPL - Mansfield-et-Pontefract",756,null,"CCPL - Mansfield-et-Pontefract",240,4]
["757 - CCPL - Mansfield-et-Pontefract",757,null,"CCPL - Mansfield-et-Pontefract",320,6]
["758 - CCPL - Mansfield-et-Pontefract",758,null,"CCPL - Mansfield-et-Pontefract",320,6]
[]
["Provenance et destination (RechercheV) - A Usine","Municipalité","Destination","Aide"]
[{"$f":"CONCATENATE(B617,\" - \",C617)","v":"Lachute - Domtar"},"Lachute","Domtar",19]
[{"$f":"CONCATENATE(B618,\" - \",C618)","v":"Lachute - RYAM"},"Lachute","RYAM",49]
["Lachute - West Rock","Lachute","West Rock",31]
["Lachute - Kruger","Lachute","Kruger",15]
["Lachute - Granaudière","Lachute","Granaudière",11]
["Mont-Laurier - Domtar","Mont-Laurier","Domtar",35]
["Mont-Laurier - RYAM","Mont-Laurier","RYAM",45]
["Mont-Laurier - West Rock","Mont-Laurier","West Rock",48]
["Mont-Laurier - Kruger","Mont-Laurier","Kruger",31]
["Mont-Laurier - Granaudière","Mont-Laurier","Granaudière",21]
["Namur - Domtar","Namur","Domtar",26]
["Namur - RYAM","Namur","RYAM",46]
["Namur - West Rock","Namur","West Rock",39]
["Namur - Kruger","Namur","Kruger",22]
["Namur - Granaudière","Namur","Granaudière",14]
["Thurso - Domtar","Thurso","Domtar",26]
["Thurso - RYAM","Thurso","RYAM",40]
["Thurso - West Rock","Thurso","West Rock",39]
["Thurso - Kruger","Thurso","Kruger",22]
["Thurso - Granaudière","Thurso","Granaudière",20]
["Lachute - Tafisa","Lachute","Tafisa",30]
["Mont-Laurier - Tafisa","Mont-Laurier","Tafisa",48]
["Namur - Tafisa","Namur","Tafisa",39]
["Thurso - Tafisa","Thurso","Tafisa",37]
["Low - Domtar","Low","Domtar",40]
["Low - RYAM","Low","RYAM",34]
["Low - West Rock","Low","West Rock",51]
["Low - Kruger","Low","Kruger",34]
["Low - Granaudière","Low","Granaudière",33]
["Low - Tafisa","Low","Tafisa",49]
["Rapides-des-Joachims - Domtar","Rapides-des-Joachims","Domtar",57]
["Rapides-des-Joachims - RYAM","Rapides-des-Joachims","RYAM",11]
["Rapides-des-Joachims - West Rock","Rapides-des-Joachims","West Rock",70]
["Rapides-des-Joachims - Kruger","Rapides-des-Joachims","Kruger",54]
["Rapides-des-Joachims - Granaudière","Rapides-des-Joachims","Granaudière",52]
["Rapides-des-Joachims - Tafisa","Rapides-des-Joachims","Tafisa",67]
["Bois­Franc - Domtar","Bois­Franc","Domtar",42]
["Bois­Franc - RYAM","Bois­Franc","RYAM",40]
["Notre-Dame-de-Pontmain - Domtar","Notre-Dame-de-Pontmain","Domtar",40]
["Danford Lake / Kazabazua - RYAM","Danford Lake / Kazabazua","RYAM",32]
["Lachute - Silicium Québec","Lachute","Silicium Québec",16]
["Thurso - Lauzon Bois énergétique recyclé inc. (Saint­Paulin)","Thurso","Lauzon Bois énergétique recyclé inc. (Saint­Paulin)",21]
[{"$f":"CONCATENATE(B659,\" - \",C659)","v":"Thurso - Entreprises Sappi Canada inc. (Matane)"},"Thurso","Entreprises Sappi Canada inc. (Matane)",66]
["Mansfield-et-Pontefract - Domtar","Mansfield-et-Pontefract","Domtar",45]
[]
["Zone de tarification et destination (RechercheV) - B Usine","Zone de tarification","Bénéficiaire du Gré à Gré","Aide finale ($/m3)"]
[{"$f":"CONCATENATE(B663,\" - \",C663)","v":"648 - Domtar"},648,"Domtar",22]
[{"$f":"CONCATENATE(B664,\" - \",C664)","v":"649 - Domtar"},649,"Domtar",16]
["656 - Domtar",656,"Domtar",25]
["657 - Domtar",657,"Domtar",27]
["658 - Domtar",658,"Domtar",33]
["659 - Domtar",659,"Domtar",37]
["660 - Domtar",660,"Domtar",34]
["661 - Domtar",661,"Domtar",26]
["662 - Domtar",662,"Domtar",25]
["750 - Domtar",750,"Domtar",19]
["751 - Domtar",751,"Domtar",33]
["752 - Domtar",752,"Domtar",39]
["753 - Domtar",753,"Domtar",51]
["754 - Domtar",754,"Domtar",39]
["755 - Domtar",755,"Domtar",31]
["756 - Domtar",756,"Domtar",42]
["757 - Domtar",757,"Domtar",38]
["758 - Domtar",758,"Domtar",46]
["648 - RYAM",648,"RYAM",52]
["649 - RYAM",649,"RYAM",52]
["656 - RYAM",656,"RYAM",55]
["657 - RYAM",657,"RYAM",51]
["658 - RYAM",658,"RYAM",59]
["659 - RYAM",659,"RYAM",62]
["660 - RYAM",660,"RYAM",49]
["661 - RYAM",661,"RYAM",46]
["662 - RYAM",662,"RYAM",33]
["750 - RYAM",750,"RYAM",27]
["751 - RYAM",751,"RYAM",18]
["752 - RYAM",752,"RYAM",12]
["753 - RYAM",753,"RYAM",21]
["754 - RYAM",754,"RYAM",29]
["755 - RYAM",755,"RYAM",31]
["756 - RYAM",756,"RYAM",22]
["757 - RYAM",757,"RYAM",33]
["758 - RYAM",758,"RYAM",35]
["648 - West Rock",648,"West Rock",22]
["649 - West Rock",649,"West Rock",20]
["656 - West Rock",656,"West Rock",19]
["657 - West Rock",657,"West Rock",21]
["658 - West Rock",658,"West Rock",20]
["659 - West Rock",659,"West Rock",23]
["660 - West Rock",660,"West Rock",32]
["661 - West Rock",661,"West Rock",29]
["662 - West Rock",662,"West Rock",30]
["750 - West Rock",750,"West Rock",25]
["751 - West Rock",751,"West Rock",45]
["752 - West Rock",752,"West Rock",52]
["753 - West Rock",753,"West Rock",59]
["754 - West Rock",754,"West Rock",49]
["755 - West Rock",755,"West Rock",42]
["756 - West Rock",756,"West Rock",51]
["757 - West Rock",757,"West Rock",43]
["758 - West Rock",758,"West Rock",35]
["648 - Kruger",648,"Kruger",9]
["649 - Kruger",649,"Kruger",7]
["656 - Kruger",656,"Kruger",12]
["657 - Kruger",657,"Kruger",14]
["658 - Kruger",658,"Kruger",20]
["659 - Kruger",659,"Kruger",27]
["660 - Kruger",660,"Kruger",25]
["661 - Kruger",661,"Kruger",17]
["662 - Kruger",662,"Kruger",18]
["750 - Kruger",750,"Kruger",13]
["751 - Kruger",751,"Kruger",28]
[{"$f":"CONCATENATE(B728,\" - \",C728)","v":"752 - Kruger"},752,"Kruger",41]
["753 - Kruger",753,"Kruger",42]
["754 - Kruger",754,"Kruger",32]
["755 - Kruger",755,"Kruger",25]
["756 - Kruger",756,"Kruger",34]
["757 - Kruger",757,"Kruger",32]
["758 - Kruger",758,"Kruger",38]
["648 - Granaudière",648,"Granaudière",0]
["649 - Granaudière",649,"Granaudière",0]
["656 - Granaudière",656,"Granaudière",0]
["657 - Granaudière",657,"Granaudière",0]
["658 - Granaudière",658,"Granaudière",2]
["659 - Granaudière",659,"Granaudière",5]
["660 - Granaudière",660,"Granaudière",18]
["661 - Granaudière",661,"Granaudière",5]
["662 - Granaudière",662,"Granaudière",13]
["750 - Granaudière",750,"Granaudière",17]
["751 - Granaudière",751,"Granaudière",33]
["752 - Granaudière",752,"Granaudière",48]
["753 - Granaudière",753,"Granaudière",45]
["754 - Granaudière",754,"Granaudière",36]
["755 - Granaudière",755,"Granaudière",30]
["756 - Granaudière",756,"Granaudière",39]
["757 - Granaudière",757,"Granaudière",33]
["758 - Granaudière",758,"Granaudière",37]
["648 - Tafisa",648,"Tafisa",33]
["649 - Tafisa",649,"Tafisa",28]
["656 - Tafisa",656,"Tafisa",37]
["657 - Tafisa",657,"Tafisa",39]
["658 - Tafisa",658,"Tafisa",45]
["659 - Tafisa",659,"Tafisa",48]
["660 - Tafisa",660,"Tafisa",46]
["661 - Tafisa",661,"Tafisa",38]
["662 - Tafisa",662,"Tafisa",37]
["750 - Tafisa",750,"Tafisa",31]
["751 - Tafisa",751,"Tafisa",45]
["752 - Tafisa",752,"Tafisa",50]
["753 - Tafisa",753,"Tafisa",62]
["754 - Tafisa",754,"Tafisa",51]
["755 - Tafisa",755,"Tafisa",43]
["756 - Tafisa",756,"Tafisa",54]
["757 - Tafisa",757,"Tafisa",50]
["758 - Tafisa",758,"Tafisa",58]
["648 - Silicium Québec",648,"Silicium Québec",13]
["649 - Silicium Québec",649,"Silicium Québec",11]
["656 - Silicium Québec",656,"Silicium Québec",16]
["657 - Silicium Québec",657,"Silicium Québec",18]
["658 - Silicium Québec",658,"Silicium Québec",24]
["659 - Silicium Québec",659,"Silicium Québec",31]
["660 - Silicium Québec",660,"Silicium Québec",29]
["661 - Silicium Québec",661,"Silicium Québec",21]
["662 - Silicium Québec",662,"Silicium Québec",22]
["750 - Silicium Québec",750,"Silicium Québec",17]
["751 - Silicium Québec",751,"Silicium Québec",32]
["752 - Silicium Québec",752,"Silicium Québec",44]
["753 - Silicium Québec",753,"Silicium Québec",46]
["754 - Silicium Québec",754,"Silicium Québec",35]
["755 - Silicium Québec",755,"Silicium Québec",28]
["756 - Silicium Québec",756,"Silicium Québec",37]
["757 - Silicium Québec",757,"Silicium Québec",36]
[{"$f":"CONCATENATE(B788,\" - \",C788)","v":"758 - Silicium Québec"},758,"Silicium Québec",41]
[]
["Villes"]
["Bois­Franc"]
["Danford Lake / Kazabazua"]
["Lachute"]
["Low"]
["Mansfield-et-Pontefract"]
["Mont-Laurier"]
["Namur"]
["Notre-Dame-de-Pontmain"]
["Rapides-des-Joachims"]
["Thurso"]
[]
["Usine de destination - FPu"]
["Domtar"]
["Entreprises Sappi Canada inc. (Matane)"]
["Granaudière"]
["Kruger"]
["Lauzon Bois énergétique recyclé inc. (Saint­Paulin)"]
["RYAM"]
["Silicium Québec"]
["Tafisa"]
["West Rock"]
[]
["Usine de destination - FPr"]
["Domtar"]
["Granaudière"]
["Kruger"]
["LP"]
["RYAM"]
["Silicium Québec"]
["West Rock"]
[]
["Territoire du plan conjoint des producteurs de bois"]
["Laurentides et Outaouais"]
["Pontiac"]
["Vallée de la Gatineau"]
["Inscrire une valeur"]
[]
["Plan conjoint, destination et essence FPr (RechercheV)","Provenance des bois de trituration","Destination","Essence","Aide ($/m3)"]
[{"$f":"CONCATENATE(B829,\" - \",C829,\" - \",D829)","v":"Pontiac - Domtar - Feuillus durs"},"Pontiac","Domtar","Feuillus durs",34]
[{"$f":"CONCATENATE(B830,\" - \",C830,\" - \",D830)","v":"Pontiac - RYAM - Feuillus durs"},"Pontiac","RYAM","Feuillus durs",19]
["Pontiac - West Rock - Feuillus durs","Pontiac","West Rock","Feuillus durs",45]
["Pontiac - Kruger - Feuillus durs","Pontiac","Kruger","Feuillus durs",29]
["Pontiac - Granaudière - Feuillus durs","Pontiac","Granaudière","Feuillus durs",33]
["Vallée de la Gatineau - Domtar - Feuillus durs","Vallée de la Gatineau","Domtar","Feuillus durs",32]
["Vallée de la Gatineau - RYAM - Feuillus durs","Vallée de la Gatineau","RYAM","Feuillus durs",31]
["Vallée de la Gatineau - West Rock - Feuillus durs","Vallée de la Gatineau","West Rock","Feuillus durs",42]
["Vallée de la Gatineau - Kruger - Feuillus durs","Vallée de la Gatineau","Kruger","Feuillus durs",25]
["Vallée de la Gatineau - Granaudière - Feuillus durs","Vallée de la Gatineau","Granaudière","Feuillus durs",30]
["Laurentides et Outaouais - Domtar - Feuillus durs","Laurentides et Outaouais","Domtar","Feuillus durs",25]
["Laurentides et Outaouais - RYAM - Feuillus durs","Laurentides et Outaouais","RYAM","Feuillus durs",40]
["Laurentides et Outaouais - West Rock - Feuillus durs","Laurentides et Outaouais","West Rock","Feuillus durs",27]
["Laurentides et Outaouais - Kruger - Feuillus durs","Laurentides et Outaouais","Kruger","Feuillus durs",15]
["Laurentides et Outaouais - Granaudière - Feuillus durs","Laurentides et Outaouais","Granaudière","Feuillus durs",9]
["Laurentides et Outaouais - LP - Peupliers","Laurentides et Outaouais","LP","Peupliers",7]
["Laurentides et Outaouais - Silicium Québec - Feuillus durs","Laurentides et Outaouais","Silicium Québec","Feuillus durs",18]
["Laurentides et Outaouais - Silicium Québec - Peupliers","Laurentides et Outaouais","Silicium Québec","Peupliers",17]
[]
["Type de bois de faible qualité"]
["Peupliers"]
["Feuillus durs"]
[]
["Volet II (Transport en longueur et mesurage optimisé)"]
["Bois transporté en longueur",51]
["Mesurage  optimisé",81]

{"sheet":"Log","index":10,"n_rows":6,"n_cols":4,"rows_kept":6,"cut":false,"hidden":true,"merged":[]}
["Utilisateur","Date","OS","Excel"]
["Pouliot, Simon (BMMB)","2020-12-02T11:57:55","Windows (32-bit) NT 6.01","15.0"]
["St-Pierre, Stéphane (BMMB)","2020-12-15T10:55:24","Windows (64-bit) NT :.00","15.0"]
["St-Pierre, Stéphane (BMMB)","2020-12-17T11:30:07","Windows (64-bit) NT :.00","15.0"]
["St-Pierre, Stéphane (BMMB)","2020-12-21T11:18:13","Windows (64-bit) NT :.00","15.0"]
["Pouliot, Simon (BMMB)","2021-02-03T13:19:43","Windows (32-bit) NT 6.01","15.0"]